Workbook

Sheet Sheet1
B1: Visualizing Integration by Parts
C3: This DIGMath spreadsheet lets you
C4: visualize the process of
C5: Integration by Parts for various functions
A9: Which function do you want? | D9: =IF(E9=TRUE, 1,IF(E10=TRUE, 2,IF(E12=TRUE,3,4))) -> 3 | E9: FALSE
E10: FALSE
E12: TRUE
A14: What is the power p (1 to 3)? | D14: =E14 -> 3 | E14: 3
A16: What is the multiple c (-3, 3)? | D16: =IF(E16<3,E16-3,E16-2) -> 2 | E16: 4 | J16: Pick a tracing point x0 = | M16: =a+K17*dx -> 2.58
K17: 172
A18: Your function is then y = | E18: =IF(pop=1,Sheet2!A1,IF(pop=2,Sheet2!A2,Sheet2!A3)) -> x^3 cos(2x)
J19: The area from x = | L19: =a -> 0 | M19: to x = | N19: =x0 -> 2.58 | O19: = | P19: =LOOKUP(x0+dx/2,Sheet2!$C$2:$C$202,Sheet2!E$2:E$202) -> -3.622278559
A21: What is the interval for x?
C22: xMin = | D22: 0
C23: xMax = | D23: 3
A30: Click each item below for suggestions and investigations
C31: Item 1
C32: Item 2
C33: Item 3
I36: The area = | K36: =LOOKUP(x0+dx/2,Sheet2!$C$2:$C$202,Sheet2!F2:F202) -> -7.741 | Q36: The area = | S36: =LOOKUP(x0+dx/2,Sheet2!$C$2:$C$202,Sheet2!J$2:J$202) -> -4.118
A37: To access/download all the DIGMath Apps for Calculus | L37: The Difference = | P37: =K36-S36 -> -3.623
A38: Click this link: | C38: DIGMath for Calculus
A40: Created by: Sheldon P. Gordon
A41: Farmingdale State College
A42: Development of this module was supported by the
A43: NSF's Division of Undergraduate Education
A44: under grants DUE-0310123 and DUE-0442160.

Sheet Sheet2
A1: ="x^"&TEXT(p,"0")&" e^("&TEXT(cc,"0")&"x)" -> x^3 e^(2x) | C1: x | D1: f(x) | E1: Area | F1: u*v | G1: POP = 1 | H1: POP = 2 | I1: POP = 3 | J1: Int(v du) | K1: Diff | M1: x | N1: f(x) | O1: sweep x | P1: sweep y | Q1: u v | R1: POP = 1 | S1: POP = 2 | T1: POP = 3 | U1: Int (v du) | V1: u v - int(v*du)
A2: ="x^"&TEXT(p,"0")&" sin("&TEXT(cc,"0")&"x)" -> x^3 sin(2x) | C2: =a -> 0 | D2: =IF(pop=1,x^p*EXP(cc*x),IF(pop=2,x^p*SIN(cc*x),x^p*COS(cc*x))) -> 0 | E2: 0 | F2: =IF(pop=1,x^p*EXP(cc*x)/cc,IF(pop=2,(-1)*x^p*(COS(cc*x))/cc,x^p*SIN(cc*x)/cc)) -> 0 | G2: =IF(p=1,EXP(cc*x)/cc^2-EXP(a*x)/cc^2,IF(p=2,EXP(cc*x)*(2*x/cc^2-1/cc^3)-EXP(a*cc)*(2*a/cc^2-1/cc^3),EXP(cc*x)*(-3*x^2/cc^2+6*x/cc^3-3/cc^4))-EXP(cc*a)*(-3*a^2/cc^2+6*a/cc^3-3/cc^4)) -> 0 | H2: =IF(p=1,(SIN(cc*x))/cc^2-SIN(a*cc)/cc^2,IF(p=2, 2*x/cc^2*SIN(cc*x)+2/cc^3*COS(cc*x)- 2*a/cc^2*SIN(cc*a)+2/cc^3*COS(cc*a), 6*x/cc^3*COS(cc*x)+3/cc^4*(cc^2*x^2-2)*SIN(cc*x) - 6*a/cc^3*COS(cc*x)+3/cc^4*(cc^2*a^2-2)*SIN(cc*a) )) -> 0 | I2: =IF(p=1,COS(cc*x)/cc^2-COS(cc*a)/cc^2, IF(p=2,(-2/cc^3*SIN(cc*x)+2*x/cc^2*COS(cc*x)+2/cc^3*SIN(cc*a) -2*a/cc^2*COS(cc*a)), (-6*x/cc^3*SIN(cc*x)+(3*x^2/cc^2-6/cc^4)*COS(cc*x) +6*a/cc^3*SIN(cc*a)-(3*a^2/cc^2-6/cc^4)*COS(cc*a))) ) -> 0 | J2: =IF(pop=1,G2,IF(pop=2,-H2,I2)) -> 0 | K2: =F2-J2 -> 0 | M2: =C2 -> 0 | N2: 0 | O2: =M2 -> 0 | P2: =N2 -> 0 | Q2: 0 | R2: 0 | S2: 0 | T2: 0 | U2: 0 | V2: 0
A3: ="x^"&TEXT(p,"0")&" cos("&TEXT(cc,"0")&"x)" -> x^3 cos(2x) | C3: =C2+dx -> 0.015 | D3: 3.373481364e-06 | E3: =E2+(D2+D3)*dx/2 -> 2.530111023e-08 | F3: 5.061740659e-08 | G3: 0.005708499188 | H3: 1.687044399e-06 | I3: -3.796495329e-08 | J3: =IF(pop=1,G3,IF(pop=2,H3,I3))*(-1) -> 3.796495329e-08 | K3: =F3-J3 -> 1.26524533e-08 | M3: =M2 -> 0 | N3: =IF(pop=1,xx^p*EXP(cc*xx),IF(pop=2,xx^p*SIN(cc*xx),xx^p*COS(cc*xx))) -> 0 | O3: =O2 -> 0 | P3: =N3 -> 0 | Q3: =IF(pop=1,xx^p*EXP(cc*xx)/cc,IF(pop=2,(-1)*xx^p*(COS(cc*xx))/cc,xx^p*SIN(cc*xx)/cc)) -> 0 | R3: =IF(p=1,EXP(cc*xx)/cc^2-EXP(a*xx)/cc^2,IF(p=2,EXP(cc*xx)*(2*xx/cc^2-1/cc^3)-EXP(a*cc)*(2*a/cc^2-1/cc^3),EXP(cc*xx)*(-3*xx^2/cc^2+6*xx/cc^3-3/cc^4))-EXP(cc*a)*(-3*a^2/cc^2+6*a/cc^3-3/cc^4)) -> 0 | S3: =IF(p=1,(SIN(cc*xx))/cc^2-SIN(a*cc)/cc^2,IF(p=2, 2*x/cc^2*SIN(cc*xx)+2/cc^3*COS(cc*xx)- 2*a/cc^2*SIN(cc*a)+2/cc^3*COS(cc*a), 6*xx/cc^3*COS(cc*xx)+3/cc^4*(cc^2*xx^2-2)*SIN(cc*xx) - 6*a/cc^3*COS(cc*xx)+3/cc^4*(cc^2*a^2-2)*SIN(cc*a) )) -> 0 | T3: =IF(p=1,COS(cc*xx)/cc^2-COS(cc*a)/cc^2, IF(p=2,(-2/cc^3*SIN(cc*xx)+2*xx/cc^2*COS(cc*xx)+2/cc^3*SIN(cc*a) -2*a/cc^2*COS(cc*a)), (-6*xx/cc^3*SIN(cc*xx)+(3*xx^2/cc^2-6/cc^4)*COS(cc*xx) +6*a/cc^3*SIN(cc*a)-(3*a^2/cc^2-6/cc^4)*COS(cc*a))) ) -> 0 | U3: =IF(pop=1,R3,IF(pop=2,-S3,T3)) -> 0 | V3: 0
A4: ="x^"&TEXT(p,"0")&" cos("&TEXT(cc,"0")&"x)" -> x^3 cos(2x) | C4: 0.03 | D4: 2.695141458e-05 | E4: 2.527378298e-07 | F4: 8.095140875e-07 | G4: 0.01158023015 | H4: 1.348542312e-05 | I4: -6.072570328e-07 | J4: 6.072570328e-07 | K4: 2.022570546e-07 | M4: =M2+dx -> 0.015 | N4: 0 | O4: =IF(xx<=x0,O2+dx,O2) -> 0.015 | P4: =N4 -> 0 | Q4: 0 | R4: 0 | S4: 0 | T4: 0 | U4: 0 | V4: 0
C5: 0.045 | D5: 9.07561928e-05 | E5: 1.135544885e-06 | F5: 4.095091398e-06 | G5: 0.01760892669 | H5: 4.54518365e-05 | I5: -3.072701669e-06 | J5: 3.072701669e-06 | K5: 1.022389729e-06 | M5: =M4 -> 0.015 | N5: =IF(pop=1,xx^p*EXP(cc*xx),IF(pop=2,xx^p*SIN(cc*xx),xx^p*COS(cc*xx))) -> 3.373481364e-06 | O5: =O4 -> 0.015 | P5: =IF(xx<=x0,IF(pop=1,xx^p*EXP(cc*xx),IF(pop=2,xx^p*SIN(cc*xx),xx^p*COS(cc*xx))),P3) -> 3.373481364e-06 | Q5: =IF(xx<=x0,IF(pop=1,xx^p*EXP(cc*xx)/cc,IF(pop=2,(-1)*xx^p*(COS(cc*xx))/cc,xx^p*SIN(cc*xx)/cc)),Q3) -> 5.061740659e-08 | R5: =IF(p=1,EXP(cc*xx)/cc^2-EXP(a*xx)/cc^2,IF(p=2,EXP(cc*xx)*(2*xx/cc^2-1/cc^3)-EXP(a*cc)*(2*a/cc^2-1/cc^3),EXP(cc*xx)*(-3*xx^2/cc^2+6*xx/cc^3-3/cc^4))-EXP(cc*a)*(-3*a^2/cc^2+6*a/cc^3-3/cc^4)) -> 0.005708499188 | S5: =IF(p=1,(SIN(cc*xx))/cc^2-SIN(a*cc)/cc^2,IF(p=2, 2*xx/cc^2*SIN(cc*xx)+2/cc^3*COS(cc*xx)- 2*a/cc^2*SIN(cc*a)+2/cc^3*COS(cc*a), 6*xx/cc^3*COS(cc*xx)+3/cc^4*(cc^2*xx^2-2)*SIN(cc*xx) - 6*a/cc^3*COS(cc*xx)+3/cc^4*(cc^2*a^2-2)*SIN(cc*a) )) -> 1.687044399e-06 | T5: =IF(p=1,COS(cc*xx)/cc^2-COS(cc*a)/cc^2, IF(p=2,(-2/cc^3*SIN(cc*xx)+2*xx/cc^2*COS(cc*xx)+2/cc^3*SIN(cc*a) -2*a/cc^2*COS(cc*a)), (-6*xx/cc^3*SIN(cc*xx)+(3*xx^2/cc^2-6/cc^4)*COS(cc*xx) +6*a/cc^3*SIN(cc*a)-(3*a^2/cc^2-6/cc^4)*COS(cc*a))) ) -> -3.796495329e-08 | U5: =IF(xx<=x0,(-1)*IF(pop=1,R5,IF(pop=2,S5,T5)),U3) -> 3.796495329e-08 | V5: =IF(xx<=x0,Q5-U5,V3) -> 1.26524533e-08
C6: 0.06 | D6: 0.0002144466653 | E6: 3.424566321e-06 | F6: 1.292891839e-05 | G6: 0.02378745715 | H6: 0.0001075338398 | I6: -9.704456396e-06 | J6: 9.704456396e-06 | K6: 3.224461991e-06 | M6: =M4+dx -> 0.03 | N6: 0 | O6: =IF(xx<=x0,O4+dx,O4) -> 0.03 | P6: =N6 -> 0 | Q6: 0 | R6: 0 | S6: 0 | T6: 0 | U6: 0 | V6: 0
A7: =a -> 0 | C7: 0.075 | D7: 0.0004171377985 | E7: 8.1614498e-06 | F7: 3.152210607e-05 | G7: 0.03010776743 | H7: 0.0002095155777 | I7: -2.367119261e-05 | J7: 2.367119261e-05 | K7: 7.850913455e-06 | M7: =M6 -> 0.03 | N7: =IF(pop=1,xx^p*EXP(cc*xx),IF(pop=2,xx^p*SIN(cc*xx),xx^p*COS(cc*xx))) -> 2.695141458e-05 | O7: =O6 -> 0.03 | P7: =IF(xx<=x0,IF(pop=1,xx^p*EXP(cc*xx),IF(pop=2,xx^p*SIN(cc*xx),xx^p*COS(cc*xx))),P5) -> 2.695141458e-05 | Q7: =IF(xx<=x0,IF(pop=1,xx^p*EXP(cc*xx)/cc,IF(pop=2,(-1)*xx^p*(COS(cc*xx))/cc,xx^p*SIN(cc*xx)/cc)),Q5) -> 8.095140875e-07 | R7: =IF(p=1,EXP(cc*xx)/cc^2-EXP(a*xx)/cc^2,IF(p=2,EXP(cc*xx)*(2*xx/cc^2-1/cc^3)-EXP(a*cc)*(2*a/cc^2-1/cc^3),EXP(cc*xx)*(-3*xx^2/cc^2+6*xx/cc^3-3/cc^4))-EXP(cc*a)*(-3*a^2/cc^2+6*a/cc^3-3/cc^4)) -> 0.01158023015 | S7: =IF(p=1,(SIN(cc*xx))/cc^2-SIN(a*cc)/cc^2,IF(p=2, 2*xx/cc^2*SIN(cc*xx)+2/cc^3*COS(cc*xx)- 2*a/cc^2*SIN(cc*a)+2/cc^3*COS(cc*a), 6*xx/cc^3*COS(cc*xx)+3/cc^4*(cc^2*xx^2-2)*SIN(cc*xx) - 6*a/cc^3*COS(cc*xx)+3/cc^4*(cc^2*a^2-2)*SIN(cc*a) )) -> 1.348542312e-05 | T7: =IF(p=1,COS(cc*xx)/cc^2-COS(cc*a)/cc^2, IF(p=2,(-2/cc^3*SIN(cc*xx)+2*xx/cc^2*COS(cc*xx)+2/cc^3*SIN(cc*a) -2*a/cc^2*COS(cc*a)), (-6*xx/cc^3*SIN(cc*xx)+(3*xx^2/cc^2-6/cc^4)*COS(cc*xx) +6*a/cc^3*SIN(cc*a)-(3*a^2/cc^2-6/cc^4)*COS(cc*a))) ) -> -6.072570328e-07 | U7: =IF(xx<=x0,(-1)*IF(pop=1,R7,IF(pop=2,S7,T7)),U5) -> 6.072570328e-07 | V7: =IF(xx<=x0,Q7-U7,V5) -> 2.022570546e-07
A8: =b -> 3 | C8: 0.09 | D8: 0.000717222052 | E8: 1.666914868e-05 | F8: 6.525627951e-05 | G8: 0.03656082094 | H8: 0.0003609638871 | I8: -4.90305681e-05 | J8: 4.90305681e-05 | K8: 1.622571141e-05 | M8: =M6+dx -> 0.045 | N8: 0 | O8: =IF(xx<=x0,O6+dx,O6) -> 0.045 | P8: =N8 -> 0 | Q8: 0 | R8: 0 | S8: 0 | T8: 0 | U8: 0 | V8: 0
C9: 0.105 | D9: 0.001132193038 | E9: 3.053976185e-05 | F9: 0.0001206591958 | G9: 0.04313653552 | H9: 0.0005711748891 | I9: -9.071700831e-05 | J9: 9.071700831e-05 | K9: 2.994218747e-05 | M9: =M8 -> 0.045 | N9: =IF(pop=1,xx^p*EXP(cc*xx),IF(pop=2,xx^p*SIN(cc*xx),xx^p*COS(cc*xx))) -> 9.07561928e-05 | O9: =O8 -> 0.045 | P9: =IF(xx<=x0,IF(pop=1,xx^p*EXP(cc*xx),IF(pop=2,xx^p*SIN(cc*xx),xx^p*COS(cc*xx))),P7) -> 9.07561928e-05 | Q9: =IF(xx<=x0,IF(pop=1,xx^p*EXP(cc*xx)/cc,IF(pop=2,(-1)*xx^p*(COS(cc*xx))/cc,xx^p*SIN(cc*xx)/cc)),Q7) -> 4.095091398e-06 | R9: =IF(p=1,EXP(cc*xx)/cc^2-EXP(a*xx)/cc^2,IF(p=2,EXP(cc*xx)*(2*xx/cc^2-1/cc^3)-EXP(a*cc)*(2*a/cc^2-1/cc^3),EXP(cc*xx)*(-3*xx^2/cc^2+6*xx/cc^3-3/cc^4))-EXP(cc*a)*(-3*a^2/cc^2+6*a/cc^3-3/cc^4)) -> 0.01760892669 | S9: =IF(p=1,(SIN(cc*xx))/cc^2-SIN(a*cc)/cc^2,IF(p=2, 2*xx/cc^2*SIN(cc*xx)+2/cc^3*COS(cc*xx)- 2*a/cc^2*SIN(cc*a)+2/cc^3*COS(cc*a), 6*xx/cc^3*COS(cc*xx)+3/cc^4*(cc^2*xx^2-2)*SIN(cc*xx) - 6*a/cc^3*COS(cc*xx)+3/cc^4*(cc^2*a^2-2)*SIN(cc*a) )) -> 4.54518365e-05 | T9: =IF(p=1,COS(cc*xx)/cc^2-COS(cc*a)/cc^2, IF(p=2,(-2/cc^3*SIN(cc*xx)+2*xx/cc^2*COS(cc*xx)+2/cc^3*SIN(cc*a) -2*a/cc^2*COS(cc*a)), (-6*xx/cc^3*SIN(cc*xx)+(3*xx^2/cc^2-6/cc^4)*COS(cc*xx) +6*a/cc^3*SIN(cc*a)-(3*a^2/cc^2-6/cc^4)*COS(cc*a))) ) -> -3.072701669e-06 | U9: =IF(xx<=x0,(-1)*IF(pop=1,R9,IF(pop=2,S9,T9)),U7) -> 3.072701669e-06 | V9: =IF(xx<=x0,Q9-U9,V7) -> 1.022389729e-06
A10: dx = | C10: 0.12 | D10: 0.001678472021 | E10: 5.161974979e-05 | F10: 0.0002053750692 | G10: 0.04982371702 | H10: 0.0008491211919 | I10: -0.0001545268196 | J10: 0.0001545268196 | K10: 5.084824968e-05 | M10: =M8+dx -> 0.06 | N10: 0 | O10: =IF(xx<=x0,O8+dx,O8) -> 0.06 | P10: =N10 -> 0 | Q10: 0 | R10: 0 | S10: 0 | T10: 0 | U10: 0 | V10: 0
A11: =(b-a)/200 -> 0.015 | C11: 0.135 | D11: 0.002371237819 | E11: 8.199257359e-05 | F11: 0.0003281296793 | G11: 0.05660998954 | H11: 0.001203399824 | I11: -0.0002471006623 | J11: 0.0002471006623 | K11: 8.102901702e-05 | M11: =M10 -> 0.06 | N11: =IF(pop=1,xx^p*EXP(cc*xx),IF(pop=2,xx^p*SIN(cc*xx),xx^p*COS(cc*xx))) -> 0.0002144466653 | O11: =O10 -> 0.06 | P11: =IF(xx<=x0,IF(pop=1,xx^p*EXP(cc*xx),IF(pop=2,xx^p*SIN(cc*xx),xx^p*COS(cc*xx))),P9) -> 0.0002144466653 | Q11: =IF(xx<=x0,IF(pop=1,xx^p*EXP(cc*xx)/cc,IF(pop=2,(-1)*xx^p*(COS(cc*xx))/cc,xx^p*SIN(cc*xx)/cc)),Q9) -> 1.292891839e-05 | R11: =IF(p=1,EXP(cc*xx)/cc^2-EXP(a*xx)/cc^2,IF(p=2,EXP(cc*xx)*(2*xx/cc^2-1/cc^3)-EXP(a*cc)*(2*a/cc^2-1/cc^3),EXP(cc*xx)*(-3*xx^2/cc^2+6*xx/cc^3-3/cc^4))-EXP(cc*a)*(-3*a^2/cc^2+6*a/cc^3-3/cc^4)) -> 0.02378745715 | S11: =IF(p=1,(SIN(cc*xx))/cc^2-SIN(a*cc)/cc^2,IF(p=2, 2*xx/cc^2*SIN(cc*xx)+2/cc^3*COS(cc*xx)- 2*a/cc^2*SIN(cc*a)+2/cc^3*COS(cc*a), 6*xx/cc^3*COS(cc*xx)+3/cc^4*(cc^2*xx^2-2)*SIN(cc*xx) - 6*a/cc^3*COS(cc*xx)+3/cc^4*(cc^2*a^2-2)*SIN(cc*a) )) -> 0.0001075338398 | T11: =IF(p=1,COS(cc*xx)/cc^2-COS(cc*a)/cc^2, IF(p=2,(-2/cc^3*SIN(cc*xx)+2*xx/cc^2*COS(cc*xx)+2/cc^3*SIN(cc*a) -2*a/cc^2*COS(cc*a)), (-6*xx/cc^3*SIN(cc*xx)+(3*xx^2/cc^2-6/cc^4)*COS(cc*xx) +6*a/cc^3*SIN(cc*a)-(3*a^2/cc^2-6/cc^4)*COS(cc*a))) ) -> -9.704456396e-06 | U11: =IF(xx<=x0,(-1)*IF(pop=1,R11,IF(pop=2,S11,T11)),U9) -> 9.704456396e-06 | V11: =IF(xx<=x0,Q11-U11,V9) -> 3.224461991e-06
C12: 0.15 | D12: 0.003224260651 | E12: 0.0001239588121 | F12: 0.0004986903487 | G12: 0.06348172205 | H12: 0.001642181016 | I12: -0.0003759034175 | J12: 0.0003759034175 | K12: 0.0001227869312 | M12: =M10+dx -> 0.075 | N12: 0 | O12: =IF(xx<=x0,O10+dx,O10) -> 0.075 | P12: =N12 -> 0 | Q12: 0 | R12: 0 | S12: 0 | T12: 0 | U12: 0 | V12: 0
C13: 0.165 | D13: 0.004249740462 | E13: 0.0001800138205 | F13: 0.0007278208945 | G13: 0.07042395134 | H13: 0.00217315795 | I13: -0.0005492014851 | J13: 0.0005492014851 | K13: 0.0001786194094 | M13: =M12 -> 0.075 | N13: =IF(pop=1,xx^p*EXP(cc*xx),IF(pop=2,xx^p*SIN(cc*xx),xx^p*COS(cc*xx))) -> 0.0004171377985 | O13: =O12 -> 0.075 | P13: =IF(xx<=x0,IF(pop=1,xx^p*EXP(cc*xx),IF(pop=2,xx^p*SIN(cc*xx),xx^p*COS(cc*xx))),P11) -> 0.0004171377985 | Q13: =IF(xx<=x0,IF(pop=1,xx^p*EXP(cc*xx)/cc,IF(pop=2,(-1)*xx^p*(COS(cc*xx))/cc,xx^p*SIN(cc*xx)/cc)),Q11) -> 3.152210607e-05 | R13: =IF(p=1,EXP(cc*xx)/cc^2-EXP(a*xx)/cc^2,IF(p=2,EXP(cc*xx)*(2*xx/cc^2-1/cc^3)-EXP(a*cc)*(2*a/cc^2-1/cc^3),EXP(cc*xx)*(-3*xx^2/cc^2+6*xx/cc^3-3/cc^4))-EXP(cc*a)*(-3*a^2/cc^2+6*a/cc^3-3/cc^4)) -> 0.03010776743 | S13: =IF(p=1,(SIN(cc*xx))/cc^2-SIN(a*cc)/cc^2,IF(p=2, 2*xx/cc^2*SIN(cc*xx)+2/cc^3*COS(cc*xx)- 2*a/cc^2*SIN(cc*a)+2/cc^3*COS(cc*a), 6*xx/cc^3*COS(cc*xx)+3/cc^4*(cc^2*xx^2-2)*SIN(cc*xx) - 6*a/cc^3*COS(cc*xx)+3/cc^4*(cc^2*a^2-2)*SIN(cc*a) )) -> 0.0002095155777 | T13: =IF(p=1,COS(cc*xx)/cc^2-COS(cc*a)/cc^2, IF(p=2,(-2/cc^3*SIN(cc*xx)+2*xx/cc^2*COS(cc*xx)+2/cc^3*SIN(cc*a) -2*a/cc^2*COS(cc*a)), (-6*xx/cc^3*SIN(cc*xx)+(3*xx^2/cc^2-6/cc^4)*COS(cc*xx) +6*a/cc^3*SIN(cc*a)-(3*a^2/cc^2-6/cc^4)*COS(cc*a))) ) -> -2.367119261e-05 | U13: =IF(xx<=x0,(-1)*IF(pop=1,R13,IF(pop=2,S13,T13)),U11) -> 2.367119261e-05 | V13: =IF(xx<=x0,Q13-U13,V11) -> 7.850913455e-06
A14: First graph | C14: 0.18 | D14: 0.005458150276 | E14: 0.000252823001 | F14: 0.001027231664 | G14: 0.07742030096 | H14: 0.002803497587 | I14: -0.000776037556 | J14: 0.000776037556 | K14: 0.0002511941082 | M14: =M12+dx -> 0.09 | N14: 0 | O14: =IF(xx<=x0,O12+dx,O12) -> 0.09 | P14: =N14 -> 0 | Q14: 0 | R14: 0 | S14: 0 | T14: 0 | U14: 0 | V14: 0
A15: =x0 -> 2.58 | B15: 0 | C15: 0.195 | D15: 0.006858085065 | E15: 0.0003451947661 | F15: 0.001409524787 | G15: 0.08445289624 | H15: 0.003539792697 | I15: -0.001066202907 | J15: 0.001066202907 | K15: 0.0003433218798 | M15: =M14 -> 0.09 | N15: =IF(pop=1,xx^p*EXP(cc*xx),IF(pop=2,xx^p*SIN(cc*xx),xx^p*COS(cc*xx))) -> 0.000717222052 | O15: =O14 -> 0.09 | P15: =IF(xx<=x0,IF(pop=1,xx^p*EXP(cc*xx),IF(pop=2,xx^p*SIN(cc*xx),xx^p*COS(cc*xx))),P13) -> 0.000717222052 | Q15: =IF(xx<=x0,IF(pop=1,xx^p*EXP(cc*xx)/cc,IF(pop=2,(-1)*xx^p*(COS(cc*xx))/cc,xx^p*SIN(cc*xx)/cc)),Q13) -> 6.525627951e-05 | R15: =IF(p=1,EXP(cc*xx)/cc^2-EXP(a*xx)/cc^2,IF(p=2,EXP(cc*xx)*(2*xx/cc^2-1/cc^3)-EXP(a*cc)*(2*a/cc^2-1/cc^3),EXP(cc*xx)*(-3*xx^2/cc^2+6*xx/cc^3-3/cc^4))-EXP(cc*a)*(-3*a^2/cc^2+6*a/cc^3-3/cc^4)) -> 0.03656082094 | S15: =IF(p=1,(SIN(cc*xx))/cc^2-SIN(a*cc)/cc^2,IF(p=2, 2*xx/cc^2*SIN(cc*xx)+2/cc^3*COS(cc*xx)- 2*a/cc^2*SIN(cc*a)+2/cc^3*COS(cc*a), 6*xx/cc^3*COS(cc*xx)+3/cc^4*(cc^2*xx^2-2)*SIN(cc*xx) - 6*a/cc^3*COS(cc*xx)+3/cc^4*(cc^2*a^2-2)*SIN(cc*a) )) -> 0.0003609638871 | T15: =IF(p=1,COS(cc*xx)/cc^2-COS(cc*a)/cc^2, IF(p=2,(-2/cc^3*SIN(cc*xx)+2*xx/cc^2*COS(cc*xx)+2/cc^3*SIN(cc*a) -2*a/cc^2*COS(cc*a)), (-6*xx/cc^3*SIN(cc*xx)+(3*xx^2/cc^2-6/cc^4)*COS(cc*xx) +6*a/cc^3*SIN(cc*a)-(3*a^2/cc^2-6/cc^4)*COS(cc*a))) ) -> -4.90305681e-05 | U15: =IF(xx<=x0,(-1)*IF(pop=1,R15,IF(pop=2,S15,T15)),U13) -> 4.90305681e-05 | V15: =IF(xx<=x0,Q15-U15,V13) -> 1.622571141e-05
A16: =x0 -> 2.58 | B16: =LOOKUP(x0+dx/2,C2:C202,D2:D202) -> 7.43292173 | C16: 0.21 | D16: 0.008456116676 | E16: 0.0004600512791 | F16: 0.001888134778 | G16: 0.09150227488 | H16: 0.004388015187 | I16: -0.001430207273 | J16: 0.001430207273 | K16: 0.0004579275047 | M16: =M14+dx -> 0.105 | N16: 0 | O16: =IF(xx<=x0,O14+dx,O14) -> 0.105 | P16: =N16 -> 0 | Q16: 0 | R16: 0 | S16: 0 | T16: 0 | U16: 0 | V16: 0
C17: 0.225 | D17: 0.01025665528 | E17: 0.0006003970687 | F17: 0.002477264643 | G17: 0.09854729323 | H17: 0.005353470854 | I17: -0.001879246346 | J17: 0.001879246346 | K17: 0.0005980182974 | M17: =M16 -> 0.105 | N17: =IF(pop=1,xx^p*EXP(cc*xx),IF(pop=2,xx^p*SIN(cc*xx),xx^p*COS(cc*xx))) -> 0.001132193038 | O17: =O16 -> 0.105 | P17: =IF(xx<=x0,IF(pop=1,xx^p*EXP(cc*xx),IF(pop=2,xx^p*SIN(cc*xx),xx^p*COS(cc*xx))),P15) -> 0.001132193038 | Q17: =IF(xx<=x0,IF(pop=1,xx^p*EXP(cc*xx)/cc,IF(pop=2,(-1)*xx^p*(COS(cc*xx))/cc,xx^p*SIN(cc*xx)/cc)),Q15) -> 0.0001206591958 | R17: =IF(p=1,EXP(cc*xx)/cc^2-EXP(a*xx)/cc^2,IF(p=2,EXP(cc*xx)*(2*xx/cc^2-1/cc^3)-EXP(a*cc)*(2*a/cc^2-1/cc^3),EXP(cc*xx)*(-3*xx^2/cc^2+6*xx/cc^3-3/cc^4))-EXP(cc*a)*(-3*a^2/cc^2+6*a/cc^3-3/cc^4)) -> 0.04313653552 | S17: =IF(p=1,(SIN(cc*xx))/cc^2-SIN(a*cc)/cc^2,IF(p=2, 2*xx/cc^2*SIN(cc*xx)+2/cc^3*COS(cc*xx)- 2*a/cc^2*SIN(cc*a)+2/cc^3*COS(cc*a), 6*xx/cc^3*COS(cc*xx)+3/cc^4*(cc^2*xx^2-2)*SIN(cc*xx) - 6*a/cc^3*COS(cc*xx)+3/cc^4*(cc^2*a^2-2)*SIN(cc*a) )) -> 0.0005711748891 | T17: =IF(p=1,COS(cc*xx)/cc^2-COS(cc*a)/cc^2, IF(p=2,(-2/cc^3*SIN(cc*xx)+2*xx/cc^2*COS(cc*xx)+2/cc^3*SIN(cc*a) -2*a/cc^2*COS(cc*a)), (-6*xx/cc^3*SIN(cc*xx)+(3*xx^2/cc^2-6/cc^4)*COS(cc*xx) +6*a/cc^3*SIN(cc*a)-(3*a^2/cc^2-6/cc^4)*COS(cc*a))) ) -> -9.071700831e-05 | U17: =IF(xx<=x0,(-1)*IF(pop=1,R17,IF(pop=2,S17,T17)),U15) -> 9.071700831e-05 | V17: =IF(xx<=x0,Q17-U17,V15) -> 2.994218747e-05
A18: Second graph | C18: 0.24 | D18: 0.01226181781 | E18: 0.0007692856169 | F18: 0.003191817661 | G18: 0.1055650278 | H18: 0.006440755656 | I18: -0.002425166976 | J18: 0.002425166976 | K18: 0.0007666506857 | M18: =M16+dx -> 0.12 | N18: 0 | O18: =IF(xx<=x0,O16+dx,O16) -> 0.12 | P18: =N18 -> 0 | Q18: 0 | R18: 0 | S18: 0 | T18: 0 | U18: 0 | V18: 0
A19: =x0 -> 2.58 | B19: 0 | C19: 0.255 | D19: 0.01447130396 | E19: 0.0009697840302 | F19: 0.004047324999 | G19: 0.112530672 | H19: 0.007653713615 | I19: -0.003080430126 | J19: 0.003080430126 | K19: 0.0009668948723 | M19: =M18 -> 0.12 | N19: =IF(pop=1,xx^p*EXP(cc*xx),IF(pop=2,xx^p*SIN(cc*xx),xx^p*COS(cc*xx))) -> 0.001678472021 | O19: =O18 -> 0.12 | P19: =IF(xx<=x0,IF(pop=1,xx^p*EXP(cc*xx),IF(pop=2,xx^p*SIN(cc*xx),xx^p*COS(cc*xx))),P17) -> 0.001678472021 | Q19: =IF(xx<=x0,IF(pop=1,xx^p*EXP(cc*xx)/cc,IF(pop=2,(-1)*xx^p*(COS(cc*xx))/cc,xx^p*SIN(cc*xx)/cc)),Q17) -> 0.0002053750692 | R19: =IF(p=1,EXP(cc*xx)/cc^2-EXP(a*xx)/cc^2,IF(p=2,EXP(cc*xx)*(2*xx/cc^2-1/cc^3)-EXP(a*cc)*(2*a/cc^2-1/cc^3),EXP(cc*xx)*(-3*xx^2/cc^2+6*xx/cc^3-3/cc^4))-EXP(cc*a)*(-3*a^2/cc^2+6*a/cc^3-3/cc^4)) -> 0.04982371702 | S19: =IF(p=1,(SIN(cc*xx))/cc^2-SIN(a*cc)/cc^2,IF(p=2, 2*xx/cc^2*SIN(cc*xx)+2/cc^3*COS(cc*xx)- 2*a/cc^2*SIN(cc*a)+2/cc^3*COS(cc*a), 6*xx/cc^3*COS(cc*xx)+3/cc^4*(cc^2*xx^2-2)*SIN(cc*xx) - 6*a/cc^3*COS(cc*xx)+3/cc^4*(cc^2*a^2-2)*SIN(cc*a) )) -> 0.0008491211919 | T19: =IF(p=1,COS(cc*xx)/cc^2-COS(cc*a)/cc^2, IF(p=2,(-2/cc^3*SIN(cc*xx)+2*xx/cc^2*COS(cc*xx)+2/cc^3*SIN(cc*a) -2*a/cc^2*COS(cc*a)), (-6*xx/cc^3*SIN(cc*xx)+(3*xx^2/cc^2-6/cc^4)*COS(cc*xx) +6*a/cc^3*SIN(cc*a)-(3*a^2/cc^2-6/cc^4)*COS(cc*a))) ) -> -0.0001545268196 | U19: =IF(xx<=x0,(-1)*IF(pop=1,R19,IF(pop=2,S19,T19)),U17) -> 0.0001545268196 | V19: =IF(xx<=x0,Q19-U19,V17) -> 5.084824968e-05
A20: =x0 -> 2.58 | B20: =LOOKUP(x0+dx/2,C$2:C$202,E$2:E$202) -> -3.622278559 | C20: 0.27 | D20: 0.01688227998 | E20: 0.00120493591 | F20: 0.005059869362 | G20: 0.1194174277 | H20: 0.00899539645 | I20: -0.003858071668 | J20: 0.003858071668 | K20: 0.001201797694 | M20: =M18+dx -> 0.135 | N20: 0 | O20: =IF(xx<=x0,O18+dx,O18) -> 0.135 | P20: =N20 -> 0 | Q20: 0 | R20: 0 | S20: 0 | T20: 0 | U20: 0 | V20: 0
C21: 0.285 | D21: 0.01948927091 | E21: 0.001477722541 | F21: 0.006246004875 | G21: 0.1261963917 | H21: 0.01046802503 | I21: -0.004771661072 | J21: 0.004771661072 | K21: 0.001474343803 | M21: =M20 -> 0.135 | N21: =IF(pop=1,xx^p*EXP(cc*xx),IF(pop=2,xx^p*SIN(cc*xx),xx^p*COS(cc*xx))) -> 0.002371237819 | O21: =O20 -> 0.135 | P21: =IF(xx<=x0,IF(pop=1,xx^p*EXP(cc*xx),IF(pop=2,xx^p*SIN(cc*xx),xx^p*COS(cc*xx))),P19) -> 0.002371237819 | Q21: =IF(xx<=x0,IF(pop=1,xx^p*EXP(cc*xx)/cc,IF(pop=2,(-1)*xx^p*(COS(cc*xx))/cc,xx^p*SIN(cc*xx)/cc)),Q19) -> 0.0003281296793 | R21: =IF(p=1,EXP(cc*xx)/cc^2-EXP(a*xx)/cc^2,IF(p=2,EXP(cc*xx)*(2*xx/cc^2-1/cc^3)-EXP(a*cc)*(2*a/cc^2-1/cc^3),EXP(cc*xx)*(-3*xx^2/cc^2+6*xx/cc^3-3/cc^4))-EXP(cc*a)*(-3*a^2/cc^2+6*a/cc^3-3/cc^4)) -> 0.05660998954 | S21: =IF(p=1,(SIN(cc*xx))/cc^2-SIN(a*cc)/cc^2,IF(p=2, 2*xx/cc^2*SIN(cc*xx)+2/cc^3*COS(cc*xx)- 2*a/cc^2*SIN(cc*a)+2/cc^3*COS(cc*a), 6*xx/cc^3*COS(cc*xx)+3/cc^4*(cc^2*xx^2-2)*SIN(cc*xx) - 6*a/cc^3*COS(cc*xx)+3/cc^4*(cc^2*a^2-2)*SIN(cc*a) )) -> 0.001203399824 | T21: =IF(p=1,COS(cc*xx)/cc^2-COS(cc*a)/cc^2, IF(p=2,(-2/cc^3*SIN(cc*xx)+2*xx/cc^2*COS(cc*xx)+2/cc^3*SIN(cc*a) -2*a/cc^2*COS(cc*a)), (-6*xx/cc^3*SIN(cc*xx)+(3*xx^2/cc^2-6/cc^4)*COS(cc*xx) +6*a/cc^3*SIN(cc*a)-(3*a^2/cc^2-6/cc^4)*COS(cc*a))) ) -> -0.0002471006623 | U21: =IF(xx<=x0,(-1)*IF(pop=1,R21,IF(pop=2,S21,T21)),U19) -> 0.0002471006623 | V21: =IF(xx<=x0,Q21-U21,V19) -> 8.102901702e-05
A22: Third graph | C22: 0.3 | D22: 0.0222840616 | E22: 0.001791022535 | F22: 0.007622673391 | G22: 0.132836436 | H22: 0.01207295279 | I22: -0.005835258099 | J22: 0.005835258099 | K22: 0.001787415292 | M22: =M20+dx -> 0.15 | N22: 0 | O22: =IF(xx<=x0,O20+dx,O20) -> 0.15 | P22: =N22 -> 0 | Q22: 0 | R22: 0 | S22: 0 | T22: 0 | U22: 0 | V22: 0
A23: =x0 -> 2.58 | B23: 0 | C23: 0.315 | D23: 0.0252556068 | E23: 0.002147570048 | F23: 0.009207117456 | G23: 0.1393040834 | H23: 0.01381063107 | I23: -0.007063367547 | J23: 0.007063367547 | K23: 0.002143749909 | M23: =M22 -> 0.15 | N23: =IF(pop=1,xx^p*EXP(cc*xx),IF(pop=2,xx^p*SIN(cc*xx),xx^p*COS(cc*xx))) -> 0.003224260651 | O23: =O22 -> 0.15 | P23: =IF(xx<=x0,IF(pop=1,xx^p*EXP(cc*xx),IF(pop=2,xx^p*SIN(cc*xx),xx^p*COS(cc*xx))),P21) -> 0.003224260651 | Q23: =IF(xx<=x0,IF(pop=1,xx^p*EXP(cc*xx)/cc,IF(pop=2,(-1)*xx^p*(COS(cc*xx))/cc,xx^p*SIN(cc*xx)/cc)),Q21) -> 0.0004986903487 | R23: =IF(p=1,EXP(cc*xx)/cc^2-EXP(a*xx)/cc^2,IF(p=2,EXP(cc*xx)*(2*xx/cc^2-1/cc^3)-EXP(a*cc)*(2*a/cc^2-1/cc^3),EXP(cc*xx)*(-3*xx^2/cc^2+6*xx/cc^3-3/cc^4))-EXP(cc*a)*(-3*a^2/cc^2+6*a/cc^3-3/cc^4)) -> 0.06348172205 | S23: =IF(p=1,(SIN(cc*xx))/cc^2-SIN(a*cc)/cc^2,IF(p=2, 2*xx/cc^2*SIN(cc*xx)+2/cc^3*COS(cc*xx)- 2*a/cc^2*SIN(cc*a)+2/cc^3*COS(cc*a), 6*xx/cc^3*COS(cc*xx)+3/cc^4*(cc^2*xx^2-2)*SIN(cc*xx) - 6*a/cc^3*COS(cc*xx)+3/cc^4*(cc^2*a^2-2)*SIN(cc*a) )) -> 0.001642181016 | T23: =IF(p=1,COS(cc*xx)/cc^2-COS(cc*a)/cc^2, IF(p=2,(-2/cc^3*SIN(cc*xx)+2*xx/cc^2*COS(cc*xx)+2/cc^3*SIN(cc*a) -2*a/cc^2*COS(cc*a)), (-6*xx/cc^3*SIN(cc*xx)+(3*xx^2/cc^2-6/cc^4)*COS(cc*xx) +6*a/cc^3*SIN(cc*a)-(3*a^2/cc^2-6/cc^4)*COS(cc*a))) ) -> -0.0003759034175 | U23: =IF(xx<=x0,(-1)*IF(pop=1,R23,IF(pop=2,S23,T23)),U21) -> 0.0003759034175 | V23: =IF(xx<=x0,Q23-U23,V21) -> 0.0001227869312
A24: =x0 -> 2.58 | B24: =LOOKUP(x0+dx/2,C$2:C$202,F$2:F$202) -> -7.740820192 | C24: 0.33 | D24: 0.02838995082 | E24: 0.00254991173 | F24: 0.01101679015 | G24: 0.1455633762 | H24: 0.01568057669 | I24: -0.008470892167 | J24: 0.008470892167 | K24: 0.002545897987 | M24: =M22+dx -> 0.165 | N24: 0 | O24: =IF(xx<=x0,O22+dx,O22) -> 0.165 | P24: =N24 -> 0 | Q24: 0 | R24: 0 | S24: 0 | T24: 0 | U24: 0 | V24: 0
C25: 0.345 | D25: 0.03167015714 | E25: 0.00300036254 | F25: 0.01306926207 | G25: 0.1515757382 | H25: 0.01768134163 | I25: -0.01007308382 | J25: 0.01007308382 | K25: 0.002996178252 | M25: =M24 -> 0.165 | N25: =IF(pop=1,xx^p*EXP(cc*xx),IF(pop=2,xx^p*SIN(cc*xx),xx^p*COS(cc*xx))) -> 0.004249740462 | O25: =O24 -> 0.165 | P25: =IF(xx<=x0,IF(pop=1,xx^p*EXP(cc*xx),IF(pop=2,xx^p*SIN(cc*xx),xx^p*COS(cc*xx))),P23) -> 0.004249740462 | Q25: =IF(xx<=x0,IF(pop=1,xx^p*EXP(cc*xx)/cc,IF(pop=2,(-1)*xx^p*(COS(cc*xx))/cc,xx^p*SIN(cc*xx)/cc)),Q23) -> 0.0007278208945 | R25: =IF(p=1,EXP(cc*xx)/cc^2-EXP(a*xx)/cc^2,IF(p=2,EXP(cc*xx)*(2*xx/cc^2-1/cc^3)-EXP(a*cc)*(2*a/cc^2-1/cc^3),EXP(cc*xx)*(-3*xx^2/cc^2+6*xx/cc^3-3/cc^4))-EXP(cc*a)*(-3*a^2/cc^2+6*a/cc^3-3/cc^4)) -> 0.07042395134 | S25: =IF(p=1,(SIN(cc*xx))/cc^2-SIN(a*cc)/cc^2,IF(p=2, 2*xx/cc^2*SIN(cc*xx)+2/cc^3*COS(cc*xx)- 2*a/cc^2*SIN(cc*a)+2/cc^3*COS(cc*a), 6*xx/cc^3*COS(cc*xx)+3/cc^4*(cc^2*xx^2-2)*SIN(cc*xx) - 6*a/cc^3*COS(cc*xx)+3/cc^4*(cc^2*a^2-2)*SIN(cc*a) )) -> 0.00217315795 | T25: =IF(p=1,COS(cc*xx)/cc^2-COS(cc*a)/cc^2, IF(p=2,(-2/cc^3*SIN(cc*xx)+2*xx/cc^2*COS(cc*xx)+2/cc^3*SIN(cc*a) -2*a/cc^2*COS(cc*a)), (-6*xx/cc^3*SIN(cc*xx)+(3*xx^2/cc^2-6/cc^4)*COS(cc*xx) +6*a/cc^3*SIN(cc*a)-(3*a^2/cc^2-6/cc^4)*COS(cc*a))) ) -> -0.0005492014851 | U25: =IF(xx<=x0,(-1)*IF(pop=1,R25,IF(pop=2,S25,T25)),U23) -> 0.0005492014851 | V25: =IF(xx<=x0,Q25-U25,V23) -> 0.0001786194094
A26: Fourth graph | C26: 0.36 | D26: 0.0350762481 | E26: 0.003500960579 | F26: 0.01538212563 | G26: 0.1572998318 | H26: 0.01981048499 | I26: -0.01188549299 | J26: 0.01188549299 | K26: 0.00349663264 | M26: =M24+dx -> 0.18 | N26: 0 | O26: =IF(xx<=x0,O24+dx,O24) -> 0.18 | P26: =N26 -> 0 | Q26: 0 | R26: 0 | S26: 0 | T26: 0 | U26: 0 | V26: 0
A27: =x0 -> 2.58 | B27: 0 | C27: 0.375 | D27: 0.03858515519 | E27: 0.004053421104 | F27: 0.01797289699 | G27: 0.1626914061 | H27: 0.02206454733 | I27: -0.0139239167 | J27: 0.0139239167 | K27: 0.004048980298 | M27: =M26 -> 0.18 | N27: =IF(pop=1,xx^p*EXP(cc*xx),IF(pop=2,xx^p*SIN(cc*xx),xx^p*COS(cc*xx))) -> 0.005458150276 | O27: =O26 -> 0.18 | P27: =IF(xx<=x0,IF(pop=1,xx^p*EXP(cc*xx),IF(pop=2,xx^p*SIN(cc*xx),xx^p*COS(cc*xx))),P25) -> 0.005458150276 | Q27: =IF(xx<=x0,IF(pop=1,xx^p*EXP(cc*xx)/cc,IF(pop=2,(-1)*xx^p*(COS(cc*xx))/cc,xx^p*SIN(cc*xx)/cc)),Q25) -> 0.001027231664 | R27: =IF(p=1,EXP(cc*xx)/cc^2-EXP(a*xx)/cc^2,IF(p=2,EXP(cc*xx)*(2*xx/cc^2-1/cc^3)-EXP(a*cc)*(2*a/cc^2-1/cc^3),EXP(cc*xx)*(-3*xx^2/cc^2+6*xx/cc^3-3/cc^4))-EXP(cc*a)*(-3*a^2/cc^2+6*a/cc^3-3/cc^4)) -> 0.07742030096 | S27: =IF(p=1,(SIN(cc*xx))/cc^2-SIN(a*cc)/cc^2,IF(p=2, 2*xx/cc^2*SIN(cc*xx)+2/cc^3*COS(cc*xx)- 2*a/cc^2*SIN(cc*a)+2/cc^3*COS(cc*a), 6*xx/cc^3*COS(cc*xx)+3/cc^4*(cc^2*xx^2-2)*SIN(cc*xx) - 6*a/cc^3*COS(cc*xx)+3/cc^4*(cc^2*a^2-2)*SIN(cc*a) )) -> 0.002803497587 | T27: =IF(p=1,COS(cc*xx)/cc^2-COS(cc*a)/cc^2, IF(p=2,(-2/cc^3*SIN(cc*xx)+2*xx/cc^2*COS(cc*xx)+2/cc^3*SIN(cc*a) -2*a/cc^2*COS(cc*a)), (-6*xx/cc^3*SIN(cc*xx)+(3*xx^2/cc^2-6/cc^4)*COS(cc*xx) +6*a/cc^3*SIN(cc*a)-(3*a^2/cc^2-6/cc^4)*COS(cc*a))) ) -> -0.000776037556 | U27: =IF(xx<=x0,(-1)*IF(pop=1,R27,IF(pop=2,S27,T27)),U25) -> 0.000776037556 | V27: =IF(xx<=x0,Q27-U27,V25) -> 0.0002511941082
A28: =x0 -> 2.58 | B28: =LOOKUP(x0+dx/2,C$2:C$202,J$2:J$202) -> -4.117799006 | C28: 0.39 | D28: 0.04217068016 | E28: 0.004659089869 | F28: 0.02085891593 | G28: 0.1677031392 | H28: 0.02443902741 | I28: -0.01620434502 | J28: 0.01620434502 | K28: 0.004654570912 | M28: =M26+dx -> 0.195 | N28: 0 | O28: =IF(xx<=x0,O26+dx,O26) -> 0.195 | P28: =N28 -> 0 | Q28: 0 | R28: 0 | S28: 0 | T28: 0 | U28: 0 | V28: 0
C29: 0.405 | D29: 0.04580346709 | E29: 0.005318895974 | F29: 0.02405724376 | G29: 0.1722844728 | H29: 0.02692836145 | I29: -0.01874290622 | J29: 0.01874290622 | K29: 0.005314337541 | M29: =M28 -> 0.195 | N29: =IF(pop=1,xx^p*EXP(cc*xx),IF(pop=2,xx^p*SIN(cc*xx),xx^p*COS(cc*xx))) -> 0.006858085065 | O29: =O28 -> 0.195 | P29: =IF(xx<=x0,IF(pop=1,xx^p*EXP(cc*xx),IF(pop=2,xx^p*SIN(cc*xx),xx^p*COS(cc*xx))),P27) -> 0.006858085065 | Q29: =IF(xx<=x0,IF(pop=1,xx^p*EXP(cc*xx)/cc,IF(pop=2,(-1)*xx^p*(COS(cc*xx))/cc,xx^p*SIN(cc*xx)/cc)),Q27) -> 0.001409524787 | R29: =IF(p=1,EXP(cc*xx)/cc^2-EXP(a*xx)/cc^2,IF(p=2,EXP(cc*xx)*(2*xx/cc^2-1/cc^3)-EXP(a*cc)*(2*a/cc^2-1/cc^3),EXP(cc*xx)*(-3*xx^2/cc^2+6*xx/cc^3-3/cc^4))-EXP(cc*a)*(-3*a^2/cc^2+6*a/cc^3-3/cc^4)) -> 0.08445289624 | S29: =IF(p=1,(SIN(cc*xx))/cc^2-SIN(a*cc)/cc^2,IF(p=2, 2*xx/cc^2*SIN(cc*xx)+2/cc^3*COS(cc*xx)- 2*a/cc^2*SIN(cc*a)+2/cc^3*COS(cc*a), 6*xx/cc^3*COS(cc*xx)+3/cc^4*(cc^2*xx^2-2)*SIN(cc*xx) - 6*a/cc^3*COS(cc*xx)+3/cc^4*(cc^2*a^2-2)*SIN(cc*a) )) -> 0.003539792697 | T29: =IF(p=1,COS(cc*xx)/cc^2-COS(cc*a)/cc^2, IF(p=2,(-2/cc^3*SIN(cc*xx)+2*xx/cc^2*COS(cc*xx)+2/cc^3*SIN(cc*a) -2*a/cc^2*COS(cc*a)), (-6*xx/cc^3*SIN(cc*xx)+(3*xx^2/cc^2-6/cc^4)*COS(cc*xx) +6*a/cc^3*SIN(cc*a)-(3*a^2/cc^2-6/cc^4)*COS(cc*a))) ) -> -0.001066202907 | U29: =IF(xx<=x0,(-1)*IF(pop=1,R29,IF(pop=2,S29,T29)),U27) -> 0.001066202907 | V29: =IF(xx<=x0,Q29-U29,V27) -> 0.0003433218798
A30: Fifth graph | C30: 0.42 | D30: 0.04945098584 | E30: 0.006033304371 | F30: 0.02758455974 | G30: 0.1763814385 | H30: 0.02952590492 | I30: -0.02155581062 | J30: 0.02155581062 | K30: 0.006028749114 | M30: =M28+dx -> 0.21 | N30: 0 | O30: =IF(xx<=x0,O28+dx,O28) -> 0.21 | P30: =N30 -> 0 | Q30: 0 | R30: 0 | S30: 0 | T30: 0 | U30: 0 | V30: 0
A31: =x0 -> 2.58 | B31: 0 | C31: 0.435 | D31: 0.05307752698 | E31: 0.006802268217 | F31: 0.03145705613 | G31: 0.1799364762 | H31: 0.03222391698 | I31: -0.02465929337 | J31: 0.02465929337 | K31: 0.006797762758 | M31: =M30 -> 0.21 | N31: =IF(pop=1,xx^p*EXP(cc*xx),IF(pop=2,xx^p*SIN(cc*xx),xx^p*COS(cc*xx))) -> 0.008456116676 | O31: =O30 -> 0.21 | P31: =IF(xx<=x0,IF(pop=1,xx^p*EXP(cc*xx),IF(pop=2,xx^p*SIN(cc*xx),xx^p*COS(cc*xx))),P29) -> 0.008456116676 | Q31: =IF(xx<=x0,IF(pop=1,xx^p*EXP(cc*xx)/cc,IF(pop=2,(-1)*xx^p*(COS(cc*xx))/cc,xx^p*SIN(cc*xx)/cc)),Q29) -> 0.001888134778 | R31: =IF(p=1,EXP(cc*xx)/cc^2-EXP(a*xx)/cc^2,IF(p=2,EXP(cc*xx)*(2*xx/cc^2-1/cc^3)-EXP(a*cc)*(2*a/cc^2-1/cc^3),EXP(cc*xx)*(-3*xx^2/cc^2+6*xx/cc^3-3/cc^4))-EXP(cc*a)*(-3*a^2/cc^2+6*a/cc^3-3/cc^4)) -> 0.09150227488 | S31: =IF(p=1,(SIN(cc*xx))/cc^2-SIN(a*cc)/cc^2,IF(p=2, 2*xx/cc^2*SIN(cc*xx)+2/cc^3*COS(cc*xx)- 2*a/cc^2*SIN(cc*a)+2/cc^3*COS(cc*a), 6*xx/cc^3*COS(cc*xx)+3/cc^4*(cc^2*xx^2-2)*SIN(cc*xx) - 6*a/cc^3*COS(cc*xx)+3/cc^4*(cc^2*a^2-2)*SIN(cc*a) )) -> 0.004388015187 | T31: =IF(p=1,COS(cc*xx)/cc^2-COS(cc*a)/cc^2, IF(p=2,(-2/cc^3*SIN(cc*xx)+2*xx/cc^2*COS(cc*xx)+2/cc^3*SIN(cc*a) -2*a/cc^2*COS(cc*a)), (-6*xx/cc^3*SIN(cc*xx)+(3*xx^2/cc^2-6/cc^4)*COS(cc*xx) +6*a/cc^3*SIN(cc*a)-(3*a^2/cc^2-6/cc^4)*COS(cc*a))) ) -> -0.001430207273 | U31: =IF(xx<=x0,(-1)*IF(pop=1,R31,IF(pop=2,S31,T31)),U29) -> 0.001430207273 | V31: =IF(xx<=x0,Q31-U31,V29) -> 0.0004579275047
A32: =x0 -> 2.58 | B32: =LOOKUP(x0+dx/2,C$2:C$202,K$2:K$202) -> -3.623021186 | C32: 0.45 | D32: 0.05664420836 | E32: 0.007625181232 | F32: 0.03569033232 | G32: 0.1828882442 | H32: 0.03501354758 | I32: -0.02806955617 | J32: 0.02806955617 | K32: 0.00762077615 | M32: =M30+dx -> 0.225 | N32: 0 | O32: =IF(xx<=x0,O30+dx,O30) -> 0.225 | P32: =N32 -> 0 | Q32: 0 | R32: 0 | S32: 0 | T32: 0 | U32: 0 | V32: 0
C33: 0.465 | D33: 0.06010899356 | E33: 0.008500830246 | F33: 0.04029928817 | G33: 0.1851714197 | H33: 0.03788482728 | I33: -0.03180270813 | J33: 0.03180270813 | K33: 0.008496580048 | M33: =M32 -> 0.225 | N33: =IF(pop=1,xx^p*EXP(cc*xx),IF(pop=2,xx^p*SIN(cc*xx),xx^p*COS(cc*xx))) -> 0.01025665528 | O33: =O32 -> 0.225 | P33: =IF(xx<=x0,IF(pop=1,xx^p*EXP(cc*xx),IF(pop=2,xx^p*SIN(cc*xx),xx^p*COS(cc*xx))),P31) -> 0.01025665528 | Q33: =IF(xx<=x0,IF(pop=1,xx^p*EXP(cc*xx)/cc,IF(pop=2,(-1)*xx^p*(COS(cc*xx))/cc,xx^p*SIN(cc*xx)/cc)),Q31) -> 0.002477264643 | R33: =IF(p=1,EXP(cc*xx)/cc^2-EXP(a*xx)/cc^2,IF(p=2,EXP(cc*xx)*(2*xx/cc^2-1/cc^3)-EXP(a*cc)*(2*a/cc^2-1/cc^3),EXP(cc*xx)*(-3*xx^2/cc^2+6*xx/cc^3-3/cc^4))-EXP(cc*a)*(-3*a^2/cc^2+6*a/cc^3-3/cc^4)) -> 0.09854729323 | S33: =IF(p=1,(SIN(cc*xx))/cc^2-SIN(a*cc)/cc^2,IF(p=2, 2*xx/cc^2*SIN(cc*xx)+2/cc^3*COS(cc*xx)- 2*a/cc^2*SIN(cc*a)+2/cc^3*COS(cc*a), 6*xx/cc^3*COS(cc*xx)+3/cc^4*(cc^2*xx^2-2)*SIN(cc*xx) - 6*a/cc^3*COS(cc*xx)+3/cc^4*(cc^2*a^2-2)*SIN(cc*a) )) -> 0.005353470854 | T33: =IF(p=1,COS(cc*xx)/cc^2-COS(cc*a)/cc^2, IF(p=2,(-2/cc^3*SIN(cc*xx)+2*xx/cc^2*COS(cc*xx)+2/cc^3*SIN(cc*a) -2*a/cc^2*COS(cc*a)), (-6*xx/cc^3*SIN(cc*xx)+(3*xx^2/cc^2-6/cc^4)*COS(cc*xx) +6*a/cc^3*SIN(cc*a)-(3*a^2/cc^2-6/cc^4)*COS(cc*a))) ) -> -0.001879246346 | U33: =IF(xx<=x0,(-1)*IF(pop=1,R33,IF(pop=2,S33,T33)),U31) -> 0.001879246346 | V33: =IF(xx<=x0,Q33-U33,V31) -> 0.0005980182974
A34: x-axis | C34: 0.48 | D34: 0.0634267223 | E34: 0.009427348115 | F34: 0.04529801696 | G34: 0.1867164911 | H34: 0.04082665988 | I34: -0.03587470577 | J34: 0.03587470577 | K34: 0.009423311189 | M34: =M32+dx -> 0.24 | N34: 0 | O34: =IF(xx<=x0,O32+dx,O32) -> 0.24 | P34: =N34 -> 0 | Q34: 0 | R34: 0 | S34: 0 | T34: 0 | U34: 0 | V34: 0
A35: =a -> 0 | B35: 0 | C35: =C34+dx -> 0.495 | D35: 0.06654915288 | E35: =E34+(D34+D35)*dx/2 -> 0.01040216718 | F35: 0.05069969819 | G35: 0.1874495394 | H35: 0.04382681782 | I35: -0.04030129246 | J35: =IF(pop=1,G35,IF(pop=2,H35,I35))*(-1) -> 0.04030129246 | K35: 0.01039840573 | M35: =M34 -> 0.24 | N35: =IF(pop=1,xx^p*EXP(cc*xx),IF(pop=2,xx^p*SIN(cc*xx),xx^p*COS(cc*xx))) -> 0.01226181781 | O35: =O34 -> 0.24 | P35: =IF(xx<=x0,IF(pop=1,xx^p*EXP(cc*xx),IF(pop=2,xx^p*SIN(cc*xx),xx^p*COS(cc*xx))),P33) -> 0.01226181781 | Q35: =IF(xx<=x0,IF(pop=1,xx^p*EXP(cc*xx)/cc,IF(pop=2,(-1)*xx^p*(COS(cc*xx))/cc,xx^p*SIN(cc*xx)/cc)),Q33) -> 0.003191817661 | R35: =IF(p=1,EXP(cc*xx)/cc^2-EXP(a*xx)/cc^2,IF(p=2,EXP(cc*xx)*(2*xx/cc^2-1/cc^3)-EXP(a*cc)*(2*a/cc^2-1/cc^3),EXP(cc*xx)*(-3*xx^2/cc^2+6*xx/cc^3-3/cc^4))-EXP(cc*a)*(-3*a^2/cc^2+6*a/cc^3-3/cc^4)) -> 0.1055650278 | S35: =IF(p=1,(SIN(cc*xx))/cc^2-SIN(a*cc)/cc^2,IF(p=2, 2*xx/cc^2*SIN(cc*xx)+2/cc^3*COS(cc*xx)- 2*a/cc^2*SIN(cc*a)+2/cc^3*COS(cc*a), 6*xx/cc^3*COS(cc*xx)+3/cc^4*(cc^2*xx^2-2)*SIN(cc*xx) - 6*a/cc^3*COS(cc*xx)+3/cc^4*(cc^2*a^2-2)*SIN(cc*a) )) -> 0.006440755656 | T35: =IF(p=1,COS(cc*xx)/cc^2-COS(cc*a)/cc^2, IF(p=2,(-2/cc^3*SIN(cc*xx)+2*xx/cc^2*COS(cc*xx)+2/cc^3*SIN(cc*a) -2*a/cc^2*COS(cc*a)), (-6*xx/cc^3*SIN(cc*xx)+(3*xx^2/cc^2-6/cc^4)*COS(cc*xx) +6*a/cc^3*SIN(cc*a)-(3*a^2/cc^2-6/cc^4)*COS(cc*a))) ) -> -0.002425166976 | U35: =IF(xx<=x0,(-1)*IF(pop=1,R35,IF(pop=2,S35,T35)),U33) -> 0.002425166976 | V35: =IF(xx<=x0,Q35-U35,V33) -> 0.0007666506857
A36: =b -> 3 | B36: 0 | C36: 0.51 | D36: 0.0694250168 | E36: 0.01142197345 | F36: 0.05651649061 | G36: 0.1872920104 | H36: 0.0468719405 | I36: -0.04509793717 | J36: 0.04509793717 | K36: 0.01141855344 | M36: =M34+dx -> 0.255 | N36: 0 | O36: =IF(xx<=x0,O34+dx,O34) -> 0.255 | P36: =N36 -> 0 | Q36: 0 | R36: 0 | S36: 0 | T36: 0 | U36: 0 | V36: 0
C37: 0.525 | D37: 0.07200008554 | E37: 0.01248266172 | F37: 0.06275942572 | G37: 0.186160476 | H37: 0.04994753543 | I37: -0.05027977298 | J37: 0.05027977298 | K37: 0.01247965274 | M37: =M36 -> 0.255 | N37: =IF(pop=1,xx^p*EXP(cc*xx),IF(pop=2,xx^p*SIN(cc*xx),xx^p*COS(cc*xx))) -> 0.01447130396 | O37: =O36 -> 0.255 | P37: =IF(xx<=x0,IF(pop=1,xx^p*EXP(cc*xx),IF(pop=2,xx^p*SIN(cc*xx),xx^p*COS(cc*xx))),P35) -> 0.01447130396 | Q37: =IF(xx<=x0,IF(pop=1,xx^p*EXP(cc*xx)/cc,IF(pop=2,(-1)*xx^p*(COS(cc*xx))/cc,xx^p*SIN(cc*xx)/cc)),Q35) -> 0.004047324999 | R37: =IF(p=1,EXP(cc*xx)/cc^2-EXP(a*xx)/cc^2,IF(p=2,EXP(cc*xx)*(2*xx/cc^2-1/cc^3)-EXP(a*cc)*(2*a/cc^2-1/cc^3),EXP(cc*xx)*(-3*xx^2/cc^2+6*xx/cc^3-3/cc^4))-EXP(cc*a)*(-3*a^2/cc^2+6*a/cc^3-3/cc^4)) -> 0.112530672 | S37: =IF(p=1,(SIN(cc*xx))/cc^2-SIN(a*cc)/cc^2,IF(p=2, 2*xx/cc^2*SIN(cc*xx)+2/cc^3*COS(cc*xx)- 2*a/cc^2*SIN(cc*a)+2/cc^3*COS(cc*a), 6*xx/cc^3*COS(cc*xx)+3/cc^4*(cc^2*xx^2-2)*SIN(cc*xx) - 6*a/cc^3*COS(cc*xx)+3/cc^4*(cc^2*a^2-2)*SIN(cc*a) )) -> 0.007653713615 | T37: =IF(p=1,COS(cc*xx)/cc^2-COS(cc*a)/cc^2, IF(p=2,(-2/cc^3*SIN(cc*xx)+2*xx/cc^2*COS(cc*xx)+2/cc^3*SIN(cc*a) -2*a/cc^2*COS(cc*a)), (-6*xx/cc^3*SIN(cc*xx)+(3*xx^2/cc^2-6/cc^4)*COS(cc*xx) +6*a/cc^3*SIN(cc*a)-(3*a^2/cc^2-6/cc^4)*COS(cc*a))) ) -> -0.003080430126 | U37: =IF(xx<=x0,(-1)*IF(pop=1,R37,IF(pop=2,S37,T37)),U35) -> 0.003080430126 | V37: =IF(xx<=x0,Q37-U37,V35) -> 0.0009668948723
C38: 0.54 | D38: 0.07421724954 | E38: 0.01357929173 | F38: 0.06943830205 | G38: 0.1839663845 | H38: 0.05303798227 | I38: -0.05586153511 | J38: 0.05586153511 | K38: 0.01357676694 | M38: =M36+dx -> 0.27 | N38: 0 | O38: =IF(xx<=x0,O36+dx,O36) -> 0.27 | P38: =N38 -> 0 | Q38: 0 | R38: 0 | S38: 0 | T38: 0 | U38: 0 | V38: 0
C39: 0.555 | D39: 0.07601660935 | E39: 0.01470604567 | F39: 0.07656158057 | G39: 0.1806157994 | H39: 0.05612653996 | I39: -0.06185749892 | J39: 0.06185749892 | K39: 0.01470408165 | M39: =M38 -> 0.27 | N39: =IF(pop=1,xx^p*EXP(cc*xx),IF(pop=2,xx^p*SIN(cc*xx),xx^p*COS(cc*xx))) -> 0.01688227998 | O39: =O38 -> 0.27 | P39: =IF(xx<=x0,IF(pop=1,xx^p*EXP(cc*xx),IF(pop=2,xx^p*SIN(cc*xx),xx^p*COS(cc*xx))),P37) -> 0.01688227998 | Q39: =IF(xx<=x0,IF(pop=1,xx^p*EXP(cc*xx)/cc,IF(pop=2,(-1)*xx^p*(COS(cc*xx))/cc,xx^p*SIN(cc*xx)/cc)),Q37) -> 0.005059869362 | R39: =IF(p=1,EXP(cc*xx)/cc^2-EXP(a*xx)/cc^2,IF(p=2,EXP(cc*xx)*(2*xx/cc^2-1/cc^3)-EXP(a*cc)*(2*a/cc^2-1/cc^3),EXP(cc*xx)*(-3*xx^2/cc^2+6*xx/cc^3-3/cc^4))-EXP(cc*a)*(-3*a^2/cc^2+6*a/cc^3-3/cc^4)) -> 0.1194174277 | S39: =IF(p=1,(SIN(cc*xx))/cc^2-SIN(a*cc)/cc^2,IF(p=2, 2*xx/cc^2*SIN(cc*xx)+2/cc^3*COS(cc*xx)- 2*a/cc^2*SIN(cc*a)+2/cc^3*COS(cc*a), 6*xx/cc^3*COS(cc*xx)+3/cc^4*(cc^2*xx^2-2)*SIN(cc*xx) - 6*a/cc^3*COS(cc*xx)+3/cc^4*(cc^2*a^2-2)*SIN(cc*a) )) -> 0.00899539645 | T39: =IF(p=1,COS(cc*xx)/cc^2-COS(cc*a)/cc^2, IF(p=2,(-2/cc^3*SIN(cc*xx)+2*xx/cc^2*COS(cc*xx)+2/cc^3*SIN(cc*a) -2*a/cc^2*COS(cc*a)), (-6*xx/cc^3*SIN(cc*xx)+(3*xx^2/cc^2-6/cc^4)*COS(cc*xx) +6*a/cc^3*SIN(cc*a)-(3*a^2/cc^2-6/cc^4)*COS(cc*a))) ) -> -0.003858071668 | U39: =IF(xx<=x0,(-1)*IF(pop=1,R39,IF(pop=2,S39,T39)),U37) -> 0.003858071668 | V39: =IF(xx<=x0,Q39-U39,V37) -> 0.001201797694
C40: 0.57 | D40: 0.07733557897 | E40: 0.01585618709 | F40: 0.08413628152 | G40: 0.1760091263 | H40: 0.05919535656 | I40: -0.06828141782 | J40: 0.06828141782 | K40: 0.0158548637 | M40: =M38+dx -> 0.285 | N40: 0 | O40: =IF(xx<=x0,O38+dx,O38) -> 0.285 | P40: =N40 -> 0 | Q40: 0 | R40: 0 | S40: 0 | T40: 0 | U40: 0 | V40: 0
C41: 0.585 | D41: 0.07810900119 | E41: 0.01702202144 | F41: 0.09216788294 | G41: 0.1700408274 | H41: 0.06222548232 | I41: -0.07514646125 | J41: 0.07514646125 | K41: 0.01702142169 | M41: =M40 -> 0.285 | N41: =IF(pop=1,xx^p*EXP(cc*xx),IF(pop=2,xx^p*SIN(cc*xx),xx^p*COS(cc*xx))) -> 0.01948927091 | O41: =O40 -> 0.285 | P41: =IF(xx<=x0,IF(pop=1,xx^p*EXP(cc*xx),IF(pop=2,xx^p*SIN(cc*xx),xx^p*COS(cc*xx))),P39) -> 0.01948927091 | Q41: =IF(xx<=x0,IF(pop=1,xx^p*EXP(cc*xx)/cc,IF(pop=2,(-1)*xx^p*(COS(cc*xx))/cc,xx^p*SIN(cc*xx)/cc)),Q39) -> 0.006246004875 | R41: =IF(p=1,EXP(cc*xx)/cc^2-EXP(a*xx)/cc^2,IF(p=2,EXP(cc*xx)*(2*xx/cc^2-1/cc^3)-EXP(a*cc)*(2*a/cc^2-1/cc^3),EXP(cc*xx)*(-3*xx^2/cc^2+6*xx/cc^3-3/cc^4))-EXP(cc*a)*(-3*a^2/cc^2+6*a/cc^3-3/cc^4)) -> 0.1261963917 | S41: =IF(p=1,(SIN(cc*xx))/cc^2-SIN(a*cc)/cc^2,IF(p=2, 2*xx/cc^2*SIN(cc*xx)+2/cc^3*COS(cc*xx)- 2*a/cc^2*SIN(cc*a)+2/cc^3*COS(cc*a), 6*xx/cc^3*COS(cc*xx)+3/cc^4*(cc^2*xx^2-2)*SIN(cc*xx) - 6*a/cc^3*COS(cc*xx)+3/cc^4*(cc^2*a^2-2)*SIN(cc*a) )) -> 0.01046802503 | T41: =IF(p=1,COS(cc*xx)/cc^2-COS(cc*a)/cc^2, IF(p=2,(-2/cc^3*SIN(cc*xx)+2*xx/cc^2*COS(cc*xx)+2/cc^3*SIN(cc*a) -2*a/cc^2*COS(cc*a)), (-6*xx/cc^3*SIN(cc*xx)+(3*xx^2/cc^2-6/cc^4)*COS(cc*xx) +6*a/cc^3*SIN(cc*a)-(3*a^2/cc^2-6/cc^4)*COS(cc*a))) ) -> -0.004771661072 | U41: =IF(xx<=x0,(-1)*IF(pop=1,R41,IF(pop=2,S41,T41)),U39) -> 0.004771661072 | V41: =IF(xx<=x0,Q41-U41,V39) -> 0.001474343803
C42: 0.6 | D42: 0.07826927497 | E42: 0.01819485851 | F42: 0.1006602213 | G42: 0.1625991231 | H42: 0.06519688549 | I42: -0.08246515291 | J42: 0.08246515291 | K42: 0.01819506838 | M42: =M40+dx -> 0.3 | N42: 0 | O42: =IF(xx<=x0,O40+dx,O40) -> 0.3 | P42: =N42 -> 0 | Q42: 0 | R42: 0 | S42: 0 | T42: 0 | U42: 0 | V42: 0
C43: 0.615 | D43: 0.07774649457 | E43: 0.01936497678 | F43: 0.1096153943 | G43: 0.1535656795 | H43: 0.06808847124 | I43: -0.09024930931 | J43: 0.09024930931 | K43: 0.01936608503 | M43: =M42 -> 0.3 | N43: =IF(pop=1,xx^p*EXP(cc*xx),IF(pop=2,xx^p*SIN(cc*xx),xx^p*COS(cc*xx))) -> 0.0222840616 | O43: =O42 -> 0.3 | P43: =IF(xx<=x0,IF(pop=1,xx^p*EXP(cc*xx),IF(pop=2,xx^p*SIN(cc*xx),xx^p*COS(cc*xx))),P41) -> 0.0222840616 | Q43: =IF(xx<=x0,IF(pop=1,xx^p*EXP(cc*xx)/cc,IF(pop=2,(-1)*xx^p*(COS(cc*xx))/cc,xx^p*SIN(cc*xx)/cc)),Q41) -> 0.007622673391 | R43: =IF(p=1,EXP(cc*xx)/cc^2-EXP(a*xx)/cc^2,IF(p=2,EXP(cc*xx)*(2*xx/cc^2-1/cc^3)-EXP(a*cc)*(2*a/cc^2-1/cc^3),EXP(cc*xx)*(-3*xx^2/cc^2+6*xx/cc^3-3/cc^4))-EXP(cc*a)*(-3*a^2/cc^2+6*a/cc^3-3/cc^4)) -> 0.132836436 | S43: =IF(p=1,(SIN(cc*xx))/cc^2-SIN(a*cc)/cc^2,IF(p=2, 2*xx/cc^2*SIN(cc*xx)+2/cc^3*COS(cc*xx)- 2*a/cc^2*SIN(cc*a)+2/cc^3*COS(cc*a), 6*xx/cc^3*COS(cc*xx)+3/cc^4*(cc^2*xx^2-2)*SIN(cc*xx) - 6*a/cc^3*COS(cc*xx)+3/cc^4*(cc^2*a^2-2)*SIN(cc*a) )) -> 0.01207295279 | T43: =IF(p=1,COS(cc*xx)/cc^2-COS(cc*a)/cc^2, IF(p=2,(-2/cc^3*SIN(cc*xx)+2*xx/cc^2*COS(cc*xx)+2/cc^3*SIN(cc*a) -2*a/cc^2*COS(cc*a)), (-6*xx/cc^3*SIN(cc*xx)+(3*xx^2/cc^2-6/cc^4)*COS(cc*xx) +6*a/cc^3*SIN(cc*a)-(3*a^2/cc^2-6/cc^4)*COS(cc*a))) ) -> -0.005835258099 | U43: =IF(xx<=x0,(-1)*IF(pop=1,R43,IF(pop=2,S43,T43)),U41) -> 0.005835258099 | V43: =IF(xx<=x0,Q43-U43,V41) -> 0.001787415292
C44: 0.63 | D44: 0.07646860049 | E44: 0.02052158999 | F44: 0.1190336668 | G44: 0.1428152826 | H44: 0.07087810355 | I44: -0.09850997884 | J44: 0.09850997884 | K44: 0.02052368798 | M44: =M42+dx -> 0.315 | N44: 0 | O44: =IF(xx<=x0,O42+dx,O42) -> 0.315 | P44: =N44 -> 0 | Q44: 0 | R44: 0 | S44: 0 | T44: 0 | U44: 0 | V44: 0
C45: 0.645 | D45: 0.07436154177 | E45: 0.02165281606 | F45: 0.1289133789 | G45: 0.130215497 | H45: 0.07354262992 | I45: -0.1072573814 | J45: 0.1072573814 | K45: 0.02165599752 | M45: =M44 -> 0.315 | N45: =IF(pop=1,xx^p*EXP(cc*xx),IF(pop=2,xx^p*SIN(cc*xx),xx^p*COS(cc*xx))) -> 0.0252556068 | O45: =O44 -> 0.315 | P45: =IF(xx<=x0,IF(pop=1,xx^p*EXP(cc*xx),IF(pop=2,xx^p*SIN(cc*xx),xx^p*COS(cc*xx))),P43) -> 0.0252556068 | Q45: =IF(xx<=x0,IF(pop=1,xx^p*EXP(cc*xx)/cc,IF(pop=2,(-1)*xx^p*(COS(cc*xx))/cc,xx^p*SIN(cc*xx)/cc)),Q43) -> 0.009207117456 | R45: =IF(p=1,EXP(cc*xx)/cc^2-EXP(a*xx)/cc^2,IF(p=2,EXP(cc*xx)*(2*xx/cc^2-1/cc^3)-EXP(a*cc)*(2*a/cc^2-1/cc^3),EXP(cc*xx)*(-3*xx^2/cc^2+6*xx/cc^3-3/cc^4))-EXP(cc*a)*(-3*a^2/cc^2+6*a/cc^3-3/cc^4)) -> 0.1393040834 | S45: =IF(p=1,(SIN(cc*xx))/cc^2-SIN(a*cc)/cc^2,IF(p=2, 2*xx/cc^2*SIN(cc*xx)+2/cc^3*COS(cc*xx)- 2*a/cc^2*SIN(cc*a)+2/cc^3*COS(cc*a), 6*xx/cc^3*COS(cc*xx)+3/cc^4*(cc^2*xx^2-2)*SIN(cc*xx) - 6*a/cc^3*COS(cc*xx)+3/cc^4*(cc^2*a^2-2)*SIN(cc*a) )) -> 0.01381063107 | T45: =IF(p=1,COS(cc*xx)/cc^2-COS(cc*a)/cc^2, IF(p=2,(-2/cc^3*SIN(cc*xx)+2*xx/cc^2*COS(cc*xx)+2/cc^3*SIN(cc*a) -2*a/cc^2*COS(cc*a)), (-6*xx/cc^3*SIN(cc*xx)+(3*xx^2/cc^2-6/cc^4)*COS(cc*xx) +6*a/cc^3*SIN(cc*a)-(3*a^2/cc^2-6/cc^4)*COS(cc*a))) ) -> -0.007063367547 | U45: =IF(xx<=x0,(-1)*IF(pop=1,R45,IF(pop=2,S45,T45)),U43) -> 0.007063367547 | V45: =IF(xx<=x0,Q45-U45,V43) -> 0.002143749909
C46: 0.66 | D46: 0.07134944965 | E46: 0.0227456485 | F46: 0.1392508582 | G46: 0.1156263096 | H46: 0.07605790923 | I46: -0.1165008489 | J46: 0.1165008489 | K46: 0.02275000934 | M46: =M44+dx -> 0.33 | N46: 0 | O46: =IF(xx<=x0,O44+dx,O44) -> 0.33 | P46: =N46 -> 0 | Q46: 0 | R46: 0 | S46: 0 | T46: 0 | U46: 0 | V46: 0
C47: 0.675 | D47: 0.06735482222 | E47: 0.02378593053 | F47: 0.1500403348 | G47: 0.09889975734 | H47: 0.07839884234 | I47: -0.1262487662 | J47: 0.1262487662 | K47: 0.02379156858 | M47: =M46 -> 0.33 | N47: =IF(pop=1,xx^p*EXP(cc*xx),IF(pop=2,xx^p*SIN(cc*xx),xx^p*COS(cc*xx))) -> 0.02838995082 | O47: =O46 -> 0.33 | P47: =IF(xx<=x0,IF(pop=1,xx^p*EXP(cc*xx),IF(pop=2,xx^p*SIN(cc*xx),xx^p*COS(cc*xx))),P45) -> 0.02838995082 | Q47: =IF(xx<=x0,IF(pop=1,xx^p*EXP(cc*xx)/cc,IF(pop=2,(-1)*xx^p*(COS(cc*xx))/cc,xx^p*SIN(cc*xx)/cc)),Q45) -> 0.01101679015 | R47: =IF(p=1,EXP(cc*xx)/cc^2-EXP(a*xx)/cc^2,IF(p=2,EXP(cc*xx)*(2*xx/cc^2-1/cc^3)-EXP(a*cc)*(2*a/cc^2-1/cc^3),EXP(cc*xx)*(-3*xx^2/cc^2+6*xx/cc^3-3/cc^4))-EXP(cc*a)*(-3*a^2/cc^2+6*a/cc^3-3/cc^4)) -> 0.1455633762 | S47: =IF(p=1,(SIN(cc*xx))/cc^2-SIN(a*cc)/cc^2,IF(p=2, 2*xx/cc^2*SIN(cc*xx)+2/cc^3*COS(cc*xx)- 2*a/cc^2*SIN(cc*a)+2/cc^3*COS(cc*a), 6*xx/cc^3*COS(cc*xx)+3/cc^4*(cc^2*xx^2-2)*SIN(cc*xx) - 6*a/cc^3*COS(cc*xx)+3/cc^4*(cc^2*a^2-2)*SIN(cc*a) )) -> 0.01568057669 | T47: =IF(p=1,COS(cc*xx)/cc^2-COS(cc*a)/cc^2, IF(p=2,(-2/cc^3*SIN(cc*xx)+2*xx/cc^2*COS(cc*xx)+2/cc^3*SIN(cc*a) -2*a/cc^2*COS(cc*a)), (-6*xx/cc^3*SIN(cc*xx)+(3*xx^2/cc^2-6/cc^4)*COS(cc*xx) +6*a/cc^3*SIN(cc*a)-(3*a^2/cc^2-6/cc^4)*COS(cc*a))) ) -> -0.008470892167 | U47: =IF(xx<=x0,(-1)*IF(pop=1,R47,IF(pop=2,S47,T47)),U45) -> 0.008470892167 | V47: =IF(xx<=x0,Q47-U47,V45) -> 0.002545897987
C48: 0.69 | D48: 0.06229871985 | E48: 0.0247583321 | F48: 0.1612738607 | G48: 0.07987953844 | H48: 0.08053940566 | I48: -0.1365085139 | J48: 0.1365085139 | K48: 0.02476534684 | M48: =M46+dx -> 0.345 | N48: 0 | O48: =IF(xx<=x0,O46+dx,O46) -> 0.345 | P48: =N48 -> 0 | Q48: 0 | R48: 0 | S48: 0 | T48: 0 | U48: 0 | V48: 0
C49: 0.705 | D49: 0.05610097104 | E49: 0.02564632978 | F49: 0.1729412333 | G49: 0.05840060561 | H49: 0.08245268763 | I49: -0.1472864112 | J49: 0.1472864112 | K49: 0.02565482211 | M49: =M48 -> 0.345 | N49: =IF(pop=1,xx^p*EXP(cc*xx),IF(pop=2,xx^p*SIN(cc*xx),xx^p*COS(cc*xx))) -> 0.03167015714 | O49: =O48 -> 0.345 | P49: =IF(xx<=x0,IF(pop=1,xx^p*EXP(cc*xx),IF(pop=2,xx^p*SIN(cc*xx),xx^p*COS(cc*xx))),P47) -> 0.03167015714 | Q49: =IF(xx<=x0,IF(pop=1,xx^p*EXP(cc*xx)/cc,IF(pop=2,(-1)*xx^p*(COS(cc*xx))/cc,xx^p*SIN(cc*xx)/cc)),Q47) -> 0.01306926207 | R49: =IF(p=1,EXP(cc*xx)/cc^2-EXP(a*xx)/cc^2,IF(p=2,EXP(cc*xx)*(2*xx/cc^2-1/cc^3)-EXP(a*cc)*(2*a/cc^2-1/cc^3),EXP(cc*xx)*(-3*xx^2/cc^2+6*xx/cc^3-3/cc^4))-EXP(cc*a)*(-3*a^2/cc^2+6*a/cc^3-3/cc^4)) -> 0.1515757382 | S49: =IF(p=1,(SIN(cc*xx))/cc^2-SIN(a*cc)/cc^2,IF(p=2, 2*xx/cc^2*SIN(cc*xx)+2/cc^3*COS(cc*xx)- 2*a/cc^2*SIN(cc*a)+2/cc^3*COS(cc*a), 6*xx/cc^3*COS(cc*xx)+3/cc^4*(cc^2*xx^2-2)*SIN(cc*xx) - 6*a/cc^3*COS(cc*xx)+3/cc^4*(cc^2*a^2-2)*SIN(cc*a) )) -> 0.01768134163 | T49: =IF(p=1,COS(cc*xx)/cc^2-COS(cc*a)/cc^2, IF(p=2,(-2/cc^3*SIN(cc*xx)+2*xx/cc^2*COS(cc*xx)+2/cc^3*SIN(cc*a) -2*a/cc^2*COS(cc*a)), (-6*xx/cc^3*SIN(cc*xx)+(3*xx^2/cc^2-6/cc^4)*COS(cc*xx) +6*a/cc^3*SIN(cc*a)-(3*a^2/cc^2-6/cc^4)*COS(cc*a))) ) -> -0.01007308382 | U49: =IF(xx<=x0,(-1)*IF(pop=1,R49,IF(pop=2,S49,T49)),U47) -> 0.01007308382 | V49: =IF(xx<=x0,Q49-U49,V47) -> 0.002996178252
C50: 0.72 | D50: 0.04868038844 | E50: 0.02643218998 | F50: 0.1850299228 | G50: 0.03428874184 | H50: 0.08411092792 | I50: -0.1585876608 | J50: 0.1585876608 | K50: 0.02644226193 | M50: =M48+dx -> 0.36 | N50: 0 | O50: =IF(xx<=x0,O48+dx,O48) -> 0.36 | P50: =N50 -> 0 | Q50: 0 | R50: 0 | S50: 0 | T50: 0 | U50: 0 | V50: 0
C51: 0.735 | D51: 0.03995499456 | E51: 0.02709695535 | F51: 0.197525005 | G51: 0.007360117001 | H51: 0.08548555951 | I51: -0.1704162952 | J51: 0.1704162952 | K51: 0.0271087098 | M51: =M50 -> 0.36 | N51: =IF(pop=1,xx^p*EXP(cc*xx),IF(pop=2,xx^p*SIN(cc*xx),xx^p*COS(cc*xx))) -> 0.0350762481 | O51: =O50 -> 0.36 | P51: =IF(xx<=x0,IF(pop=1,xx^p*EXP(cc*xx),IF(pop=2,xx^p*SIN(cc*xx),xx^p*COS(cc*xx))),P49) -> 0.0350762481 | Q51: =IF(xx<=x0,IF(pop=1,xx^p*EXP(cc*xx)/cc,IF(pop=2,(-1)*xx^p*(COS(cc*xx))/cc,xx^p*SIN(cc*xx)/cc)),Q49) -> 0.01538212563 | R51: =IF(p=1,EXP(cc*xx)/cc^2-EXP(a*xx)/cc^2,IF(p=2,EXP(cc*xx)*(2*xx/cc^2-1/cc^3)-EXP(a*cc)*(2*a/cc^2-1/cc^3),EXP(cc*xx)*(-3*xx^2/cc^2+6*xx/cc^3-3/cc^4))-EXP(cc*a)*(-3*a^2/cc^2+6*a/cc^3-3/cc^4)) -> 0.1572998318 | S51: =IF(p=1,(SIN(cc*xx))/cc^2-SIN(a*cc)/cc^2,IF(p=2, 2*xx/cc^2*SIN(cc*xx)+2/cc^3*COS(cc*xx)- 2*a/cc^2*SIN(cc*a)+2/cc^3*COS(cc*a), 6*xx/cc^3*COS(cc*xx)+3/cc^4*(cc^2*xx^2-2)*SIN(cc*xx) - 6*a/cc^3*COS(cc*xx)+3/cc^4*(cc^2*a^2-2)*SIN(cc*a) )) -> 0.01981048499 | T51: =IF(p=1,COS(cc*xx)/cc^2-COS(cc*a)/cc^2, IF(p=2,(-2/cc^3*SIN(cc*xx)+2*xx/cc^2*COS(cc*xx)+2/cc^3*SIN(cc*a) -2*a/cc^2*COS(cc*a)), (-6*xx/cc^3*SIN(cc*xx)+(3*xx^2/cc^2-6/cc^4)*COS(cc*xx) +6*a/cc^3*SIN(cc*a)-(3*a^2/cc^2-6/cc^4)*COS(cc*a))) ) -> -0.01188549299 | U51: =IF(xx<=x0,(-1)*IF(pop=1,R51,IF(pop=2,S51,T51)),U49) -> 0.01188549299 | V51: =IF(xx<=x0,Q51-U51,V49) -> 0.00349663264
C52: 0.75 | D52: 0.02984225695 | E52: 0.02762043474 | F52: 0.2104090987 | G52: -0.02257917517 | H52: 0.08654725344 | I52: -0.1827751236 | J52: 0.1827751236 | K52: 0.0276339751 | M52: =M50+dx -> 0.375 | N52: 0 | O52: =IF(xx<=x0,O50+dx,O50) -> 0.375 | P52: =N52 -> 0 | Q52: 0 | R52: 0 | S52: 0 | T52: 0 | U52: 0 | V52: 0
C53: 0.765 | D53: 0.01825933228 | E53: 0.02798119666 | F53: 0.2236623082 | G53: -0.05573360051 | H53: 0.0872659663 | I53: -0.1956656817 | J53: 0.1956656817 | K53: 0.02799662658 | M53: =M52 -> 0.375 | N53: =IF(pop=1,xx^p*EXP(cc*xx),IF(pop=2,xx^p*SIN(cc*xx),xx^p*COS(cc*xx))) -> 0.03858515519 | O53: =O52 -> 0.375 | P53: =IF(xx<=x0,IF(pop=1,xx^p*EXP(cc*xx),IF(pop=2,xx^p*SIN(cc*xx),xx^p*COS(cc*xx))),P51) -> 0.03858515519 | Q53: =IF(xx<=x0,IF(pop=1,xx^p*EXP(cc*xx)/cc,IF(pop=2,(-1)*xx^p*(COS(cc*xx))/cc,xx^p*SIN(cc*xx)/cc)),Q51) -> 0.01797289699 | R53: =IF(p=1,EXP(cc*xx)/cc^2-EXP(a*xx)/cc^2,IF(p=2,EXP(cc*xx)*(2*xx/cc^2-1/cc^3)-EXP(a*cc)*(2*a/cc^2-1/cc^3),EXP(cc*xx)*(-3*xx^2/cc^2+6*xx/cc^3-3/cc^4))-EXP(cc*a)*(-3*a^2/cc^2+6*a/cc^3-3/cc^4)) -> 0.1626914061 | S53: =IF(p=1,(SIN(cc*xx))/cc^2-SIN(a*cc)/cc^2,IF(p=2, 2*xx/cc^2*SIN(cc*xx)+2/cc^3*COS(cc*xx)- 2*a/cc^2*SIN(cc*a)+2/cc^3*COS(cc*a), 6*xx/cc^3*COS(cc*xx)+3/cc^4*(cc^2*xx^2-2)*SIN(cc*xx) - 6*a/cc^3*COS(cc*xx)+3/cc^4*(cc^2*a^2-2)*SIN(cc*a) )) -> 0.02206454733 | T53: =IF(p=1,COS(cc*xx)/cc^2-COS(cc*a)/cc^2, IF(p=2,(-2/cc^3*SIN(cc*xx)+2*xx/cc^2*COS(cc*xx)+2/cc^3*SIN(cc*a) -2*a/cc^2*COS(cc*a)), (-6*xx/cc^3*SIN(cc*xx)+(3*xx^2/cc^2-6/cc^4)*COS(cc*xx) +6*a/cc^3*SIN(cc*a)-(3*a^2/cc^2-6/cc^4)*COS(cc*a))) ) -> -0.0139239167 | U53: =IF(xx<=x0,(-1)*IF(pop=1,R53,IF(pop=2,S53,T53)),U51) -> 0.0139239167 | V53: =IF(xx<=x0,Q53-U53,V51) -> 0.004048980298
C54: 0.78 | D54: 0.005123318942 | E54: 0.02815656654 | F54: 0.2372621716 | G54: -0.09231868921 | H54: 0.08761099033 | I54: -0.209088182 | J54: 0.209088182 | K54: 0.02817398959 | M54: =M52+dx -> 0.39 | N54: 0 | O54: =IF(xx<=x0,O52+dx,O52) -> 0.39 | P54: =N54 -> 0 | Q54: 0 | R54: 0 | S54: 0 | T54: 0 | U54: 0 | V54: 0
C55: 0.795 | D55: -0.009648482183 | E55: 0.02812262782 | F55: 0.2511836145 | G55: -0.1325615629 | H55: 0.08755100605 | I55: -0.2230414674 | J55: 0.2230414674 | K55: 0.02814214713 | M55: =M54 -> 0.39 | N55: =IF(pop=1,xx^p*EXP(cc*xx),IF(pop=2,xx^p*SIN(cc*xx),xx^p*COS(cc*xx))) -> 0.04217068016 | O55: =O54 -> 0.39 | P55: =IF(xx<=x0,IF(pop=1,xx^p*EXP(cc*xx),IF(pop=2,xx^p*SIN(cc*xx),xx^p*COS(cc*xx))),P53) -> 0.04217068016 | Q55: =IF(xx<=x0,IF(pop=1,xx^p*EXP(cc*xx)/cc,IF(pop=2,(-1)*xx^p*(COS(cc*xx))/cc,xx^p*SIN(cc*xx)/cc)),Q53) -> 0.02085891593 | R55: =IF(p=1,EXP(cc*xx)/cc^2-EXP(a*xx)/cc^2,IF(p=2,EXP(cc*xx)*(2*xx/cc^2-1/cc^3)-EXP(a*cc)*(2*a/cc^2-1/cc^3),EXP(cc*xx)*(-3*xx^2/cc^2+6*xx/cc^3-3/cc^4))-EXP(cc*a)*(-3*a^2/cc^2+6*a/cc^3-3/cc^4)) -> 0.1677031392 | S55: =IF(p=1,(SIN(cc*xx))/cc^2-SIN(a*cc)/cc^2,IF(p=2, 2*xx/cc^2*SIN(cc*xx)+2/cc^3*COS(cc*xx)- 2*a/cc^2*SIN(cc*a)+2/cc^3*COS(cc*a), 6*xx/cc^3*COS(cc*xx)+3/cc^4*(cc^2*xx^2-2)*SIN(cc*xx) - 6*a/cc^3*COS(cc*xx)+3/cc^4*(cc^2*a^2-2)*SIN(cc*a) )) -> 0.02443902741 | T55: =IF(p=1,COS(cc*xx)/cc^2-COS(cc*a)/cc^2, IF(p=2,(-2/cc^3*SIN(cc*xx)+2*xx/cc^2*COS(cc*xx)+2/cc^3*SIN(cc*a) -2*a/cc^2*COS(cc*a)), (-6*xx/cc^3*SIN(cc*xx)+(3*xx^2/cc^2-6/cc^4)*COS(cc*xx) +6*a/cc^3*SIN(cc*a)-(3*a^2/cc^2-6/cc^4)*COS(cc*a))) ) -> -0.01620434502 | U55: =IF(xx<=x0,(-1)*IF(pop=1,R55,IF(pop=2,S55,T55)),U53) -> 0.01620434502 | V55: =IF(xx<=x0,Q55-U55,V53) -> 0.004654570912
C56: 0.81 | D56: -0.0261382995 | E56: 0.02785422695 | F56: 0.26539891 | G56: -0.1767014846 | H56: 0.0870541374 | I56: -0.2375229651 | J56: 0.2375229651 | K56: 0.02787594492 | M56: =M54+dx -> 0.405 | N56: 0 | O56: =IF(xx<=x0,O54+dx,O54) -> 0.405 | P56: =N56 -> 0 | Q56: 0 | R56: 0 | S56: 0 | T56: 0 | U56: 0 | V56: 0
C57: 0.825 | D57: -0.04442761533 | E57: 0.02732498259 | F57: 0.2798776447 | G57: -0.2249904332 | H57: 0.08608800937 | I57: -0.2525286443 | J57: 0.2525286443 | K57: 0.02734900049 | M57: =M56 -> 0.405 | N57: =IF(pop=1,xx^p*EXP(cc*xx),IF(pop=2,xx^p*SIN(cc*xx),xx^p*COS(cc*xx))) -> 0.04580346709 | O57: =O56 -> 0.405 | P57: =IF(xx<=x0,IF(pop=1,xx^p*EXP(cc*xx),IF(pop=2,xx^p*SIN(cc*xx),xx^p*COS(cc*xx))),P55) -> 0.04580346709 | Q57: =IF(xx<=x0,IF(pop=1,xx^p*EXP(cc*xx)/cc,IF(pop=2,(-1)*xx^p*(COS(cc*xx))/cc,xx^p*SIN(cc*xx)/cc)),Q55) -> 0.02405724376 | R57: =IF(p=1,EXP(cc*xx)/cc^2-EXP(a*xx)/cc^2,IF(p=2,EXP(cc*xx)*(2*xx/cc^2-1/cc^3)-EXP(a*cc)*(2*a/cc^2-1/cc^3),EXP(cc*xx)*(-3*xx^2/cc^2+6*xx/cc^3-3/cc^4))-EXP(cc*a)*(-3*a^2/cc^2+6*a/cc^3-3/cc^4)) -> 0.1722844728 | S57: =IF(p=1,(SIN(cc*xx))/cc^2-SIN(a*cc)/cc^2,IF(p=2, 2*xx/cc^2*SIN(cc*xx)+2/cc^3*COS(cc*xx)- 2*a/cc^2*SIN(cc*a)+2/cc^3*COS(cc*a), 6*xx/cc^3*COS(cc*xx)+3/cc^4*(cc^2*xx^2-2)*SIN(cc*xx) - 6*a/cc^3*COS(cc*xx)+3/cc^4*(cc^2*a^2-2)*SIN(cc*a) )) -> 0.02692836145 | T57: =IF(p=1,COS(cc*xx)/cc^2-COS(cc*a)/cc^2, IF(p=2,(-2/cc^3*SIN(cc*xx)+2*xx/cc^2*COS(cc*xx)+2/cc^3*SIN(cc*a) -2*a/cc^2*COS(cc*a)), (-6*xx/cc^3*SIN(cc*xx)+(3*xx^2/cc^2-6/cc^4)*COS(cc*xx) +6*a/cc^3*SIN(cc*a)-(3*a^2/cc^2-6/cc^4)*COS(cc*a))) ) -> -0.01874290622 | U57: =IF(xx<=x0,(-1)*IF(pop=1,R57,IF(pop=2,S57,T57)),U55) -> 0.01874290622 | V57: =IF(xx<=x0,Q57-U57,V55) -> 0.005314337541
C58: 0.84 | D58: -0.064596884 | E58: 0.02650729885 | F58: 0.2945866911 | G58: -0.2776937027 | H58: 0.08461980787 | I58: -0.2680529746 | J58: 0.2680529746 | K58: 0.02653371648 | M58: =M56+dx -> 0.42 | N58: 0 | O58: =IF(xx<=x0,O56+dx,O56) -> 0.42 | P58: =N58 -> 0 | Q58: 0 | R58: 0 | S58: 0 | T58: 0 | U58: 0 | V58: 0
C59: 0.855 | D59: -0.086725244 | E59: 0.02537238289 | F59: 0.3094901862 | G59: -0.3350905277 | H59: 0.08261634191 | I59: -0.284088888 | J59: 0.284088888 | K59: 0.02540129824 | M59: =M58 -> 0.42 | N59: =IF(pop=1,xx^p*EXP(cc*xx),IF(pop=2,xx^p*SIN(cc*xx),xx^p*COS(cc*xx))) -> 0.04945098584 | O59: =O58 -> 0.42 | P59: =IF(xx<=x0,IF(pop=1,xx^p*EXP(cc*xx),IF(pop=2,xx^p*SIN(cc*xx),xx^p*COS(cc*xx))),P57) -> 0.04945098584 | Q59: =IF(xx<=x0,IF(pop=1,xx^p*EXP(cc*xx)/cc,IF(pop=2,(-1)*xx^p*(COS(cc*xx))/cc,xx^p*SIN(cc*xx)/cc)),Q57) -> 0.02758455974 | R59: =IF(p=1,EXP(cc*xx)/cc^2-EXP(a*xx)/cc^2,IF(p=2,EXP(cc*xx)*(2*xx/cc^2-1/cc^3)-EXP(a*cc)*(2*a/cc^2-1/cc^3),EXP(cc*xx)*(-3*xx^2/cc^2+6*xx/cc^3-3/cc^4))-EXP(cc*a)*(-3*a^2/cc^2+6*a/cc^3-3/cc^4)) -> 0.1763814385 | S59: =IF(p=1,(SIN(cc*xx))/cc^2-SIN(a*cc)/cc^2,IF(p=2, 2*xx/cc^2*SIN(cc*xx)+2/cc^3*COS(cc*xx)- 2*a/cc^2*SIN(cc*a)+2/cc^3*COS(cc*a), 6*xx/cc^3*COS(cc*xx)+3/cc^4*(cc^2*xx^2-2)*SIN(cc*xx) - 6*a/cc^3*COS(cc*xx)+3/cc^4*(cc^2*a^2-2)*SIN(cc*a) )) -> 0.02952590492 | T59: =IF(p=1,COS(cc*xx)/cc^2-COS(cc*a)/cc^2, IF(p=2,(-2/cc^3*SIN(cc*xx)+2*xx/cc^2*COS(cc*xx)+2/cc^3*SIN(cc*a) -2*a/cc^2*COS(cc*a)), (-6*xx/cc^3*SIN(cc*xx)+(3*xx^2/cc^2-6/cc^4)*COS(cc*xx) +6*a/cc^3*SIN(cc*a)-(3*a^2/cc^2-6/cc^4)*COS(cc*a))) ) -> -0.02155581062 | U59: =IF(xx<=x0,(-1)*IF(pop=1,R59,IF(pop=2,S59,T59)),U57) -> 0.02155581062 | V59: =IF(xx<=x0,Q59-U59,V57) -> 0.006028749114
C60: 0.87 | D60: -0.1108902247 | E60: 0.02389026687 | F60: 0.3245495182 | G60: -0.3974747359 | H60: 0.080044108 | I60: -0.3006277425 | J60: 0.3006277425 | K60: 0.02392177574 | M60: =M58+dx -> 0.435 | N60: 0 | O60: =IF(xx<=x0,O58+dx,O58) -> 0.435 | P60: =N60 -> 0 | Q60: 0 | R60: 0 | S60: 0 | T60: 0 | U60: 0 | V60: 0
C61: 0.885 | D61: -0.1371674481 | E61: 0.02202983433 | F61: 0.3397233184 | G61: -0.4651554296 | H61: 0.07686935653 | I61: -0.3176592885 | J61: 0.3176592885 | K61: 0.02206402992 | M61: =M60 -> 0.435 | N61: =IF(pop=1,xx^p*EXP(cc*xx),IF(pop=2,xx^p*SIN(cc*xx),xx^p*COS(cc*xx))) -> 0.05307752698 | O61: =O60 -> 0.435 | P61: =IF(xx<=x0,IF(pop=1,xx^p*EXP(cc*xx),IF(pop=2,xx^p*SIN(cc*xx),xx^p*COS(cc*xx))),P59) -> 0.05307752698 | Q61: =IF(xx<=x0,IF(pop=1,xx^p*EXP(cc*xx)/cc,IF(pop=2,(-1)*xx^p*(COS(cc*xx))/cc,xx^p*SIN(cc*xx)/cc)),Q59) -> 0.03145705613 | R61: =IF(p=1,EXP(cc*xx)/cc^2-EXP(a*xx)/cc^2,IF(p=2,EXP(cc*xx)*(2*xx/cc^2-1/cc^3)-EXP(a*cc)*(2*a/cc^2-1/cc^3),EXP(cc*xx)*(-3*xx^2/cc^2+6*xx/cc^3-3/cc^4))-EXP(cc*a)*(-3*a^2/cc^2+6*a/cc^3-3/cc^4)) -> 0.1799364762 | S61: =IF(p=1,(SIN(cc*xx))/cc^2-SIN(a*cc)/cc^2,IF(p=2, 2*xx/cc^2*SIN(cc*xx)+2/cc^3*COS(cc*xx)- 2*a/cc^2*SIN(cc*a)+2/cc^3*COS(cc*a), 6*xx/cc^3*COS(cc*xx)+3/cc^4*(cc^2*xx^2-2)*SIN(cc*xx) - 6*a/cc^3*COS(cc*xx)+3/cc^4*(cc^2*a^2-2)*SIN(cc*a) )) -> 0.03222391698 | T61: =IF(p=1,COS(cc*xx)/cc^2-COS(cc*a)/cc^2, IF(p=2,(-2/cc^3*SIN(cc*xx)+2*xx/cc^2*COS(cc*xx)+2/cc^3*SIN(cc*a) -2*a/cc^2*COS(cc*a)), (-6*xx/cc^3*SIN(cc*xx)+(3*xx^2/cc^2-6/cc^4)*COS(cc*xx) +6*a/cc^3*SIN(cc*a)-(3*a^2/cc^2-6/cc^4)*COS(cc*a))) ) -> -0.02465929337 | U61: =IF(xx<=x0,(-1)*IF(pop=1,R61,IF(pop=2,S61,T61)),U59) -> 0.02465929337 | V61: =IF(xx<=x0,Q61-U61,V59) -> 0.006797762758
C62: 0.9 | D62: -0.165630327 | E62: 0.01975885101 | F62: 0.3549674615 | G62: -0.5384576957 | H62: 0.07305816026 | I62: -0.3351716379 | J62: 0.3351716379 | K62: 0.0197958236 | M62: =M60+dx -> 0.45 | N62: 0 | O62: =IF(xx<=x0,O60+dx,O60) -> 0.45 | P62: =N62 -> 0 | Q62: 0 | R62: 0 | S62: 0 | T62: 0 | U62: 0 | V62: 0
C63: 0.915 | D63: -0.1963497586 | E63: 0.01704400037 | F63: 0.3702350728 | G63: -0.6177233473 | H63: 0.06857648457 | I63: -0.3531512359 | J63: 0.3531512359 | K63: 0.01708383687 | M63: =M62 -> 0.45 | N63: =IF(pop=1,xx^p*EXP(cc*xx),IF(pop=2,xx^p*SIN(cc*xx),xx^p*COS(cc*xx))) -> 0.05664420836 | O63: =O62 -> 0.45 | P63: =IF(xx<=x0,IF(pop=1,xx^p*EXP(cc*xx),IF(pop=2,xx^p*SIN(cc*xx),xx^p*COS(cc*xx))),P61) -> 0.05664420836 | Q63: =IF(xx<=x0,IF(pop=1,xx^p*EXP(cc*xx)/cc,IF(pop=2,(-1)*xx^p*(COS(cc*xx))/cc,xx^p*SIN(cc*xx)/cc)),Q61) -> 0.03569033232 | R63: =IF(p=1,EXP(cc*xx)/cc^2-EXP(a*xx)/cc^2,IF(p=2,EXP(cc*xx)*(2*xx/cc^2-1/cc^3)-EXP(a*cc)*(2*a/cc^2-1/cc^3),EXP(cc*xx)*(-3*xx^2/cc^2+6*xx/cc^3-3/cc^4))-EXP(cc*a)*(-3*a^2/cc^2+6*a/cc^3-3/cc^4)) -> 0.1828882442 | S63: =IF(p=1,(SIN(cc*xx))/cc^2-SIN(a*cc)/cc^2,IF(p=2, 2*xx/cc^2*SIN(cc*xx)+2/cc^3*COS(cc*xx)- 2*a/cc^2*SIN(cc*a)+2/cc^3*COS(cc*a), 6*xx/cc^3*COS(cc*xx)+3/cc^4*(cc^2*xx^2-2)*SIN(cc*xx) - 6*a/cc^3*COS(cc*xx)+3/cc^4*(cc^2*a^2-2)*SIN(cc*a) )) -> 0.03501354758 | T63: =IF(p=1,COS(cc*xx)/cc^2-COS(cc*a)/cc^2, IF(p=2,(-2/cc^3*SIN(cc*xx)+2*xx/cc^2*COS(cc*xx)+2/cc^3*SIN(cc*a) -2*a/cc^2*COS(cc*a)), (-6*xx/cc^3*SIN(cc*xx)+(3*xx^2/cc^2-6/cc^4)*COS(cc*xx) +6*a/cc^3*SIN(cc*a)-(3*a^2/cc^2-6/cc^4)*COS(cc*a))) ) -> -0.02806955617 | U63: =IF(xx<=x0,(-1)*IF(pop=1,R63,IF(pop=2,S63,T63)),U61) -> 0.02806955617 | V63: =IF(xx<=x0,Q63-U63,V61) -> 0.00762077615
C64: 0.93 | D64: -0.2293938161 | E64: 0.01385092356 | F64: 0.3854765429 | G64: -0.7033116968 | H64: 0.06339025957 | I64: -0.3715828357 | J64: 0.3715828357 | K64: 0.01389370719 | M64: =M62+dx -> 0.465 | N64: 0 | O64: =IF(xx<=x0,O62+dx,O62) -> 0.465 | P64: =N64 -> 0 | Q64: 0 | R64: 0 | S64: 0 | T64: 0 | U64: 0 | V64: 0
C65: 0.945 | D65: -0.2648274377 | E65: 0.01014426416 | F65: 0.4006395498 | G65: -0.7956003623 | H65: 0.05746545389 | I65: -0.3904494759 | J65: 0.3904494759 | K65: 0.01019007399 | M65: =M64 -> 0.465 | N65: =IF(pop=1,xx^p*EXP(cc*xx),IF(pop=2,xx^p*SIN(cc*xx),xx^p*COS(cc*xx))) -> 0.06010899356 | O65: =O64 -> 0.465 | P65: =IF(xx<=x0,IF(pop=1,xx^p*EXP(cc*xx),IF(pop=2,xx^p*SIN(cc*xx),xx^p*COS(cc*xx))),P63) -> 0.06010899356 | Q65: =IF(xx<=x0,IF(pop=1,xx^p*EXP(cc*xx)/cc,IF(pop=2,(-1)*xx^p*(COS(cc*xx))/cc,xx^p*SIN(cc*xx)/cc)),Q63) -> 0.04029928817 | R65: =IF(p=1,EXP(cc*xx)/cc^2-EXP(a*xx)/cc^2,IF(p=2,EXP(cc*xx)*(2*xx/cc^2-1/cc^3)-EXP(a*cc)*(2*a/cc^2-1/cc^3),EXP(cc*xx)*(-3*xx^2/cc^2+6*xx/cc^3-3/cc^4))-EXP(cc*a)*(-3*a^2/cc^2+6*a/cc^3-3/cc^4)) -> 0.1851714197 | S65: =IF(p=1,(SIN(cc*xx))/cc^2-SIN(a*cc)/cc^2,IF(p=2, 2*xx/cc^2*SIN(cc*xx)+2/cc^3*COS(cc*xx)- 2*a/cc^2*SIN(cc*a)+2/cc^3*COS(cc*a), 6*xx/cc^3*COS(cc*xx)+3/cc^4*(cc^2*xx^2-2)*SIN(cc*xx) - 6*a/cc^3*COS(cc*xx)+3/cc^4*(cc^2*a^2-2)*SIN(cc*a) )) -> 0.03788482728 | T65: =IF(p=1,COS(cc*xx)/cc^2-COS(cc*a)/cc^2, IF(p=2,(-2/cc^3*SIN(cc*xx)+2*xx/cc^2*COS(cc*xx)+2/cc^3*SIN(cc*a) -2*a/cc^2*COS(cc*a)), (-6*xx/cc^3*SIN(cc*xx)+(3*xx^2/cc^2-6/cc^4)*COS(cc*xx) +6*a/cc^3*SIN(cc*a)-(3*a^2/cc^2-6/cc^4)*COS(cc*a))) ) -> -0.03180270813 | U65: =IF(xx<=x0,(-1)*IF(pop=1,R65,IF(pop=2,S65,T65)),U63) -> 0.03180270813 | V65: =IF(xx<=x0,Q65-U65,V63) -> 0.008496580048
C66: 0.96 | D66: =IF(pop=1,x^p*EXP(cc*x),IF(pop=2,x^p*SIN(cc*x),x^p*COS(cc*x))) -> -0.3027121138 | E66: 0.00588771752 | F66: =IF(pop=1,x^p*EXP(cc*x)/cc,IF(pop=2,(-1)*x^p*(COS(cc*x))/cc,x^p*SIN(cc*x)/cc)) -> 0.4156690889 | G66: =IF(p=1,EXP(cc*x)/cc^2-EXP(a*x)/cc^2,IF(p=2,EXP(cc*x)*(2*x/cc^2-1/cc^3)-EXP(a*cc)*(2*a/cc^2-1/cc^3),EXP(cc*x)*(-3*x^2/cc^2+6*x/cc^3-3/cc^4))-EXP(cc*a)*(-3*a^2/cc^2+6*a/cc^3-3/cc^4)) -> -0.8949861091 | H66: =IF(p=1,(SIN(cc*x))/cc^2-SIN(a*cc)/cc^2,IF(p=2, 2*x/cc^2*SIN(cc*x)+2/cc^3*COS(cc*x)- 2*a/cc^2*SIN(cc*a)+2/cc^3*COS(cc*a), 6*x/cc^3*COS(cc*x)+3/cc^4*(cc^2*x^2-2)*SIN(cc*x) - 6*a/cc^3*COS(cc*x)+3/cc^4*(cc^2*a^2-2)*SIN(cc*a) )) -> 0.05076814995 | I66: =IF(p=1,COS(cc*x)/cc^2-COS(cc*a)/cc^2, IF(p=2,(-2/cc^3*SIN(cc*x)+2*x/cc^2*COS(cc*x)+2/cc^3*SIN(cc*a) -2*a/cc^2*COS(cc*a)), (-6*x/cc^3*SIN(cc*x)+(3*x^2/cc^2-6/cc^4)*COS(cc*x) +6*a/cc^3*SIN(cc*a)-(3*a^2/cc^2-6/cc^4)*COS(cc*a))) ) -> -0.4097324607 | J66: 0.4097324607 | K66: 0.005936628156 | M66: =M64+dx -> 0.48 | N66: 0 | O66: =IF(xx<=x0,O64+dx,O64) -> 0.48 | P66: =N66 -> 0 | Q66: 0 | R66: 0 | S66: 0 | T66: 0 | U66: 0 | V66: 0
C67: =C66+dx -> 0.975 | D67: -0.343105574 | E67: =E66+(D66+D67)*dx/2 -> 0.001044084862 | F67: 0.4305075104 | G67: -1.001885727 | H67: 0.04326462075 | I67: -0.4294113444 | J67: =IF(pop=1,G67,IF(pop=2,H67,I67))*(-1) -> 0.4294113444 | K67: =F67-J67 -> 0.001096165982 | M67: =M66 -> 0.48 | N67: =IF(pop=1,xx^p*EXP(cc*xx),IF(pop=2,xx^p*SIN(cc*xx),xx^p*COS(cc*xx))) -> 0.0634267223 | O67: =O66 -> 0.48 | P67: =IF(xx<=x0,IF(pop=1,xx^p*EXP(cc*xx),IF(pop=2,xx^p*SIN(cc*xx),xx^p*COS(cc*xx))),P65) -> 0.0634267223 | Q67: =IF(xx<=x0,IF(pop=1,xx^p*EXP(cc*xx)/cc,IF(pop=2,(-1)*xx^p*(COS(cc*xx))/cc,xx^p*SIN(cc*xx)/cc)),Q65) -> 0.04529801696 | R67: =IF(p=1,EXP(cc*xx)/cc^2-EXP(a*xx)/cc^2,IF(p=2,EXP(cc*xx)*(2*xx/cc^2-1/cc^3)-EXP(a*cc)*(2*a/cc^2-1/cc^3),EXP(cc*xx)*(-3*xx^2/cc^2+6*xx/cc^3-3/cc^4))-EXP(cc*a)*(-3*a^2/cc^2+6*a/cc^3-3/cc^4)) -> 0.1867164911 | S67: =IF(p=1,(SIN(cc*xx))/cc^2-SIN(a*cc)/cc^2,IF(p=2, 2*xx/cc^2*SIN(cc*xx)+2/cc^3*COS(cc*xx)- 2*a/cc^2*SIN(cc*a)+2/cc^3*COS(cc*a), 6*xx/cc^3*COS(cc*xx)+3/cc^4*(cc^2*xx^2-2)*SIN(cc*xx) - 6*a/cc^3*COS(cc*xx)+3/cc^4*(cc^2*a^2-2)*SIN(cc*a) )) -> 0.04082665988 | T67: =IF(p=1,COS(cc*xx)/cc^2-COS(cc*a)/cc^2, IF(p=2,(-2/cc^3*SIN(cc*xx)+2*xx/cc^2*COS(cc*xx)+2/cc^3*SIN(cc*a) -2*a/cc^2*COS(cc*a)), (-6*xx/cc^3*SIN(cc*xx)+(3*xx^2/cc^2-6/cc^4)*COS(cc*xx) +6*a/cc^3*SIN(cc*a)-(3*a^2/cc^2-6/cc^4)*COS(cc*a))) ) -> -0.03587470577 | U67: =IF(xx<=x0,(-1)*IF(pop=1,R67,IF(pop=2,S67,T67)),U65) -> 0.03587470577 | V67: =IF(xx<=x0,Q67-U67,V65) -> 0.009423311189
C68: 0.99 | D68: -0.3860614734 | E68: -0.004424667993 | F68: 0.4450945653 | G68: -1.116736943 | H68: 0.03492140796 | I68: -0.4494639173 | J68: 0.4494639173 | K68: -0.004369351991 | M68: =M66+dx -> 0.495 | N68: 0 | O68: =IF(xx<=x0,O66+dx,O66) -> 0.495 | P68: =N68 -> 0 | Q68: 0 | R68: 0 | S68: 0 | T68: 0 | U68: 0 | V68: 0
C69: 1.005 | D69: -0.4316290794 | E69: -0.01055734714 | F69: 0.4593674584 | G69: -1.23999938 | H69: 0.02570540115 | I69: -0.4698661959 | J69: 0.4698661959 | K69: -0.01049873754 | M69: =M68 -> 0.495 | N69: =IF(pop=1,xx^p*EXP(cc*xx),IF(pop=2,xx^p*SIN(cc*xx),xx^p*COS(cc*xx))) -> 0.06654915288 | O69: =O68 -> 0.495 | P69: =IF(xx<=x0,IF(pop=1,xx^p*EXP(cc*xx),IF(pop=2,xx^p*SIN(cc*xx),xx^p*COS(cc*xx))),P67) -> 0.06654915288 | Q69: =IF(xx<=x0,IF(pop=1,xx^p*EXP(cc*xx)/cc,IF(pop=2,(-1)*xx^p*(COS(cc*xx))/cc,xx^p*SIN(cc*xx)/cc)),Q67) -> 0.05069969819 | R69: =IF(p=1,EXP(cc*xx)/cc^2-EXP(a*xx)/cc^2,IF(p=2,EXP(cc*xx)*(2*xx/cc^2-1/cc^3)-EXP(a*cc)*(2*a/cc^2-1/cc^3),EXP(cc*xx)*(-3*xx^2/cc^2+6*xx/cc^3-3/cc^4))-EXP(cc*a)*(-3*a^2/cc^2+6*a/cc^3-3/cc^4)) -> 0.1874495394 | S69: =IF(p=1,(SIN(cc*xx))/cc^2-SIN(a*cc)/cc^2,IF(p=2, 2*xx/cc^2*SIN(cc*xx)+2/cc^3*COS(cc*xx)- 2*a/cc^2*SIN(cc*a)+2/cc^3*COS(cc*a), 6*xx/cc^3*COS(cc*xx)+3/cc^4*(cc^2*xx^2-2)*SIN(cc*xx) - 6*a/cc^3*COS(cc*xx)+3/cc^4*(cc^2*a^2-2)*SIN(cc*a) )) -> 0.04382681782 | T69: =IF(p=1,COS(cc*xx)/cc^2-COS(cc*a)/cc^2, IF(p=2,(-2/cc^3*SIN(cc*xx)+2*xx/cc^2*COS(cc*xx)+2/cc^3*SIN(cc*a) -2*a/cc^2*COS(cc*a)), (-6*xx/cc^3*SIN(cc*xx)+(3*xx^2/cc^2-6/cc^4)*COS(cc*xx) +6*a/cc^3*SIN(cc*a)-(3*a^2/cc^2-6/cc^4)*COS(cc*a))) ) -> -0.04030129246 | U69: =IF(xx<=x0,(-1)*IF(pop=1,R69,IF(pop=2,S69,T69)),U67) -> 0.04030129246 | V69: =IF(xx<=x0,Q69-U69,V67) -> 0.01039840573
C70: 1.02 | D70: -0.4798529607 | E70: -0.01739346244 | F70: 0.4732609099 | G70: -1.372155546 | H70: 0.01558391819 | I70: -0.4905924165 | J70: 0.4905924165 | K70: -0.01733150658 | M70: =M68+dx -> 0.51 | N70: 0 | O70: =IF(xx<=x0,O68+dx,O68) -> 0.51 | P70: =N70 -> 0 | Q70: 0 | R70: 0 | S70: 0 | T70: 0 | U70: 0 | V70: 0
C71: 1.035 | D71: -0.5307726767 | E71: -0.02497315472 | F71: 0.4867072251 | G71: -1.513711873 | H71: 0.004524786512 | I71: -0.5116150315 | J71: 0.5116150315 | K71: -0.02490780642 | M71: =M70 -> 0.51 | N71: =IF(pop=1,xx^p*EXP(cc*xx),IF(pop=2,xx^p*SIN(cc*xx),xx^p*COS(cc*xx))) -> 0.0694250168 | O71: =O70 -> 0.51 | P71: =IF(xx<=x0,IF(pop=1,xx^p*EXP(cc*xx),IF(pop=2,xx^p*SIN(cc*xx),xx^p*COS(cc*xx))),P69) -> 0.0694250168 | Q71: =IF(xx<=x0,IF(pop=1,xx^p*EXP(cc*xx)/cc,IF(pop=2,(-1)*xx^p*(COS(cc*xx))/cc,xx^p*SIN(cc*xx)/cc)),Q69) -> 0.05651649061 | R71: =IF(p=1,EXP(cc*xx)/cc^2-EXP(a*xx)/cc^2,IF(p=2,EXP(cc*xx)*(2*xx/cc^2-1/cc^3)-EXP(a*cc)*(2*a/cc^2-1/cc^3),EXP(cc*xx)*(-3*xx^2/cc^2+6*xx/cc^3-3/cc^4))-EXP(cc*a)*(-3*a^2/cc^2+6*a/cc^3-3/cc^4)) -> 0.1872920104 | S71: =IF(p=1,(SIN(cc*xx))/cc^2-SIN(a*cc)/cc^2,IF(p=2, 2*xx/cc^2*SIN(cc*xx)+2/cc^3*COS(cc*xx)- 2*a/cc^2*SIN(cc*a)+2/cc^3*COS(cc*a), 6*xx/cc^3*COS(cc*xx)+3/cc^4*(cc^2*xx^2-2)*SIN(cc*xx) - 6*a/cc^3*COS(cc*xx)+3/cc^4*(cc^2*a^2-2)*SIN(cc*a) )) -> 0.0468719405 | T71: =IF(p=1,COS(cc*xx)/cc^2-COS(cc*a)/cc^2, IF(p=2,(-2/cc^3*SIN(cc*xx)+2*xx/cc^2*COS(cc*xx)+2/cc^3*SIN(cc*a) -2*a/cc^2*COS(cc*a)), (-6*xx/cc^3*SIN(cc*xx)+(3*xx^2/cc^2-6/cc^4)*COS(cc*xx) +6*a/cc^3*SIN(cc*a)-(3*a^2/cc^2-6/cc^4)*COS(cc*a))) ) -> -0.04509793717 | U71: =IF(xx<=x0,(-1)*IF(pop=1,R71,IF(pop=2,S71,T71)),U69) -> 0.04509793717 | V71: =IF(xx<=x0,Q71-U71,V69) -> 0.01141855344
C72: 1.05 | D72: -0.5844224718 | E72: -0.03333711833 | F72: 0.4996363715 | G72: -1.665199799 | H72: -0.007503574818 | I72: -0.5329047098 | J72: 0.5329047098 | K72: -0.03326833822 | M72: =M70+dx -> 0.525 | N72: 0 | O72: =IF(xx<=x0,O70+dx,O70) -> 0.525 | P72: =N72 -> 0 | Q72: 0 | R72: 0 | S72: 0 | T72: 0 | U72: 0 | V72: 0
C73: 1.065 | D73: -0.6408309713 | E73: -0.04252651916 | F73: 0.5119760646 | G73: -1.827176893 | H73: -0.02053207231 | I73: -0.5544303396 | J73: 0.5544303396 | K73: -0.04245427508 | M73: =M72 -> 0.525 | N73: =IF(pop=1,xx^p*EXP(cc*xx),IF(pop=2,xx^p*SIN(cc*xx),xx^p*COS(cc*xx))) -> 0.07200008554 | O73: =O72 -> 0.525 | P73: =IF(xx<=x0,IF(pop=1,xx^p*EXP(cc*xx),IF(pop=2,xx^p*SIN(cc*xx),xx^p*COS(cc*xx))),P71) -> 0.07200008554 | Q73: =IF(xx<=x0,IF(pop=1,xx^p*EXP(cc*xx)/cc,IF(pop=2,(-1)*xx^p*(COS(cc*xx))/cc,xx^p*SIN(cc*xx)/cc)),Q71) -> 0.06275942572 | R73: =IF(p=1,EXP(cc*xx)/cc^2-EXP(a*xx)/cc^2,IF(p=2,EXP(cc*xx)*(2*xx/cc^2-1/cc^3)-EXP(a*cc)*(2*a/cc^2-1/cc^3),EXP(cc*xx)*(-3*xx^2/cc^2+6*xx/cc^3-3/cc^4))-EXP(cc*a)*(-3*a^2/cc^2+6*a/cc^3-3/cc^4)) -> 0.186160476 | S73: =IF(p=1,(SIN(cc*xx))/cc^2-SIN(a*cc)/cc^2,IF(p=2, 2*xx/cc^2*SIN(cc*xx)+2/cc^3*COS(cc*xx)- 2*a/cc^2*SIN(cc*a)+2/cc^3*COS(cc*a), 6*xx/cc^3*COS(cc*xx)+3/cc^4*(cc^2*xx^2-2)*SIN(cc*xx) - 6*a/cc^3*COS(cc*xx)+3/cc^4*(cc^2*a^2-2)*SIN(cc*a) )) -> 0.04994753543 | T73: =IF(p=1,COS(cc*xx)/cc^2-COS(cc*a)/cc^2, IF(p=2,(-2/cc^3*SIN(cc*xx)+2*xx/cc^2*COS(cc*xx)+2/cc^3*SIN(cc*a) -2*a/cc^2*COS(cc*a)), (-6*xx/cc^3*SIN(cc*xx)+(3*xx^2/cc^2-6/cc^4)*COS(cc*xx) +6*a/cc^3*SIN(cc*a)-(3*a^2/cc^2-6/cc^4)*COS(cc*a))) ) -> -0.05027977298 | U73: =IF(xx<=x0,(-1)*IF(pop=1,R73,IF(pop=2,S73,T73)),U71) -> 0.05027977298 | V73: =IF(xx<=x0,Q73-U73,V71) -> 0.01247965274
C74: 1.08 | D74: -0.7000208829 | E74: -0.05258290807 | F74: 0.5236518611 | G74: -2.000228031 | H74: -0.03459085477 | I74: -0.5761590365 | J74: 0.5761590365 | K74: -0.05250717545 | M74: =M72+dx -> 0.54 | N74: 0 | O74: =IF(xx<=x0,O72+dx,O72) -> 0.54 | P74: =N74 -> 0 | Q74: 0 | R74: 0 | S74: 0 | T74: 0 | U74: 0 | V74: 0
C75: 1.095 | D75: -0.7620087027 | E75: -0.06354812996 | F75: 0.534587261 | G75: -2.184966617 | H75: -0.04970922962 | I75: -0.5980561532 | J75: 0.5980561532 | K75: -0.06346889219 | M75: =M74 -> 0.54 | N75: =IF(pop=1,xx^p*EXP(cc*xx),IF(pop=2,xx^p*SIN(cc*xx),xx^p*COS(cc*xx))) -> 0.07421724954 | O75: =O74 -> 0.54 | P75: =IF(xx<=x0,IF(pop=1,xx^p*EXP(cc*xx),IF(pop=2,xx^p*SIN(cc*xx),xx^p*COS(cc*xx))),P73) -> 0.07421724954 | Q75: =IF(xx<=x0,IF(pop=1,xx^p*EXP(cc*xx)/cc,IF(pop=2,(-1)*xx^p*(COS(cc*xx))/cc,xx^p*SIN(cc*xx)/cc)),Q73) -> 0.06943830205 | R75: =IF(p=1,EXP(cc*xx)/cc^2-EXP(a*xx)/cc^2,IF(p=2,EXP(cc*xx)*(2*xx/cc^2-1/cc^3)-EXP(a*cc)*(2*a/cc^2-1/cc^3),EXP(cc*xx)*(-3*xx^2/cc^2+6*xx/cc^3-3/cc^4))-EXP(cc*a)*(-3*a^2/cc^2+6*a/cc^3-3/cc^4)) -> 0.1839663845 | S75: =IF(p=1,(SIN(cc*xx))/cc^2-SIN(a*cc)/cc^2,IF(p=2, 2*xx/cc^2*SIN(cc*xx)+2/cc^3*COS(cc*xx)- 2*a/cc^2*SIN(cc*a)+2/cc^3*COS(cc*a), 6*xx/cc^3*COS(cc*xx)+3/cc^4*(cc^2*xx^2-2)*SIN(cc*xx) - 6*a/cc^3*COS(cc*xx)+3/cc^4*(cc^2*a^2-2)*SIN(cc*a) )) -> 0.05303798227 | T75: =IF(p=1,COS(cc*xx)/cc^2-COS(cc*a)/cc^2, IF(p=2,(-2/cc^3*SIN(cc*xx)+2*xx/cc^2*COS(cc*xx)+2/cc^3*SIN(cc*a) -2*a/cc^2*COS(cc*a)), (-6*xx/cc^3*SIN(cc*xx)+(3*xx^2/cc^2-6/cc^4)*COS(cc*xx) +6*a/cc^3*SIN(cc*a)-(3*a^2/cc^2-6/cc^4)*COS(cc*a))) ) -> -0.05586153511 | U75: =IF(xx<=x0,(-1)*IF(pop=1,R75,IF(pop=2,S75,T75)),U73) -> 0.05586153511 | V75: =IF(xx<=x0,Q75-U75,V73) -> 0.01357676694
C76: 1.11 | D76: -0.826804427 | E76: -0.07546422843 | F76: 0.5447038167 | G76: -2.382035861 | H76: -0.06591557899 | I76: -0.6200852939 | J76: 0.6200852939 | K76: -0.07538147719 | M76: =M74+dx -> 0.555 | N76: 0 | O76: =IF(xx<=x0,O74+dx,O74) -> 0.555 | P76: =N76 -> 0 | Q76: 0 | R76: 0 | S76: 0 | T76: 0 | U76: 0 | V76: 0
C77: 1.125 | D77: -0.8944112714 | E77: -0.08837334617 | F77: 0.5539212505 | G77: -2.592110108 | H77: -0.08323727565 | I77: -0.6422083323 | J77: 0.6422083323 | K77: -0.08828708178 | M77: =M76 -> 0.555 | N77: =IF(pop=1,xx^p*EXP(cc*xx),IF(pop=2,xx^p*SIN(cc*xx),xx^p*COS(cc*xx))) -> 0.07601660935 | O77: =O76 -> 0.555 | P77: =IF(xx<=x0,IF(pop=1,xx^p*EXP(cc*xx),IF(pop=2,xx^p*SIN(cc*xx),xx^p*COS(cc*xx))),P75) -> 0.07601660935 | Q77: =IF(xx<=x0,IF(pop=1,xx^p*EXP(cc*xx)/cc,IF(pop=2,(-1)*xx^p*(COS(cc*xx))/cc,xx^p*SIN(cc*xx)/cc)),Q75) -> 0.07656158057 | R77: =IF(p=1,EXP(cc*xx)/cc^2-EXP(a*xx)/cc^2,IF(p=2,EXP(cc*xx)*(2*xx/cc^2-1/cc^3)-EXP(a*cc)*(2*a/cc^2-1/cc^3),EXP(cc*xx)*(-3*xx^2/cc^2+6*xx/cc^3-3/cc^4))-EXP(cc*a)*(-3*a^2/cc^2+6*a/cc^3-3/cc^4)) -> 0.1806157994 | S77: =IF(p=1,(SIN(cc*xx))/cc^2-SIN(a*cc)/cc^2,IF(p=2, 2*xx/cc^2*SIN(cc*xx)+2/cc^3*COS(cc*xx)- 2*a/cc^2*SIN(cc*a)+2/cc^3*COS(cc*a), 6*xx/cc^3*COS(cc*xx)+3/cc^4*(cc^2*xx^2-2)*SIN(cc*xx) - 6*a/cc^3*COS(cc*xx)+3/cc^4*(cc^2*a^2-2)*SIN(cc*a) )) -> 0.05612653996 | T77: =IF(p=1,COS(cc*xx)/cc^2-COS(cc*a)/cc^2, IF(p=2,(-2/cc^3*SIN(cc*xx)+2*xx/cc^2*COS(cc*xx)+2/cc^3*SIN(cc*a) -2*a/cc^2*COS(cc*a)), (-6*xx/cc^3*SIN(cc*xx)+(3*xx^2/cc^2-6/cc^4)*COS(cc*xx) +6*a/cc^3*SIN(cc*a)-(3*a^2/cc^2-6/cc^4)*COS(cc*a))) ) -> -0.06185749892 | U77: =IF(xx<=x0,(-1)*IF(pop=1,R77,IF(pop=2,S77,T77)),U75) -> 0.06185749892 | V77: =IF(xx<=x0,Q77-U77,V75) -> 0.01470408165
C78: 1.14 | D78: -0.9648253962 | E78: -0.1023176212 | F78: 0.56215758 | G78: -2.815896222 | H78: -0.1017005991 | I78: -0.6643854329 | J78: 0.6643854329 | K78: -0.102227853 | M78: =M76+dx -> 0.57 | N78: 0 | O78: =IF(xx<=x0,O76+dx,O76) -> 0.57 | P78: =N78 -> 0 | Q78: 0 | R78: 0 | S78: 0 | T78: 0 | U78: 0 | V78: 0
C79: 1.155 | D79: -1.038035641 | E79: -0.117339079 | F79: 0.5693292505 | G79: -3.054135028 | H79: -0.1213306516 | I79: -0.6865750761 | J79: 0.6865750761 | K79: -0.1172458255 | M79: =M78 -> 0.57 | N79: =IF(pop=1,xx^p*EXP(cc*xx),IF(pop=2,xx^p*SIN(cc*xx),xx^p*COS(cc*xx))) -> 0.07733557897 | O79: =O78 -> 0.57 | P79: =IF(xx<=x0,IF(pop=1,xx^p*EXP(cc*xx),IF(pop=2,xx^p*SIN(cc*xx),xx^p*COS(cc*xx))),P77) -> 0.07733557897 | Q79: =IF(xx<=x0,IF(pop=1,xx^p*EXP(cc*xx)/cc,IF(pop=2,(-1)*xx^p*(COS(cc*xx))/cc,xx^p*SIN(cc*xx)/cc)),Q77) -> 0.08413628152 | R79: =IF(p=1,EXP(cc*xx)/cc^2-EXP(a*xx)/cc^2,IF(p=2,EXP(cc*xx)*(2*xx/cc^2-1/cc^3)-EXP(a*cc)*(2*a/cc^2-1/cc^3),EXP(cc*xx)*(-3*xx^2/cc^2+6*xx/cc^3-3/cc^4))-EXP(cc*a)*(-3*a^2/cc^2+6*a/cc^3-3/cc^4)) -> 0.1760091263 | S79: =IF(p=1,(SIN(cc*xx))/cc^2-SIN(a*cc)/cc^2,IF(p=2, 2*xx/cc^2*SIN(cc*xx)+2/cc^3*COS(cc*xx)- 2*a/cc^2*SIN(cc*a)+2/cc^3*COS(cc*a), 6*xx/cc^3*COS(cc*xx)+3/cc^4*(cc^2*xx^2-2)*SIN(cc*xx) - 6*a/cc^3*COS(cc*xx)+3/cc^4*(cc^2*a^2-2)*SIN(cc*a) )) -> 0.05919535656 | T79: =IF(p=1,COS(cc*xx)/cc^2-COS(cc*a)/cc^2, IF(p=2,(-2/cc^3*SIN(cc*xx)+2*xx/cc^2*COS(cc*xx)+2/cc^3*SIN(cc*a) -2*a/cc^2*COS(cc*a)), (-6*xx/cc^3*SIN(cc*xx)+(3*xx^2/cc^2-6/cc^4)*COS(cc*xx) +6*a/cc^3*SIN(cc*a)-(3*a^2/cc^2-6/cc^4)*COS(cc*a))) ) -> -0.06828141782 | U79: =IF(xx<=x0,(-1)*IF(pop=1,R79,IF(pop=2,S79,T79)),U77) -> 0.06828141782 | V79: =IF(xx<=x0,Q79-U79,V77) -> 0.0158548637
C80: 1.17 | D80: -1.114023266 | E80: -0.1334795208 | F80: 0.5753512763 | G80: -3.30760282 | H80: -0.1421512749 | I80: -0.7087340867 | J80: 0.7087340867 | K80: -0.1333828104 | M80: =M78+dx -> 0.585 | N80: 0 | O80: =IF(xx<=x0,O78+dx,O78) -> 0.585 | P80: =N80 -> 0 | Q80: 0 | R80: 0 | S80: 0 | T80: 0 | U80: 0 | V80: 0
C81: 1.185 | D81: -1.192761708 | E81: -0.1507804081 | F81: 0.580137388 | G81: -3.577112921 | H81: -0.1641849675 | I81: -0.7308176669 | J81: 0.7308176669 | K81: -0.1506802789 | M81: =M80 -> 0.585 | N81: =IF(pop=1,xx^p*EXP(cc*xx),IF(pop=2,xx^p*SIN(cc*xx),xx^p*COS(cc*xx))) -> 0.07810900119 | O81: =O80 -> 0.585 | P81: =IF(xx<=x0,IF(pop=1,xx^p*EXP(cc*xx),IF(pop=2,xx^p*SIN(cc*xx),xx^p*COS(cc*xx))),P79) -> 0.07810900119 | Q81: =IF(xx<=x0,IF(pop=1,xx^p*EXP(cc*xx)/cc,IF(pop=2,(-1)*xx^p*(COS(cc*xx))/cc,xx^p*SIN(cc*xx)/cc)),Q79) -> 0.09216788294 | R81: =IF(p=1,EXP(cc*xx)/cc^2-EXP(a*xx)/cc^2,IF(p=2,EXP(cc*xx)*(2*xx/cc^2-1/cc^3)-EXP(a*cc)*(2*a/cc^2-1/cc^3),EXP(cc*xx)*(-3*xx^2/cc^2+6*xx/cc^3-3/cc^4))-EXP(cc*a)*(-3*a^2/cc^2+6*a/cc^3-3/cc^4)) -> 0.1700408274 | S81: =IF(p=1,(SIN(cc*xx))/cc^2-SIN(a*cc)/cc^2,IF(p=2, 2*xx/cc^2*SIN(cc*xx)+2/cc^3*COS(cc*xx)- 2*a/cc^2*SIN(cc*a)+2/cc^3*COS(cc*a), 6*xx/cc^3*COS(cc*xx)+3/cc^4*(cc^2*xx^2-2)*SIN(cc*xx) - 6*a/cc^3*COS(cc*xx)+3/cc^4*(cc^2*a^2-2)*SIN(cc*a) )) -> 0.06222548232 | T81: =IF(p=1,COS(cc*xx)/cc^2-COS(cc*a)/cc^2, IF(p=2,(-2/cc^3*SIN(cc*xx)+2*xx/cc^2*COS(cc*xx)+2/cc^3*SIN(cc*a) -2*a/cc^2*COS(cc*a)), (-6*xx/cc^3*SIN(cc*xx)+(3*xx^2/cc^2-6/cc^4)*COS(cc*xx) +6*a/cc^3*SIN(cc*a)-(3*a^2/cc^2-6/cc^4)*COS(cc*a))) ) -> -0.07514646125 | U81: =IF(xx<=x0,(-1)*IF(pop=1,R81,IF(pop=2,S81,T81)),U79) -> 0.07514646125 | V81: =IF(xx<=x0,Q81-U81,V79) -> 0.01702142169
C82: 1.2 | D82: -1.27421634 | E82: -0.1692827434 | F82: 0.583600188 | G82: -3.86351732 | H82: -0.1874528017 | I82: -0.752779432 | J82: 0.752779432 | K82: -0.169179244 | M82: =M80+dx -> 0.6 | N82: 0 | O82: =IF(xx<=x0,O80+dx,O80) -> 0.6 | P82: =N82 -> 0 | Q82: 0 | R82: 0 | S82: 0 | T82: 0 | U82: 0 | V82: 0
C83: 1.215 | D83: -1.358344248 | E83: -0.1890269478 | F83: 0.5856513132 | G83: -4.167708369 | H83: -0.2119743427 | I83: -0.7745714502 | J83: 0.7745714502 | K83: -0.1889201369 | M83: =M82 -> 0.6 | N83: =IF(pop=1,xx^p*EXP(cc*xx),IF(pop=2,xx^p*SIN(cc*xx),xx^p*COS(cc*xx))) -> 0.07826927497 | O83: =O82 -> 0.6 | P83: =IF(xx<=x0,IF(pop=1,xx^p*EXP(cc*xx),IF(pop=2,xx^p*SIN(cc*xx),xx^p*COS(cc*xx))),P81) -> 0.07826927497 | Q83: =IF(xx<=x0,IF(pop=1,xx^p*EXP(cc*xx)/cc,IF(pop=2,(-1)*xx^p*(COS(cc*xx))/cc,xx^p*SIN(cc*xx)/cc)),Q81) -> 0.1006602213 | R83: =IF(p=1,EXP(cc*xx)/cc^2-EXP(a*xx)/cc^2,IF(p=2,EXP(cc*xx)*(2*xx/cc^2-1/cc^3)-EXP(a*cc)*(2*a/cc^2-1/cc^3),EXP(cc*xx)*(-3*xx^2/cc^2+6*xx/cc^3-3/cc^4))-EXP(cc*a)*(-3*a^2/cc^2+6*a/cc^3-3/cc^4)) -> 0.1625991231 | S83: =IF(p=1,(SIN(cc*xx))/cc^2-SIN(a*cc)/cc^2,IF(p=2, 2*xx/cc^2*SIN(cc*xx)+2/cc^3*COS(cc*xx)- 2*a/cc^2*SIN(cc*a)+2/cc^3*COS(cc*a), 6*xx/cc^3*COS(cc*xx)+3/cc^4*(cc^2*xx^2-2)*SIN(cc*xx) - 6*a/cc^3*COS(cc*xx)+3/cc^4*(cc^2*a^2-2)*SIN(cc*a) )) -> 0.06519688549 | T83: =IF(p=1,COS(cc*xx)/cc^2-COS(cc*a)/cc^2, IF(p=2,(-2/cc^3*SIN(cc*xx)+2*xx/cc^2*COS(cc*xx)+2/cc^3*SIN(cc*a) -2*a/cc^2*COS(cc*a)), (-6*xx/cc^3*SIN(cc*xx)+(3*xx^2/cc^2-6/cc^4)*COS(cc*xx) +6*a/cc^3*SIN(cc*a)-(3*a^2/cc^2-6/cc^4)*COS(cc*a))) ) -> -0.08246515291 | U83: =IF(xx<=x0,(-1)*IF(pop=1,R83,IF(pop=2,S83,T83)),U81) -> 0.08246515291 | V83: =IF(xx<=x0,Q83-U83,V81) -> 0.01819506838
C84: 1.23 | D84: -1.445094014 | E84: -0.2100527348 | F84: 0.5862016042 | G84: -4.490620552 | H84: -0.2377675677 | I84: -0.7961442863 | J84: 0.7961442863 | K84: -0.2099426821 | M84: =M82+dx -> 0.615 | N84: 0 | O84: =IF(xx<=x0,O82+dx,O82) -> 0.615 | P84: =N84 -> 0 | Q84: 0 | R84: 0 | S84: 0 | T84: 0 | U84: 0 | V84: 0
C85: 1.245 | D85: -1.534405517 | E85: -0.2323989813 | F85: 0.5851612813 | G85: -4.833232334 | H85: -0.2648487868 | I85: -0.8174470488 | J85: 0.8174470488 | K85: -0.2322857675 | M85: =M84 -> 0.615 | N85: =IF(pop=1,xx^p*EXP(cc*xx),IF(pop=2,xx^p*SIN(cc*xx),xx^p*COS(cc*xx))) -> 0.07774649457 | O85: =O84 -> 0.615 | P85: =IF(xx<=x0,IF(pop=1,xx^p*EXP(cc*xx),IF(pop=2,xx^p*SIN(cc*xx),xx^p*COS(cc*xx))),P83) -> 0.07774649457 | Q85: =IF(xx<=x0,IF(pop=1,xx^p*EXP(cc*xx)/cc,IF(pop=2,(-1)*xx^p*(COS(cc*xx))/cc,xx^p*SIN(cc*xx)/cc)),Q83) -> 0.1096153943 | R85: =IF(p=1,EXP(cc*xx)/cc^2-EXP(a*xx)/cc^2,IF(p=2,EXP(cc*xx)*(2*xx/cc^2-1/cc^3)-EXP(a*cc)*(2*a/cc^2-1/cc^3),EXP(cc*xx)*(-3*xx^2/cc^2+6*xx/cc^3-3/cc^4))-EXP(cc*a)*(-3*a^2/cc^2+6*a/cc^3-3/cc^4)) -> 0.1535656795 | S85: =IF(p=1,(SIN(cc*xx))/cc^2-SIN(a*cc)/cc^2,IF(p=2, 2*xx/cc^2*SIN(cc*xx)+2/cc^3*COS(cc*xx)- 2*a/cc^2*SIN(cc*a)+2/cc^3*COS(cc*a), 6*xx/cc^3*COS(cc*xx)+3/cc^4*(cc^2*xx^2-2)*SIN(cc*xx) - 6*a/cc^3*COS(cc*xx)+3/cc^4*(cc^2*a^2-2)*SIN(cc*a) )) -> 0.06808847124 | T85: =IF(p=1,COS(cc*xx)/cc^2-COS(cc*a)/cc^2, IF(p=2,(-2/cc^3*SIN(cc*xx)+2*xx/cc^2*COS(cc*xx)+2/cc^3*SIN(cc*a) -2*a/cc^2*COS(cc*a)), (-6*xx/cc^3*SIN(cc*xx)+(3*xx^2/cc^2-6/cc^4)*COS(cc*xx) +6*a/cc^3*SIN(cc*a)-(3*a^2/cc^2-6/cc^4)*COS(cc*a))) ) -> -0.09024930931 | U85: =IF(xx<=x0,(-1)*IF(pop=1,R85,IF(pop=2,S85,T85)),U83) -> 0.09024930931 | V85: =IF(xx<=x0,Q85-U85,V83) -> 0.01936608503
C86: 1.26 | D86: -1.626209744 | E86: -0.2561035957 | F86: 0.5824401277 | G86: -5.196568075 | H86: -0.2932325642 | I86: -0.8384274405 | J86: 0.8384274405 | K86: -0.2559873128 | M86: =M84+dx -> 0.63 | N86: 0 | O86: =IF(xx<=x0,O84+dx,O84) -> 0.63 | P86: =N86 -> 0 | Q86: 0 | R86: 0 | S86: 0 | T86: 0 | U86: 0 | V86: 0
C87: 1.275 | D87: -1.720428617 | E87: -0.2812033834 | F87: 0.5779476781 | G87: -5.581700032 | H87: -0.3229316423 | I87: -0.8590318127 | J87: 0.8590318127 | K87: -0.2810841346 | M87: =M86 -> 0.63 | N87: =IF(pop=1,xx^p*EXP(cc*xx),IF(pop=2,xx^p*SIN(cc*xx),xx^p*COS(cc*xx))) -> 0.07646860049 | O87: =O86 -> 0.63 | P87: =IF(xx<=x0,IF(pop=1,xx^p*EXP(cc*xx),IF(pop=2,xx^p*SIN(cc*xx),xx^p*COS(cc*xx))),P85) -> 0.07646860049 | Q87: =IF(xx<=x0,IF(pop=1,xx^p*EXP(cc*xx)/cc,IF(pop=2,(-1)*xx^p*(COS(cc*xx))/cc,xx^p*SIN(cc*xx)/cc)),Q85) -> 0.1190336668 | R87: =IF(p=1,EXP(cc*xx)/cc^2-EXP(a*xx)/cc^2,IF(p=2,EXP(cc*xx)*(2*xx/cc^2-1/cc^3)-EXP(a*cc)*(2*a/cc^2-1/cc^3),EXP(cc*xx)*(-3*xx^2/cc^2+6*xx/cc^3-3/cc^4))-EXP(cc*a)*(-3*a^2/cc^2+6*a/cc^3-3/cc^4)) -> 0.1428152826 | S87: =IF(p=1,(SIN(cc*xx))/cc^2-SIN(a*cc)/cc^2,IF(p=2, 2*xx/cc^2*SIN(cc*xx)+2/cc^3*COS(cc*xx)- 2*a/cc^2*SIN(cc*a)+2/cc^3*COS(cc*a), 6*xx/cc^3*COS(cc*xx)+3/cc^4*(cc^2*xx^2-2)*SIN(cc*xx) - 6*a/cc^3*COS(cc*xx)+3/cc^4*(cc^2*a^2-2)*SIN(cc*a) )) -> 0.07087810355 | T87: =IF(p=1,COS(cc*xx)/cc^2-COS(cc*a)/cc^2, IF(p=2,(-2/cc^3*SIN(cc*xx)+2*xx/cc^2*COS(cc*xx)+2/cc^3*SIN(cc*a) -2*a/cc^2*COS(cc*a)), (-6*xx/cc^3*SIN(cc*xx)+(3*xx^2/cc^2-6/cc^4)*COS(cc*xx) +6*a/cc^3*SIN(cc*a)-(3*a^2/cc^2-6/cc^4)*COS(cc*a))) ) -> -0.09850997884 | U87: =IF(xx<=x0,(-1)*IF(pop=1,R87,IF(pop=2,S87,T87)),U85) -> 0.09850997884 | V87: =IF(xx<=x0,Q87-U87,V85) -> 0.02052368798
C88: 1.29 | D88: -1.816974832 | E88: -0.3077339093 | F88: 0.5715934141 | G88: -5.989750444 | H88: -0.3539568655 | I88: -0.8792052236 | J88: 0.8792052236 | K88: -0.3076118096 | M88: =M86+dx -> 0.645 | N88: 0 | O88: =IF(xx<=x0,O86+dx,O86) -> 0.645 | P88: =N88 -> 0 | Q88: 0 | R88: 0 | S88: 0 | T88: 0 | U88: 0 | V88: 0
C89: 1.305 | D89: -1.915751713 | E89: -0.3357293584 | F89: 0.5632869649 | G89: -6.421893696 | H89: -0.3863171074 | I89: -0.8988914994 | J89: 0.8988914994 | K89: -0.3356045345 | M89: =M88 -> 0.645 | N89: =IF(pop=1,xx^p*EXP(cc*xx),IF(pop=2,xx^p*SIN(cc*xx),xx^p*COS(cc*xx))) -> 0.07436154177 | O89: =O88 -> 0.645 | P89: =IF(xx<=x0,IF(pop=1,xx^p*EXP(cc*xx),IF(pop=2,xx^p*SIN(cc*xx),xx^p*COS(cc*xx))),P87) -> 0.07436154177 | Q89: =IF(xx<=x0,IF(pop=1,xx^p*EXP(cc*xx)/cc,IF(pop=2,(-1)*xx^p*(COS(cc*xx))/cc,xx^p*SIN(cc*xx)/cc)),Q87) -> 0.1289133789 | R89: =IF(p=1,EXP(cc*xx)/cc^2-EXP(a*xx)/cc^2,IF(p=2,EXP(cc*xx)*(2*xx/cc^2-1/cc^3)-EXP(a*cc)*(2*a/cc^2-1/cc^3),EXP(cc*xx)*(-3*xx^2/cc^2+6*xx/cc^3-3/cc^4))-EXP(cc*a)*(-3*a^2/cc^2+6*a/cc^3-3/cc^4)) -> 0.130215497 | S89: =IF(p=1,(SIN(cc*xx))/cc^2-SIN(a*cc)/cc^2,IF(p=2, 2*xx/cc^2*SIN(cc*xx)+2/cc^3*COS(cc*xx)- 2*a/cc^2*SIN(cc*a)+2/cc^3*COS(cc*a), 6*xx/cc^3*COS(cc*xx)+3/cc^4*(cc^2*xx^2-2)*SIN(cc*xx) - 6*a/cc^3*COS(cc*xx)+3/cc^4*(cc^2*a^2-2)*SIN(cc*a) )) -> 0.07354262992 | T89: =IF(p=1,COS(cc*xx)/cc^2-COS(cc*a)/cc^2, IF(p=2,(-2/cc^3*SIN(cc*xx)+2*xx/cc^2*COS(cc*xx)+2/cc^3*SIN(cc*a) -2*a/cc^2*COS(cc*a)), (-6*xx/cc^3*SIN(cc*xx)+(3*xx^2/cc^2-6/cc^4)*COS(cc*xx) +6*a/cc^3*SIN(cc*a)-(3*a^2/cc^2-6/cc^4)*COS(cc*a))) ) -> -0.1072573814 | U89: =IF(xx<=x0,(-1)*IF(pop=1,R89,IF(pop=2,S89,T89)),U87) -> 0.1072573814 | V89: =IF(xx<=x0,Q89-U89,V87) -> 0.02165599752
C90: 1.32 | D90: -2.01665309 | E90: -0.3652223944 | F90: 0.5529383141 | G90: -6.879358579 | H90: -0.4200191988 | I90: -0.9180332991 | J90: 0.9180332991 | K90: -0.365094985 | M90: =M88+dx -> 0.66 | N90: 0 | O90: =IF(xx<=x0,O88+dx,O88) -> 0.66 | P90: =N90 -> 0 | Q90: 0 | R90: 0 | S90: 0 | T90: 0 | U90: 0 | V90: 0
C91: 1.335 | D91: -2.11956318 | E91: -0.3962440164 | F91: 0.5404580107 | G91: -7.36343064 | H91: -0.4550678585 | I91: -0.9365721831 | J91: 0.9365721831 | K91: -0.3961141724 | M91: =M90 -> 0.66 | N91: =IF(pop=1,xx^p*EXP(cc*xx),IF(pop=2,xx^p*SIN(cc*xx),xx^p*COS(cc*xx))) -> 0.07134944965 | O91: =O90 -> 0.66 | P91: =IF(xx<=x0,IF(pop=1,xx^p*EXP(cc*xx),IF(pop=2,xx^p*SIN(cc*xx),xx^p*COS(cc*xx))),P89) -> 0.07134944965 | Q91: =IF(xx<=x0,IF(pop=1,xx^p*EXP(cc*xx)/cc,IF(pop=2,(-1)*xx^p*(COS(cc*xx))/cc,xx^p*SIN(cc*xx)/cc)),Q89) -> 0.1392508582 | R91: =IF(p=1,EXP(cc*xx)/cc^2-EXP(a*xx)/cc^2,IF(p=2,EXP(cc*xx)*(2*xx/cc^2-1/cc^3)-EXP(a*cc)*(2*a/cc^2-1/cc^3),EXP(cc*xx)*(-3*xx^2/cc^2+6*xx/cc^3-3/cc^4))-EXP(cc*a)*(-3*a^2/cc^2+6*a/cc^3-3/cc^4)) -> 0.1156263096 | S91: =IF(p=1,(SIN(cc*xx))/cc^2-SIN(a*cc)/cc^2,IF(p=2, 2*xx/cc^2*SIN(cc*xx)+2/cc^3*COS(cc*xx)- 2*a/cc^2*SIN(cc*a)+2/cc^3*COS(cc*a), 6*xx/cc^3*COS(cc*xx)+3/cc^4*(cc^2*xx^2-2)*SIN(cc*xx) - 6*a/cc^3*COS(cc*xx)+3/cc^4*(cc^2*a^2-2)*SIN(cc*a) )) -> 0.07605790923 | T91: =IF(p=1,COS(cc*xx)/cc^2-COS(cc*a)/cc^2, IF(p=2,(-2/cc^3*SIN(cc*xx)+2*xx/cc^2*COS(cc*xx)+2/cc^3*SIN(cc*a) -2*a/cc^2*COS(cc*a)), (-6*xx/cc^3*SIN(cc*xx)+(3*xx^2/cc^2-6/cc^4)*COS(cc*xx) +6*a/cc^3*SIN(cc*a)-(3*a^2/cc^2-6/cc^4)*COS(cc*a))) ) -> -0.1165008489 | U91: =IF(xx<=x0,(-1)*IF(pop=1,R91,IF(pop=2,S91,T91)),U89) -> 0.1165008489 | V91: =IF(xx<=x0,Q91-U91,V89) -> 0.02275000934
C92: 1.35 | D92: -2.224356496 | E92: -0.428823414 | F92: 0.5257573864 | G92: -7.875454628 | H92: -0.4914656251 | I92: -0.9544486846 | J92: 0.9544486846 | K92: -0.4286912982 | M92: =M90+dx -> 0.675 | N92: 0 | O92: =IF(xx<=x0,O90+dx,O90) -> 0.675 | P92: =N92 -> 0 | Q92: 0 | R92: 0 | S92: 0 | T92: 0 | U92: 0 | V92: 0
C93: 1.365 | D93: -2.330897773 | E93: -0.462987821 | F93: 0.5087487763 | G93: -8.416837043 | H93: -0.5292127925 | I93: -0.9716023849 | J93: 0.9716023849 | K93: -0.4628536087 | M93: =M92 -> 0.675 | N93: =IF(pop=1,xx^p*EXP(cc*xx),IF(pop=2,xx^p*SIN(cc*xx),xx^p*COS(cc*xx))) -> 0.06735482222 | O93: =O92 -> 0.675 | P93: =IF(xx<=x0,IF(pop=1,xx^p*EXP(cc*xx),IF(pop=2,xx^p*SIN(cc*xx),xx^p*COS(cc*xx))),P91) -> 0.06735482222 | Q93: =IF(xx<=x0,IF(pop=1,xx^p*EXP(cc*xx)/cc,IF(pop=2,(-1)*xx^p*(COS(cc*xx))/cc,xx^p*SIN(cc*xx)/cc)),Q91) -> 0.1500403348 | R93: =IF(p=1,EXP(cc*xx)/cc^2-EXP(a*xx)/cc^2,IF(p=2,EXP(cc*xx)*(2*xx/cc^2-1/cc^3)-EXP(a*cc)*(2*a/cc^2-1/cc^3),EXP(cc*xx)*(-3*xx^2/cc^2+6*xx/cc^3-3/cc^4))-EXP(cc*a)*(-3*a^2/cc^2+6*a/cc^3-3/cc^4)) -> 0.09889975734 | S93: =IF(p=1,(SIN(cc*xx))/cc^2-SIN(a*cc)/cc^2,IF(p=2, 2*xx/cc^2*SIN(cc*xx)+2/cc^3*COS(cc*xx)- 2*a/cc^2*SIN(cc*a)+2/cc^3*COS(cc*a), 6*xx/cc^3*COS(cc*xx)+3/cc^4*(cc^2*xx^2-2)*SIN(cc*xx) - 6*a/cc^3*COS(cc*xx)+3/cc^4*(cc^2*a^2-2)*SIN(cc*a) )) -> 0.07839884234 | T93: =IF(p=1,COS(cc*xx)/cc^2-COS(cc*a)/cc^2, IF(p=2,(-2/cc^3*SIN(cc*xx)+2*xx/cc^2*COS(cc*xx)+2/cc^3*SIN(cc*a) -2*a/cc^2*COS(cc*a)), (-6*xx/cc^3*SIN(cc*xx)+(3*xx^2/cc^2-6/cc^4)*COS(cc*xx) +6*a/cc^3*SIN(cc*a)-(3*a^2/cc^2-6/cc^4)*COS(cc*a))) ) -> -0.1262487662 | U93: =IF(xx<=x0,(-1)*IF(pop=1,R93,IF(pop=2,S93,T93)),U91) -> 0.1262487662 | V93: =IF(xx<=x0,Q93-U93,V91) -> 0.02379156858
C94: 1.38 | D94: -2.439041904 | E94: -0.4987623686 | F94: 0.4893457442 | G94: -8.989048784 | H94: -0.5683073468 | I94: -0.9879719915 | J94: 0.9879719915 | K94: -0.4986262473 | M94: =M92+dx -> 0.69 | N94: 0 | O94: =IF(xx<=x0,O92+dx,O92) -> 0.69 | P94: =N94 -> 0 | Q94: 0 | R94: 0 | S94: 0 | T94: 0 | U94: 0 | V94: 0
C95: 1.395 | D95: -2.548633902 | E95: -0.5361699371 | F95: 0.4674633122 | G95: -9.593627915 | H95: -0.6087449066 | I95: -1.003495419 | J95: 1.003495419 | K95: -0.5360321068 | M95: =M94 -> 0.69 | N95: =IF(pop=1,xx^p*EXP(cc*xx),IF(pop=2,xx^p*SIN(cc*xx),xx^p*COS(cc*xx))) -> 0.06229871985 | O95: =O94 -> 0.69 | P95: =IF(xx<=x0,IF(pop=1,xx^p*EXP(cc*xx),IF(pop=2,xx^p*SIN(cc*xx),xx^p*COS(cc*xx))),P93) -> 0.06229871985 | Q95: =IF(xx<=x0,IF(pop=1,xx^p*EXP(cc*xx)/cc,IF(pop=2,(-1)*xx^p*(COS(cc*xx))/cc,xx^p*SIN(cc*xx)/cc)),Q93) -> 0.1612738607 | R95: =IF(p=1,EXP(cc*xx)/cc^2-EXP(a*xx)/cc^2,IF(p=2,EXP(cc*xx)*(2*xx/cc^2-1/cc^3)-EXP(a*cc)*(2*a/cc^2-1/cc^3),EXP(cc*xx)*(-3*xx^2/cc^2+6*xx/cc^3-3/cc^4))-EXP(cc*a)*(-3*a^2/cc^2+6*a/cc^3-3/cc^4)) -> 0.07987953844 | S95: =IF(p=1,(SIN(cc*xx))/cc^2-SIN(a*cc)/cc^2,IF(p=2, 2*xx/cc^2*SIN(cc*xx)+2/cc^3*COS(cc*xx)- 2*a/cc^2*SIN(cc*a)+2/cc^3*COS(cc*a), 6*xx/cc^3*COS(cc*xx)+3/cc^4*(cc^2*xx^2-2)*SIN(cc*xx) - 6*a/cc^3*COS(cc*xx)+3/cc^4*(cc^2*a^2-2)*SIN(cc*a) )) -> 0.08053940566 | T95: =IF(p=1,COS(cc*xx)/cc^2-COS(cc*a)/cc^2, IF(p=2,(-2/cc^3*SIN(cc*xx)+2*xx/cc^2*COS(cc*xx)+2/cc^3*SIN(cc*a) -2*a/cc^2*COS(cc*a)), (-6*xx/cc^3*SIN(cc*xx)+(3*xx^2/cc^2-6/cc^4)*COS(cc*xx) +6*a/cc^3*SIN(cc*a)-(3*a^2/cc^2-6/cc^4)*COS(cc*a))) ) -> -0.1365085139 | U95: =IF(xx<=x0,(-1)*IF(pop=1,R95,IF(pop=2,S95,T95)),U93) -> 0.1365085139 | V95: =IF(xx<=x0,Q95-U95,V93) -> 0.02476534684
C96: 1.41 | D96: -2.659508882 | E96: -0.575231008 | F96: 0.4430181935 | G96: -10.23218253 | H96: -0.650518665 | I96: -1.018109874 | J96: 1.018109874 | K96: -0.5750916809 | M96: =M94+dx -> 0.705 | N96: 0 | O96: =IF(xx<=x0,O94+dx,O94) -> 0.705 | P96: =N96 -> 0 | Q96: 0 | R96: 0 | S96: 0 | T96: 0 | U96: 0 | V96: 0
C97: 1.425 | D97: -2.771492061 | E97: -0.6159635151 | F97: 0.4159290277 | G97: -10.90639375 | H97: -0.6936193357 | I97: -1.031751944 | J97: 1.031751944 | K97: -0.6158229159 | M97: =M96 -> 0.705 | N97: =IF(pop=1,xx^p*EXP(cc*xx),IF(pop=2,xx^p*SIN(cc*xx),xx^p*COS(cc*xx))) -> 0.05610097104 | O97: =O96 -> 0.705 | P97: =IF(xx<=x0,IF(pop=1,xx^p*EXP(cc*xx),IF(pop=2,xx^p*SIN(cc*xx),xx^p*COS(cc*xx))),P95) -> 0.05610097104 | Q97: =IF(xx<=x0,IF(pop=1,xx^p*EXP(cc*xx)/cc,IF(pop=2,(-1)*xx^p*(COS(cc*xx))/cc,xx^p*SIN(cc*xx)/cc)),Q95) -> 0.1729412333 | R97: =IF(p=1,EXP(cc*xx)/cc^2-EXP(a*xx)/cc^2,IF(p=2,EXP(cc*xx)*(2*xx/cc^2-1/cc^3)-EXP(a*cc)*(2*a/cc^2-1/cc^3),EXP(cc*xx)*(-3*xx^2/cc^2+6*xx/cc^3-3/cc^4))-EXP(cc*a)*(-3*a^2/cc^2+6*a/cc^3-3/cc^4)) -> 0.05840060561 | S97: =IF(p=1,(SIN(cc*xx))/cc^2-SIN(a*cc)/cc^2,IF(p=2, 2*xx/cc^2*SIN(cc*xx)+2/cc^3*COS(cc*xx)- 2*a/cc^2*SIN(cc*a)+2/cc^3*COS(cc*a), 6*xx/cc^3*COS(cc*xx)+3/cc^4*(cc^2*xx^2-2)*SIN(cc*xx) - 6*a/cc^3*COS(cc*xx)+3/cc^4*(cc^2*a^2-2)*SIN(cc*a) )) -> 0.08245268763 | T97: =IF(p=1,COS(cc*xx)/cc^2-COS(cc*a)/cc^2, IF(p=2,(-2/cc^3*SIN(cc*xx)+2*xx/cc^2*COS(cc*xx)+2/cc^3*SIN(cc*a) -2*a/cc^2*COS(cc*a)), (-6*xx/cc^3*SIN(cc*xx)+(3*xx^2/cc^2-6/cc^4)*COS(cc*xx) +6*a/cc^3*SIN(cc*a)-(3*a^2/cc^2-6/cc^4)*COS(cc*a))) ) -> -0.1472864112 | U97: =IF(xx<=x0,(-1)*IF(pop=1,R97,IF(pop=2,S97,T97)),U95) -> 0.1472864112 | V97: =IF(xx<=x0,Q97-U97,V95) -> 0.02565482211
C98: 1.44 | D98: -2.884398771 | E98: -0.6583826963 | F98: 0.3861166201 | G98: -11.61801884 | H98: -0.7380351009 | I98: -1.044357682 | J98: 1.044357682 | K98: -0.658241062 | M98: =M96+dx -> 0.72 | N98: 0 | O98: =IF(xx<=x0,O96+dx,O96) -> 0.72 | P98: =N98 -> 0 | Q98: 0 | R98: 0 | S98: 0 | T98: 0 | U98: 0 | V98: 0
C99: =C98+dx -> 1.455 | D99: -2.998034509 | E99: =E98+(D98+D99)*dx/2 -> -0.7025009459 | F99: 0.3535041825 | G99: -12.36889441 | H99: -0.7837515636 | I99: -1.055862708 | J99: =IF(pop=1,G99,IF(pop=2,H99,I99))*(-1) -> 1.055862708 | K99: -0.7023585258 | M99: =M98 -> 0.72 | N99: =IF(pop=1,xx^p*EXP(cc*xx),IF(pop=2,xx^p*SIN(cc*xx),xx^p*COS(cc*xx))) -> 0.04868038844 | O99: =O98 -> 0.72 | P99: =IF(xx<=x0,IF(pop=1,xx^p*EXP(cc*xx),IF(pop=2,xx^p*SIN(cc*xx),xx^p*COS(cc*xx))),P97) -> 0.04868038844 | Q99: =IF(xx<=x0,IF(pop=1,xx^p*EXP(cc*xx)/cc,IF(pop=2,(-1)*xx^p*(COS(cc*xx))/cc,xx^p*SIN(cc*xx)/cc)),Q97) -> 0.1850299228 | R99: =IF(p=1,EXP(cc*xx)/cc^2-EXP(a*xx)/cc^2,IF(p=2,EXP(cc*xx)*(2*xx/cc^2-1/cc^3)-EXP(a*cc)*(2*a/cc^2-1/cc^3),EXP(cc*xx)*(-3*xx^2/cc^2+6*xx/cc^3-3/cc^4))-EXP(cc*a)*(-3*a^2/cc^2+6*a/cc^3-3/cc^4)) -> 0.03428874184 | S99: =IF(p=1,(SIN(cc*xx))/cc^2-SIN(a*cc)/cc^2,IF(p=2, 2*xx/cc^2*SIN(cc*xx)+2/cc^3*COS(cc*xx)- 2*a/cc^2*SIN(cc*a)+2/cc^3*COS(cc*a), 6*xx/cc^3*COS(cc*xx)+3/cc^4*(cc^2*xx^2-2)*SIN(cc*xx) - 6*a/cc^3*COS(cc*xx)+3/cc^4*(cc^2*a^2-2)*SIN(cc*a) )) -> 0.08411092792 | T99: =IF(p=1,COS(cc*xx)/cc^2-COS(cc*a)/cc^2, IF(p=2,(-2/cc^3*SIN(cc*xx)+2*xx/cc^2*COS(cc*xx)+2/cc^3*SIN(cc*a) -2*a/cc^2*COS(cc*a)), (-6*xx/cc^3*SIN(cc*xx)+(3*xx^2/cc^2-6/cc^4)*COS(cc*xx) +6*a/cc^3*SIN(cc*a)-(3*a^2/cc^2-6/cc^4)*COS(cc*a))) ) -> -0.1585876608 | U99: =IF(xx<=x0,(-1)*IF(pop=1,R99,IF(pop=2,S99,T99)),U97) -> 0.1585876608 | V99: =IF(xx<=x0,Q99-U99,V97) -> 0.02644226193
C100: 1.47 | D100: -3.11219499 | E100: -0.7483276672 | F100: 0.3180175759 | G100: -13.16093985 | H100: -0.830751702 | I100: -1.066202299 | J100: 1.066202299 | K100: -0.7481847226 | M100: =M98+dx -> 0.735 | N100: 0 | O100: =IF(xx<=x0,O98+dx,O98) -> 0.735 | P100: =N100 -> 0 | Q100: 0 | R100: 0 | S100: 0 | T100: 0 | U100: 0 | V100: 0
C101: 1.485 | D101: -3.226666236 | E101: -0.7958691264 | F101: 0.279585555 | G101: -13.99616077 | H101: -0.8790158278 | I101: -1.075311486 | J101: 1.075311486 | K101: -0.7957259309 | M101: =M100 -> 0.735 | N101: =IF(pop=1,xx^p*EXP(cc*xx),IF(pop=2,xx^p*SIN(cc*xx),xx^p*COS(cc*xx))) -> 0.03995499456 | O101: =O100 -> 0.735 | P101: =IF(xx<=x0,IF(pop=1,xx^p*EXP(cc*xx),IF(pop=2,xx^p*SIN(cc*xx),xx^p*COS(cc*xx))),P99) -> 0.03995499456 | Q101: =IF(xx<=x0,IF(pop=1,xx^p*EXP(cc*xx)/cc,IF(pop=2,(-1)*xx^p*(COS(cc*xx))/cc,xx^p*SIN(cc*xx)/cc)),Q99) -> 0.197525005 | R101: =IF(p=1,EXP(cc*xx)/cc^2-EXP(a*xx)/cc^2,IF(p=2,EXP(cc*xx)*(2*xx/cc^2-1/cc^3)-EXP(a*cc)*(2*a/cc^2-1/cc^3),EXP(cc*xx)*(-3*xx^2/cc^2+6*xx/cc^3-3/cc^4))-EXP(cc*a)*(-3*a^2/cc^2+6*a/cc^3-3/cc^4)) -> 0.007360117001 | S101: =IF(p=1,(SIN(cc*xx))/cc^2-SIN(a*cc)/cc^2,IF(p=2, 2*xx/cc^2*SIN(cc*xx)+2/cc^3*COS(cc*xx)- 2*a/cc^2*SIN(cc*a)+2/cc^3*COS(cc*a), 6*xx/cc^3*COS(cc*xx)+3/cc^4*(cc^2*xx^2-2)*SIN(cc*xx) - 6*a/cc^3*COS(cc*xx)+3/cc^4*(cc^2*a^2-2)*SIN(cc*a) )) -> 0.08548555951 | T101: =IF(p=1,COS(cc*xx)/cc^2-COS(cc*a)/cc^2, IF(p=2,(-2/cc^3*SIN(cc*xx)+2*xx/cc^2*COS(cc*xx)+2/cc^3*SIN(cc*a) -2*a/cc^2*COS(cc*a)), (-6*xx/cc^3*SIN(cc*xx)+(3*xx^2/cc^2-6/cc^4)*COS(cc*xx) +6*a/cc^3*SIN(cc*a)-(3*a^2/cc^2-6/cc^4)*COS(cc*a))) ) -> -0.1704162952 | U101: =IF(xx<=x0,(-1)*IF(pop=1,R101,IF(pop=2,S101,T101)),U99) -> 0.1704162952 | V101: =IF(xx<=x0,Q101-U101,V99) -> 0.0271087098
C102: 1.5 | D102: -3.341224676 | E102: -0.8451283082 | F102: 0.2381400136 | G102: -14.87665269 | H102: -0.9285215481 | I102: -1.083125161 | J102: 1.083125161 | K102: -0.8449851473 | M102: =M100+dx -> 0.75 | N102: 0 | O102: =IF(xx<=x0,O100+dx,O100) -> 0.75 | P102: =N102 -> 0 | Q102: 0 | R102: 0 | S102: 0 | T102: 0 | U102: 0 | V102: 0
C103: 1.515 | D103: -3.455637276 | E103: -0.8961047729 | F103: 0.1936162306 | G103: -15.80460483 | H103: -0.979243731 | I103: -1.089578174 | J103: 1.089578174 | K103: -0.8959619436 | M103: =M102 -> 0.75 | N103: =IF(pop=1,xx^p*EXP(cc*xx),IF(pop=2,xx^p*SIN(cc*xx),xx^p*COS(cc*xx))) -> 0.02984225695 | O103: =O102 -> 0.75 | P103: =IF(xx<=x0,IF(pop=1,xx^p*EXP(cc*xx),IF(pop=2,xx^p*SIN(cc*xx),xx^p*COS(cc*xx))),P101) -> 0.02984225695 | Q103: =IF(xx<=x0,IF(pop=1,xx^p*EXP(cc*xx)/cc,IF(pop=2,(-1)*xx^p*(COS(cc*xx))/cc,xx^p*SIN(cc*xx)/cc)),Q101) -> 0.2104090987 | R103: =IF(p=1,EXP(cc*xx)/cc^2-EXP(a*xx)/cc^2,IF(p=2,EXP(cc*xx)*(2*xx/cc^2-1/cc^3)-EXP(a*cc)*(2*a/cc^2-1/cc^3),EXP(cc*xx)*(-3*xx^2/cc^2+6*xx/cc^3-3/cc^4))-EXP(cc*a)*(-3*a^2/cc^2+6*a/cc^3-3/cc^4)) -> -0.02257917517 | S103: =IF(p=1,(SIN(cc*xx))/cc^2-SIN(a*cc)/cc^2,IF(p=2, 2*xx/cc^2*SIN(cc*xx)+2/cc^3*COS(cc*xx)- 2*a/cc^2*SIN(cc*a)+2/cc^3*COS(cc*a), 6*xx/cc^3*COS(cc*xx)+3/cc^4*(cc^2*xx^2-2)*SIN(cc*xx) - 6*a/cc^3*COS(cc*xx)+3/cc^4*(cc^2*a^2-2)*SIN(cc*a) )) -> 0.08654725344 | T103: =IF(p=1,COS(cc*xx)/cc^2-COS(cc*a)/cc^2, IF(p=2,(-2/cc^3*SIN(cc*xx)+2*xx/cc^2*COS(cc*xx)+2/cc^3*SIN(cc*a) -2*a/cc^2*COS(cc*a)), (-6*xx/cc^3*SIN(cc*xx)+(3*xx^2/cc^2-6/cc^4)*COS(cc*xx) +6*a/cc^3*SIN(cc*a)-(3*a^2/cc^2-6/cc^4)*COS(cc*a))) ) -> -0.1827751236 | U103: =IF(xx<=x0,(-1)*IF(pop=1,R103,IF(pop=2,S103,T103)),U101) -> 0.1827751236 | V103: =IF(xx<=x0,Q103-U103,V101) -> 0.0276339751
C104: 1.53 | D104: -3.569661687 | E104: -0.9487945151 | F104: 0.1459531161 | G104: -16.78230404 | H104: -1.031154474 | I104: -1.094605442 | J104: 1.094605442 | K104: -0.9486523261 | M104: =M102+dx -> 0.765 | N104: 0 | O104: =IF(xx<=x0,O102+dx,O102) -> 0.765 | P104: =N104 -> 0 | Q104: 0 | R104: 0 | S104: 0 | T104: 0 | U104: 0 | V104: 0
C105: 1.545 | D105: -3.683046413 | E105: -1.003189826 | F105: 0.09509345715 | G105: -17.81213893 | H105: -1.084223079 | I105: -1.098142054 | J105: 1.098142054 | K105: -1.003048597 | M105: =M104 -> 0.765 | N105: =IF(pop=1,xx^p*EXP(cc*xx),IF(pop=2,xx^p*SIN(cc*xx),xx^p*COS(cc*xx))) -> 0.01825933228 | O105: =O104 -> 0.765 | P105: =IF(xx<=x0,IF(pop=1,xx^p*EXP(cc*xx),IF(pop=2,xx^p*SIN(cc*xx),xx^p*COS(cc*xx))),P103) -> 0.01825933228 | Q105: =IF(xx<=x0,IF(pop=1,xx^p*EXP(cc*xx)/cc,IF(pop=2,(-1)*xx^p*(COS(cc*xx))/cc,xx^p*SIN(cc*xx)/cc)),Q103) -> 0.2236623082 | R105: =IF(p=1,EXP(cc*xx)/cc^2-EXP(a*xx)/cc^2,IF(p=2,EXP(cc*xx)*(2*xx/cc^2-1/cc^3)-EXP(a*cc)*(2*a/cc^2-1/cc^3),EXP(cc*xx)*(-3*xx^2/cc^2+6*xx/cc^3-3/cc^4))-EXP(cc*a)*(-3*a^2/cc^2+6*a/cc^3-3/cc^4)) -> -0.05573360051 | S105: =IF(p=1,(SIN(cc*xx))/cc^2-SIN(a*cc)/cc^2,IF(p=2, 2*xx/cc^2*SIN(cc*xx)+2/cc^3*COS(cc*xx)- 2*a/cc^2*SIN(cc*a)+2/cc^3*COS(cc*a), 6*xx/cc^3*COS(cc*xx)+3/cc^4*(cc^2*xx^2-2)*SIN(cc*xx) - 6*a/cc^3*COS(cc*xx)+3/cc^4*(cc^2*a^2-2)*SIN(cc*a) )) -> 0.0872659663 | T105: =IF(p=1,COS(cc*xx)/cc^2-COS(cc*a)/cc^2, IF(p=2,(-2/cc^3*SIN(cc*xx)+2*xx/cc^2*COS(cc*xx)+2/cc^3*SIN(cc*a) -2*a/cc^2*COS(cc*a)), (-6*xx/cc^3*SIN(cc*xx)+(3*xx^2/cc^2-6/cc^4)*COS(cc*xx) +6*a/cc^3*SIN(cc*a)-(3*a^2/cc^2-6/cc^4)*COS(cc*a))) ) -> -0.1956656817 | U105: =IF(xx<=x0,(-1)*IF(pop=1,R105,IF(pop=2,S105,T105)),U103) -> 0.1956656817 | V105: =IF(xx<=x0,Q105-U105,V103) -> 0.02799662658
C106: 1.56 | D106: -3.795531009 | E106: -1.059279156 | F106: 0.04098416285 | G106: -18.89660413 | H106: -1.138416026 | I106: -1.100123382 | J106: 1.100123382 | K106: -1.059139219 | M106: =M104+dx -> 0.78 | N106: 0 | O106: =IF(xx<=x0,O104+dx,O104) -> 0.78 | P106: =N106 -> 0 | Q106: 0 | R106: 0 | S106: 0 | T106: 0 | U106: 0 | V106: 0
C107: 1.575 | D107: -3.906846296 | E107: -1.117046986 | F107: -0.01642349205 | G107: -20.03830472 | H107: -1.193696956 | I107: -1.10048519 | J107: 1.10048519 | K107: -1.116908682 | M107: =M106 -> 0.78 | N107: =IF(pop=1,xx^p*EXP(cc*xx),IF(pop=2,xx^p*SIN(cc*xx),xx^p*COS(cc*xx))) -> 0.005123318942 | O107: =O106 -> 0.78 | P107: =IF(xx<=x0,IF(pop=1,xx^p*EXP(cc*xx),IF(pop=2,xx^p*SIN(cc*xx),xx^p*COS(cc*xx))),P105) -> 0.005123318942 | Q107: =IF(xx<=x0,IF(pop=1,xx^p*EXP(cc*xx)/cc,IF(pop=2,(-1)*xx^p*(COS(cc*xx))/cc,xx^p*SIN(cc*xx)/cc)),Q105) -> 0.2372621716 | R107: =IF(p=1,EXP(cc*xx)/cc^2-EXP(a*xx)/cc^2,IF(p=2,EXP(cc*xx)*(2*xx/cc^2-1/cc^3)-EXP(a*cc)*(2*a/cc^2-1/cc^3),EXP(cc*xx)*(-3*xx^2/cc^2+6*xx/cc^3-3/cc^4))-EXP(cc*a)*(-3*a^2/cc^2+6*a/cc^3-3/cc^4)) -> -0.09231868921 | S107: =IF(p=1,(SIN(cc*xx))/cc^2-SIN(a*cc)/cc^2,IF(p=2, 2*xx/cc^2*SIN(cc*xx)+2/cc^3*COS(cc*xx)- 2*a/cc^2*SIN(cc*a)+2/cc^3*COS(cc*a), 6*xx/cc^3*COS(cc*xx)+3/cc^4*(cc^2*xx^2-2)*SIN(cc*xx) - 6*a/cc^3*COS(cc*xx)+3/cc^4*(cc^2*a^2-2)*SIN(cc*a) )) -> 0.08761099033 | T107: =IF(p=1,COS(cc*xx)/cc^2-COS(cc*a)/cc^2, IF(p=2,(-2/cc^3*SIN(cc*xx)+2*xx/cc^2*COS(cc*xx)+2/cc^3*SIN(cc*a) -2*a/cc^2*COS(cc*a)), (-6*xx/cc^3*SIN(cc*xx)+(3*xx^2/cc^2-6/cc^4)*COS(cc*xx) +6*a/cc^3*SIN(cc*a)-(3*a^2/cc^2-6/cc^4)*COS(cc*a))) ) -> -0.209088182 | U107: =IF(xx<=x0,(-1)*IF(pop=1,R107,IF(pop=2,S107,T107)),U105) -> 0.209088182 | V107: =IF(xx<=x0,Q107-U107,V105) -> 0.02817398959
C108: 1.59 | D108: -4.016714601 | E108: -1.176473693 | F108: -0.07717362519 | G108: -21.23996092 | H108: -1.250026658 | I108: -1.099163749 | J108: 1.099163749 | K108: -1.176337375 | M108: =M106+dx -> 0.795 | N108: 0 | O108: =IF(xx<=x0,O106+dx,O106) -> 0.795 | P108: =N108 -> 0 | Q108: 0 | R108: 0 | S108: 0 | T108: 0 | U108: 0 | V108: 0
C109: 1.605 | D109: -4.124850019 | E109: -1.237535428 | F109: -0.141305507 | G109: -22.50441282 | H109: -1.307363054 | I109: -1.09609595 | J109: 1.09609595 | K109: -1.237401457 | M109: =M108 -> 0.795 | N109: =IF(pop=1,xx^p*EXP(cc*xx),IF(pop=2,xx^p*SIN(cc*xx),xx^p*COS(cc*xx))) -> -0.009648482183 | O109: =O108 -> 0.795 | P109: =IF(xx<=x0,IF(pop=1,xx^p*EXP(cc*xx),IF(pop=2,xx^p*SIN(cc*xx),xx^p*COS(cc*xx))),P107) -> -0.009648482183 | Q109: =IF(xx<=x0,IF(pop=1,xx^p*EXP(cc*xx)/cc,IF(pop=2,(-1)*xx^p*(COS(cc*xx))/cc,xx^p*SIN(cc*xx)/cc)),Q107) -> 0.2511836145 | R109: =IF(p=1,EXP(cc*xx)/cc^2-EXP(a*xx)/cc^2,IF(p=2,EXP(cc*xx)*(2*xx/cc^2-1/cc^3)-EXP(a*cc)*(2*a/cc^2-1/cc^3),EXP(cc*xx)*(-3*xx^2/cc^2+6*xx/cc^3-3/cc^4))-EXP(cc*a)*(-3*a^2/cc^2+6*a/cc^3-3/cc^4)) -> -0.1325615629 | S109: =IF(p=1,(SIN(cc*xx))/cc^2-SIN(a*cc)/cc^2,IF(p=2, 2*xx/cc^2*SIN(cc*xx)+2/cc^3*COS(cc*xx)- 2*a/cc^2*SIN(cc*a)+2/cc^3*COS(cc*a), 6*xx/cc^3*COS(cc*xx)+3/cc^4*(cc^2*xx^2-2)*SIN(cc*xx) - 6*a/cc^3*COS(cc*xx)+3/cc^4*(cc^2*a^2-2)*SIN(cc*a) )) -> 0.08755100605 | T109: =IF(p=1,COS(cc*xx)/cc^2-COS(cc*a)/cc^2, IF(p=2,(-2/cc^3*SIN(cc*xx)+2*xx/cc^2*COS(cc*xx)+2/cc^3*SIN(cc*a) -2*a/cc^2*COS(cc*a)), (-6*xx/cc^3*SIN(cc*xx)+(3*xx^2/cc^2-6/cc^4)*COS(cc*xx) +6*a/cc^3*SIN(cc*a)-(3*a^2/cc^2-6/cc^4)*COS(cc*a))) ) -> -0.2230414674 | U109: =IF(xx<=x0,(-1)*IF(pop=1,R109,IF(pop=2,S109,T109)),U107) -> 0.2230414674 | V109: =IF(xx<=x0,Q109-U109,V107) -> 0.02814214713
C110: 1.62 | D110: -4.230958697 | E110: -1.300203993 | F110: -0.2088533236 | G110: -23.83462542 | H110: -1.365661197 | I110: -1.091219419 | J110: 1.091219419 | K110: -1.300072743 | M110: =M108+dx -> 0.81 | N110: 0 | O110: =IF(xx<=x0,O108+dx,O108) -> 0.81 | P110: =N110 -> 0 | Q110: 0 | R110: 0 | S110: 0 | T110: 0 | U110: 0 | V110: 0
C111: 1.635 | D111: -4.334739143 | E111: -1.364446727 | F111: -0.2798459437 | G111: -25.23369384 | H111: -1.424873266 | I111: -1.084472635 | J111: 1.084472635 | K111: -1.364318578 | M111: =M110 -> 0.81 | N111: =IF(pop=1,xx^p*EXP(cc*xx),IF(pop=2,xx^p*SIN(cc*xx),xx^p*COS(cc*xx))) -> -0.0261382995 | O111: =O110 -> 0.81 | P111: =IF(xx<=x0,IF(pop=1,xx^p*EXP(cc*xx),IF(pop=2,xx^p*SIN(cc*xx),xx^p*COS(cc*xx))),P109) -> -0.0261382995 | Q111: =IF(xx<=x0,IF(pop=1,xx^p*EXP(cc*xx)/cc,IF(pop=2,(-1)*xx^p*(COS(cc*xx))/cc,xx^p*SIN(cc*xx)/cc)),Q109) -> 0.26539891 | R111: =IF(p=1,EXP(cc*xx)/cc^2-EXP(a*xx)/cc^2,IF(p=2,EXP(cc*xx)*(2*xx/cc^2-1/cc^3)-EXP(a*cc)*(2*a/cc^2-1/cc^3),EXP(cc*xx)*(-3*xx^2/cc^2+6*xx/cc^3-3/cc^4))-EXP(cc*a)*(-3*a^2/cc^2+6*a/cc^3-3/cc^4)) -> -0.1767014846 | S111: =IF(p=1,(SIN(cc*xx))/cc^2-SIN(a*cc)/cc^2,IF(p=2, 2*xx/cc^2*SIN(cc*xx)+2/cc^3*COS(cc*xx)- 2*a/cc^2*SIN(cc*a)+2/cc^3*COS(cc*a), 6*xx/cc^3*COS(cc*xx)+3/cc^4*(cc^2*xx^2-2)*SIN(cc*xx) - 6*a/cc^3*COS(cc*xx)+3/cc^4*(cc^2*a^2-2)*SIN(cc*a) )) -> 0.0870541374 | T111: =IF(p=1,COS(cc*xx)/cc^2-COS(cc*a)/cc^2, IF(p=2,(-2/cc^3*SIN(cc*xx)+2*xx/cc^2*COS(cc*xx)+2/cc^3*SIN(cc*a) -2*a/cc^2*COS(cc*a)), (-6*xx/cc^3*SIN(cc*xx)+(3*xx^2/cc^2-6/cc^4)*COS(cc*xx) +6*a/cc^3*SIN(cc*a)-(3*a^2/cc^2-6/cc^4)*COS(cc*a))) ) -> -0.2375229651 | U111: =IF(xx<=x0,(-1)*IF(pop=1,R111,IF(pop=2,S111,T111)),U109) -> 0.2375229651 | V111: =IF(xx<=x0,Q111-U111,V109) -> 0.02787594492
C112: 1.65 | D112: -4.435882561 | E112: -1.43022639 | F112: -0.3543066882 | G112: -26.70484873 | H112: -1.484948569 | I112: -1.075795045 | J112: 1.075795045 | K112: -1.430101733 | M112: =M110+dx -> 0.825 | N112: 0 | O112: =IF(xx<=x0,O110+dx,O110) -> 0.825 | P112: =N112 -> 0 | Q112: 0 | R112: 0 | S112: 0 | T112: 0 | U112: 0 | V112: 0
C113: 1.665 | D113: -4.534073199 | E113: -1.497501058 | F113: -0.4322531047 | G113: -28.25146186 | H113: -1.545833553 | I113: -1.065127188 | J113: 1.065127188 | K113: -1.497380292 | M113: =M112 -> 0.825 | N113: =IF(pop=1,xx^p*EXP(cc*xx),IF(pop=2,xx^p*SIN(cc*xx),xx^p*COS(cc*xx))) -> -0.04442761533 | O113: =O112 -> 0.825 | P113: =IF(xx<=x0,IF(pop=1,xx^p*EXP(cc*xx),IF(pop=2,xx^p*SIN(cc*xx),xx^p*COS(cc*xx))),P111) -> -0.04442761533 | Q113: =IF(xx<=x0,IF(pop=1,xx^p*EXP(cc*xx)/cc,IF(pop=2,(-1)*xx^p*(COS(cc*xx))/cc,xx^p*SIN(cc*xx)/cc)),Q111) -> 0.2798776447 | R113: =IF(p=1,EXP(cc*xx)/cc^2-EXP(a*xx)/cc^2,IF(p=2,EXP(cc*xx)*(2*xx/cc^2-1/cc^3)-EXP(a*cc)*(2*a/cc^2-1/cc^3),EXP(cc*xx)*(-3*xx^2/cc^2+6*xx/cc^3-3/cc^4))-EXP(cc*a)*(-3*a^2/cc^2+6*a/cc^3-3/cc^4)) -> -0.2249904332 | S113: =IF(p=1,(SIN(cc*xx))/cc^2-SIN(a*cc)/cc^2,IF(p=2, 2*xx/cc^2*SIN(cc*xx)+2/cc^3*COS(cc*xx)- 2*a/cc^2*SIN(cc*a)+2/cc^3*COS(cc*a), 6*xx/cc^3*COS(cc*xx)+3/cc^4*(cc^2*xx^2-2)*SIN(cc*xx) - 6*a/cc^3*COS(cc*xx)+3/cc^4*(cc^2*a^2-2)*SIN(cc*a) )) -> 0.08608800937 | T113: =IF(p=1,COS(cc*xx)/cc^2-COS(cc*a)/cc^2, IF(p=2,(-2/cc^3*SIN(cc*xx)+2*xx/cc^2*COS(cc*xx)+2/cc^3*SIN(cc*a) -2*a/cc^2*COS(cc*a)), (-6*xx/cc^3*SIN(cc*xx)+(3*xx^2/cc^2-6/cc^4)*COS(cc*xx) +6*a/cc^3*SIN(cc*a)-(3*a^2/cc^2-6/cc^4)*COS(cc*a))) ) -> -0.2525286443 | U113: =IF(xx<=x0,(-1)*IF(pop=1,R113,IF(pop=2,S113,T113)),U111) -> 0.2525286443 | V113: =IF(xx<=x0,Q113-U113,V111) -> 0.02734900049
C114: 1.68 | D114: -4.628988727 | E114: -1.566224022 | F114: -0.5136967474 | G114: -29.87705204 | H114: -1.607471812 | I114: -1.052410807 | J114: 1.052410807 | K114: -1.566107555 | M114: =M112+dx -> 0.84 | N114: 0 | O114: =IF(xx<=x0,O112+dx,O112) -> 0.84 | P114: =N114 -> 0 | Q114: 0 | R114: 0 | S114: 0 | T114: 0 | U114: 0 | V114: 0
C115: 1.695 | D115: -4.720300637 | E115: -1.636343692 | F115: -0.5986429606 | G115: -31.58529112 | H115: -1.669804105 | I115: -1.037588976 | J115: 1.037588976 | K115: -1.636231937 | M115: =M114 -> 0.84 | N115: =IF(pop=1,xx^p*EXP(cc*xx),IF(pop=2,xx^p*SIN(cc*xx),xx^p*COS(cc*xx))) -> -0.064596884 | O115: =O114 -> 0.84 | P115: =IF(xx<=x0,IF(pop=1,xx^p*EXP(cc*xx),IF(pop=2,xx^p*SIN(cc*xx),xx^p*COS(cc*xx))),P113) -> -0.064596884 | Q115: =IF(xx<=x0,IF(pop=1,xx^p*EXP(cc*xx)/cc,IF(pop=2,(-1)*xx^p*(COS(cc*xx))/cc,xx^p*SIN(cc*xx)/cc)),Q113) -> 0.2945866911 | R115: =IF(p=1,EXP(cc*xx)/cc^2-EXP(a*xx)/cc^2,IF(p=2,EXP(cc*xx)*(2*xx/cc^2-1/cc^3)-EXP(a*cc)*(2*a/cc^2-1/cc^3),EXP(cc*xx)*(-3*xx^2/cc^2+6*xx/cc^3-3/cc^4))-EXP(cc*a)*(-3*a^2/cc^2+6*a/cc^3-3/cc^4)) -> -0.2776937027 | S115: =IF(p=1,(SIN(cc*xx))/cc^2-SIN(a*cc)/cc^2,IF(p=2, 2*xx/cc^2*SIN(cc*xx)+2/cc^3*COS(cc*xx)- 2*a/cc^2*SIN(cc*a)+2/cc^3*COS(cc*a), 6*xx/cc^3*COS(cc*xx)+3/cc^4*(cc^2*xx^2-2)*SIN(cc*xx) - 6*a/cc^3*COS(cc*xx)+3/cc^4*(cc^2*a^2-2)*SIN(cc*a) )) -> 0.08461980787 | T115: =IF(p=1,COS(cc*xx)/cc^2-COS(cc*a)/cc^2, IF(p=2,(-2/cc^3*SIN(cc*xx)+2*xx/cc^2*COS(cc*xx)+2/cc^3*SIN(cc*a) -2*a/cc^2*COS(cc*a)), (-6*xx/cc^3*SIN(cc*xx)+(3*xx^2/cc^2-6/cc^4)*COS(cc*xx) +6*a/cc^3*SIN(cc*a)-(3*a^2/cc^2-6/cc^4)*COS(cc*a))) ) -> -0.2680529746 | U115: =IF(xx<=x0,(-1)*IF(pop=1,R115,IF(pop=2,S115,T115)),U113) -> 0.2680529746 | V115: =IF(xx<=x0,Q115-U115,V113) -> 0.02653371648
C116: 1.71 | D116: -4.807674666 | E116: -1.707803507 | F116: -0.6870906698 | G116: -33.3800104 | H116: -1.732768377 | I116: -1.020606215 | J116: 1.020606215 | K116: -1.707696885 | M116: =M114+dx -> 0.855 | N116: 0 | O116: =IF(xx<=x0,O114+dx,O114) -> 0.855 | P116: =N116 -> 0 | Q116: 0 | R116: 0 | S116: 0 | T116: 0 | U116: 0 | V116: 0
C117: 1.725 | D117: -4.890771232 | E117: -1.780541851 | F117: -0.7790321781 | G117: -35.26520716 | H117: -1.796299783 | I117: -1.001408612 | J117: 1.001408612 | K117: -1.78044079 | M117: =M116 -> 0.855 | N117: =IF(pop=1,xx^p*EXP(cc*xx),IF(pop=2,xx^p*SIN(cc*xx),xx^p*COS(cc*xx))) -> -0.086725244 | O117: =O116 -> 0.855 | P117: =IF(xx<=x0,IF(pop=1,xx^p*EXP(cc*xx),IF(pop=2,xx^p*SIN(cc*xx),xx^p*COS(cc*xx))),P115) -> -0.086725244 | Q117: =IF(xx<=x0,IF(pop=1,xx^p*EXP(cc*xx)/cc,IF(pop=2,(-1)*xx^p*(COS(cc*xx))/cc,xx^p*SIN(cc*xx)/cc)),Q115) -> 0.3094901862 | R117: =IF(p=1,EXP(cc*xx)/cc^2-EXP(a*xx)/cc^2,IF(p=2,EXP(cc*xx)*(2*xx/cc^2-1/cc^3)-EXP(a*cc)*(2*a/cc^2-1/cc^3),EXP(cc*xx)*(-3*xx^2/cc^2+6*xx/cc^3-3/cc^4))-EXP(cc*a)*(-3*a^2/cc^2+6*a/cc^3-3/cc^4)) -> -0.3350905277 | S117: =IF(p=1,(SIN(cc*xx))/cc^2-SIN(a*cc)/cc^2,IF(p=2, 2*xx/cc^2*SIN(cc*xx)+2/cc^3*COS(cc*xx)- 2*a/cc^2*SIN(cc*a)+2/cc^3*COS(cc*a), 6*xx/cc^3*COS(cc*xx)+3/cc^4*(cc^2*xx^2-2)*SIN(cc*xx) - 6*a/cc^3*COS(cc*xx)+3/cc^4*(cc^2*a^2-2)*SIN(cc*a) )) -> 0.08261634191 | T117: =IF(p=1,COS(cc*xx)/cc^2-COS(cc*a)/cc^2, IF(p=2,(-2/cc^3*SIN(cc*xx)+2*xx/cc^2*COS(cc*xx)+2/cc^3*SIN(cc*a) -2*a/cc^2*COS(cc*a)), (-6*xx/cc^3*SIN(cc*xx)+(3*xx^2/cc^2-6/cc^4)*COS(cc*xx) +6*a/cc^3*SIN(cc*a)-(3*a^2/cc^2-6/cc^4)*COS(cc*a))) ) -> -0.284088888 | U117: =IF(xx<=x0,(-1)*IF(pop=1,R117,IF(pop=2,S117,T117)),U115) -> 0.284088888 | V117: =IF(xx<=x0,Q117-U117,V115) -> 0.02540129824
C118: 1.74 | D118: -4.969245907 | E118: -1.85449198 | F118: -0.8744529696 | G118: -37.2450515 | H118: -1.860330723 | I118: -0.9799439438 | J118: 0.9799439438 | K118: -1.854396913 | M118: =M116+dx -> 0.87 | N118: 0 | O118: =IF(xx<=x0,O116+dx,O116) -> 0.87 | P118: =N118 -> 0 | Q118: 0 | R118: 0 | S118: 0 | T118: 0 | U118: 0 | V118: 0
C119: 1.755 | D119: -5.042749894 | E119: -1.929581949 | F119: -0.9733315202 | G119: -39.32389347 | H119: -1.924790872 | I119: -0.9561617946 | J119: 0.9561617946 | K119: -1.929493315 | M119: =M118 -> 0.87 | N119: =IF(pop=1,xx^p*EXP(cc*xx),IF(pop=2,xx^p*SIN(cc*xx),xx^p*COS(cc*xx))) -> -0.1108902247 | O119: =O118 -> 0.87 | P119: =IF(xx<=x0,IF(pop=1,xx^p*EXP(cc*xx),IF(pop=2,xx^p*SIN(cc*xx),xx^p*COS(cc*xx))),P117) -> -0.1108902247 | Q119: =IF(xx<=x0,IF(pop=1,xx^p*EXP(cc*xx)/cc,IF(pop=2,(-1)*xx^p*(COS(cc*xx))/cc,xx^p*SIN(cc*xx)/cc)),Q117) -> 0.3245495182 | R119: =IF(p=1,EXP(cc*xx)/cc^2-EXP(a*xx)/cc^2,IF(p=2,EXP(cc*xx)*(2*xx/cc^2-1/cc^3)-EXP(a*cc)*(2*a/cc^2-1/cc^3),EXP(cc*xx)*(-3*xx^2/cc^2+6*xx/cc^3-3/cc^4))-EXP(cc*a)*(-3*a^2/cc^2+6*a/cc^3-3/cc^4)) -> -0.3974747359 | S119: =IF(p=1,(SIN(cc*xx))/cc^2-SIN(a*cc)/cc^2,IF(p=2, 2*xx/cc^2*SIN(cc*xx)+2/cc^3*COS(cc*xx)- 2*a/cc^2*SIN(cc*a)+2/cc^3*COS(cc*a), 6*xx/cc^3*COS(cc*xx)+3/cc^4*(cc^2*xx^2-2)*SIN(cc*xx) - 6*a/cc^3*COS(cc*xx)+3/cc^4*(cc^2*a^2-2)*SIN(cc*a) )) -> 0.080044108 | T119: =IF(p=1,COS(cc*xx)/cc^2-COS(cc*a)/cc^2, IF(p=2,(-2/cc^3*SIN(cc*xx)+2*xx/cc^2*COS(cc*xx)+2/cc^3*SIN(cc*a) -2*a/cc^2*COS(cc*a)), (-6*xx/cc^3*SIN(cc*xx)+(3*xx^2/cc^2-6/cc^4)*COS(cc*xx) +6*a/cc^3*SIN(cc*a)-(3*a^2/cc^2-6/cc^4)*COS(cc*a))) ) -> -0.3006277425 | U119: =IF(xx<=x0,(-1)*IF(pop=1,R119,IF(pop=2,S119,T119)),U117) -> 0.3006277425 | V119: =IF(xx<=x0,Q119-U119,V117) -> 0.02392177574
C120: 1.77 | D120: -5.110930541 | E120: -2.005734552 | F120: -1.075639116 | G120: -41.50627047 | H120: -1.989607224 | I120: -0.9300136778 | J120: 0.9300136778 | K120: -2.005652794 | M120: =M118+dx -> 0.885 | N120: 0 | O120: =IF(xx<=x0,O118+dx,O118) -> 0.885 | P120: =N120 -> 0 | Q120: 0 | R120: 0 | S120: 0 | T120: 0 | U120: 0 | V120: 0
C121: 1.785 | D121: -5.173431861 | E121: -2.08286727 | F121: -1.181339682 | G121: -43.7969149 | H121: -2.054704135 | I121: -0.9014531534 | J121: 0.9014531534 | K121: -2.082792835 | M121: =M120 -> 0.885 | N121: =IF(pop=1,xx^p*EXP(cc*xx),IF(pop=2,xx^p*SIN(cc*xx),xx^p*COS(cc*xx))) -> -0.1371674481 | O121: =O120 -> 0.885 | P121: =IF(xx<=x0,IF(pop=1,xx^p*EXP(cc*xx),IF(pop=2,xx^p*SIN(cc*xx),xx^p*COS(cc*xx))),P119) -> -0.1371674481 | Q121: =IF(xx<=x0,IF(pop=1,xx^p*EXP(cc*xx)/cc,IF(pop=2,(-1)*xx^p*(COS(cc*xx))/cc,xx^p*SIN(cc*xx)/cc)),Q119) -> 0.3397233184 | R121: =IF(p=1,EXP(cc*xx)/cc^2-EXP(a*xx)/cc^2,IF(p=2,EXP(cc*xx)*(2*xx/cc^2-1/cc^3)-EXP(a*cc)*(2*a/cc^2-1/cc^3),EXP(cc*xx)*(-3*xx^2/cc^2+6*xx/cc^3-3/cc^4))-EXP(cc*a)*(-3*a^2/cc^2+6*a/cc^3-3/cc^4)) -> -0.4651554296 | S121: =IF(p=1,(SIN(cc*xx))/cc^2-SIN(a*cc)/cc^2,IF(p=2, 2*xx/cc^2*SIN(cc*xx)+2/cc^3*COS(cc*xx)- 2*a/cc^2*SIN(cc*a)+2/cc^3*COS(cc*a), 6*xx/cc^3*COS(cc*xx)+3/cc^4*(cc^2*xx^2-2)*SIN(cc*xx) - 6*a/cc^3*COS(cc*xx)+3/cc^4*(cc^2*a^2-2)*SIN(cc*a) )) -> 0.07686935653 | T121: =IF(p=1,COS(cc*xx)/cc^2-COS(cc*a)/cc^2, IF(p=2,(-2/cc^3*SIN(cc*xx)+2*xx/cc^2*COS(cc*xx)+2/cc^3*SIN(cc*a) -2*a/cc^2*COS(cc*a)), (-6*xx/cc^3*SIN(cc*xx)+(3*xx^2/cc^2-6/cc^4)*COS(cc*xx) +6*a/cc^3*SIN(cc*a)-(3*a^2/cc^2-6/cc^4)*COS(cc*a))) ) -> -0.3176592885 | U121: =IF(xx<=x0,(-1)*IF(pop=1,R121,IF(pop=2,S121,T121)),U119) -> 0.3176592885 | V121: =IF(xx<=x0,Q121-U121,V119) -> 0.02206402992
C122: 1.8 | D122: -5.229895084 | E122: -2.160892222 | F122: -1.290389613 | G122: -46.20076216 | H122: -2.120003373 | I122: -0.8704359471 | J122: 0.8704359471 | K122: -2.16082556 | M122: =M120+dx -> 0.9 | N122: 0 | O122: =IF(xx<=x0,O120+dx,O120) -> 0.9 | P122: =N122 -> 0 | Q122: 0 | R122: 0 | S122: 0 | T122: 0 | U122: 0 | V122: 0
C123: 1.815 | D123: -5.279959219 | E123: -2.239716129 | F123: -1.402737624 | G123: -48.72295899 | H123: -2.185424174 | I123: -0.8369200678 | J123: 0.8369200678 | K123: -2.239657692 | M123: =M122 -> 0.9 | N123: =IF(pop=1,xx^p*EXP(cc*xx),IF(pop=2,xx^p*SIN(cc*xx),xx^p*COS(cc*xx))) -> -0.165630327 | O123: =O122 -> 0.9 | P123: =IF(xx<=x0,IF(pop=1,xx^p*EXP(cc*xx),IF(pop=2,xx^p*SIN(cc*xx),xx^p*COS(cc*xx))),P121) -> -0.165630327 | Q123: =IF(xx<=x0,IF(pop=1,xx^p*EXP(cc*xx)/cc,IF(pop=2,(-1)*xx^p*(COS(cc*xx))/cc,xx^p*SIN(cc*xx)/cc)),Q121) -> 0.3549674615 | R123: =IF(p=1,EXP(cc*xx)/cc^2-EXP(a*xx)/cc^2,IF(p=2,EXP(cc*xx)*(2*xx/cc^2-1/cc^3)-EXP(a*cc)*(2*a/cc^2-1/cc^3),EXP(cc*xx)*(-3*xx^2/cc^2+6*xx/cc^3-3/cc^4))-EXP(cc*a)*(-3*a^2/cc^2+6*a/cc^3-3/cc^4)) -> -0.5384576957 | S123: =IF(p=1,(SIN(cc*xx))/cc^2-SIN(a*cc)/cc^2,IF(p=2, 2*xx/cc^2*SIN(cc*xx)+2/cc^3*COS(cc*xx)- 2*a/cc^2*SIN(cc*a)+2/cc^3*COS(cc*a), 6*xx/cc^3*COS(cc*xx)+3/cc^4*(cc^2*xx^2-2)*SIN(cc*xx) - 6*a/cc^3*COS(cc*xx)+3/cc^4*(cc^2*a^2-2)*SIN(cc*a) )) -> 0.07305816026 | T123: =IF(p=1,COS(cc*xx)/cc^2-COS(cc*a)/cc^2, IF(p=2,(-2/cc^3*SIN(cc*xx)+2*xx/cc^2*COS(cc*xx)+2/cc^3*SIN(cc*a) -2*a/cc^2*COS(cc*a)), (-6*xx/cc^3*SIN(cc*xx)+(3*xx^2/cc^2-6/cc^4)*COS(cc*xx) +6*a/cc^3*SIN(cc*a)-(3*a^2/cc^2-6/cc^4)*COS(cc*a))) ) -> -0.3351716379 | U123: =IF(xx<=x0,(-1)*IF(pop=1,R123,IF(pop=2,S123,T123)),U121) -> 0.3351716379 | V123: =IF(xx<=x0,Q123-U123,V121) -> 0.0197958236
C124: 1.83 | D124: -5.323261641 | E124: -2.319240286 | F124: -1.518324604 | G124: -51.36887205 | H124: -2.250883301 | I124: -0.8008659237 | J124: 0.8008659237 | K124: -2.319190528 | M124: =M122+dx -> 0.915 | N124: 0 | O124: =IF(xx<=x0,O122+dx,O122) -> 0.915 | P124: =N124 -> 0 | Q124: 0 | R124: 0 | S124: 0 | T124: 0 | U124: 0 | V124: 0
C125: 1.845 | D125: -5.359438689 | E125: -2.399360538 | F125: -1.637083477 | G125: -54.14409695 | H125: -2.316295107 | I125: -0.7622364373 | J125: 0.7622364373 | K125: -2.399319915 | M125: =M124 -> 0.915 | N125: =IF(pop=1,xx^p*EXP(cc*xx),IF(pop=2,xx^p*SIN(cc*xx),xx^p*COS(cc*xx))) -> -0.1963497586 | O125: =O124 -> 0.915 | P125: =IF(xx<=x0,IF(pop=1,xx^p*EXP(cc*xx),IF(pop=2,xx^p*SIN(cc*xx),xx^p*COS(cc*xx))),P123) -> -0.1963497586 | Q125: =IF(xx<=x0,IF(pop=1,xx^p*EXP(cc*xx)/cc,IF(pop=2,(-1)*xx^p*(COS(cc*xx))/cc,xx^p*SIN(cc*xx)/cc)),Q123) -> 0.3702350728 | R125: =IF(p=1,EXP(cc*xx)/cc^2-EXP(a*xx)/cc^2,IF(p=2,EXP(cc*xx)*(2*xx/cc^2-1/cc^3)-EXP(a*cc)*(2*a/cc^2-1/cc^3),EXP(cc*xx)*(-3*xx^2/cc^2+6*xx/cc^3-3/cc^4))-EXP(cc*a)*(-3*a^2/cc^2+6*a/cc^3-3/cc^4)) -> -0.6177233473 | S125: =IF(p=1,(SIN(cc*xx))/cc^2-SIN(a*cc)/cc^2,IF(p=2, 2*xx/cc^2*SIN(cc*xx)+2/cc^3*COS(cc*xx)- 2*a/cc^2*SIN(cc*a)+2/cc^3*COS(cc*a), 6*xx/cc^3*COS(cc*xx)+3/cc^4*(cc^2*xx^2-2)*SIN(cc*xx) - 6*a/cc^3*COS(cc*xx)+3/cc^4*(cc^2*a^2-2)*SIN(cc*a) )) -> 0.06857648457 | T125: =IF(p=1,COS(cc*xx)/cc^2-COS(cc*a)/cc^2, IF(p=2,(-2/cc^3*SIN(cc*xx)+2*xx/cc^2*COS(cc*xx)+2/cc^3*SIN(cc*a) -2*a/cc^2*COS(cc*a)), (-6*xx/cc^3*SIN(cc*xx)+(3*xx^2/cc^2-6/cc^4)*COS(cc*xx) +6*a/cc^3*SIN(cc*a)-(3*a^2/cc^2-6/cc^4)*COS(cc*a))) ) -> -0.3531512359 | U125: =IF(xx<=x0,(-1)*IF(pop=1,R125,IF(pop=2,S125,T125)),U123) -> 0.3531512359 | V125: =IF(xx<=x0,Q125-U125,V123) -> 0.01708383687
C126: 1.86 | D126: -5.388126294 | E126: -2.479967275 | F126: -1.758939082 | G126: -57.05446751 | H126: -2.381571607 | I126: -0.7209971592 | J126: 0.7209971592 | K126: -2.479936241 | M126: =M124+dx -> 0.93 | N126: 0 | O126: =IF(xx<=x0,O124+dx,O124) -> 0.93 | P126: =N126 -> 0 | Q126: 0 | R126: 0 | S126: 0 | T126: 0 | U126: 0 | V126: 0
C127: 1.875 | D127: -5.408960607 | E127: -2.560945427 | F127: -1.883808057 | G127: -60.10606549 | H127: -2.446622548 | I127: -0.6771163795 | J127: 0.6771163795 | K127: -2.560924437 | M127: =M126 -> 0.93 | N127: =IF(pop=1,xx^p*EXP(cc*xx),IF(pop=2,xx^p*SIN(cc*xx),xx^p*COS(cc*xx))) -> -0.2293938161 | O127: =O126 -> 0.93 | P127: =IF(xx<=x0,IF(pop=1,xx^p*EXP(cc*xx),IF(pop=2,xx^p*SIN(cc*xx),xx^p*COS(cc*xx))),P125) -> -0.2293938161 | Q127: =IF(xx<=x0,IF(pop=1,xx^p*EXP(cc*xx)/cc,IF(pop=2,(-1)*xx^p*(COS(cc*xx))/cc,xx^p*SIN(cc*xx)/cc)),Q125) -> 0.3854765429 | R127: =IF(p=1,EXP(cc*xx)/cc^2-EXP(a*xx)/cc^2,IF(p=2,EXP(cc*xx)*(2*xx/cc^2-1/cc^3)-EXP(a*cc)*(2*a/cc^2-1/cc^3),EXP(cc*xx)*(-3*xx^2/cc^2+6*xx/cc^3-3/cc^4))-EXP(cc*a)*(-3*a^2/cc^2+6*a/cc^3-3/cc^4)) -> -0.7033116968 | S127: =IF(p=1,(SIN(cc*xx))/cc^2-SIN(a*cc)/cc^2,IF(p=2, 2*xx/cc^2*SIN(cc*xx)+2/cc^3*COS(cc*xx)- 2*a/cc^2*SIN(cc*a)+2/cc^3*COS(cc*a), 6*xx/cc^3*COS(cc*xx)+3/cc^4*(cc^2*xx^2-2)*SIN(cc*xx) - 6*a/cc^3*COS(cc*xx)+3/cc^4*(cc^2*a^2-2)*SIN(cc*a) )) -> 0.06339025957 | T127: =IF(p=1,COS(cc*xx)/cc^2-COS(cc*a)/cc^2, IF(p=2,(-2/cc^3*SIN(cc*xx)+2*xx/cc^2*COS(cc*xx)+2/cc^3*SIN(cc*a) -2*a/cc^2*COS(cc*a)), (-6*xx/cc^3*SIN(cc*xx)+(3*xx^2/cc^2-6/cc^4)*COS(cc*xx) +6*a/cc^3*SIN(cc*a)-(3*a^2/cc^2-6/cc^4)*COS(cc*a))) ) -> -0.3715828357 | U127: =IF(xx<=x0,(-1)*IF(pop=1,R127,IF(pop=2,S127,T127)),U125) -> 0.3715828357 | V127: =IF(xx<=x0,Q127-U127,V125) -> 0.01389370719
C128: 1.89 | D128: -5.421578658 | E128: -2.642174472 | F128: -2.01159874 | G128: -63.30523068 | H128: -2.511355492 | I128: -0.6305652382 | J128: 0.6305652382 | K128: -2.642163978 | M128: =M126+dx -> 0.945 | N128: 0 | O128: =IF(xx<=x0,O126+dx,O126) -> 0.945 | P128: =N128 -> 0 | Q128: 0 | R128: 0 | S128: 0 | T128: 0 | U128: 0 | V128: 0
C129: 1.905 | D129: -5.425619021 | E129: -2.723528454 | F129: -2.142211075 | G129: -66.65857131 | H129: -2.575675898 | I129: -0.5813178327 | J129: 0.5813178327 | K129: -2.723528908 | M129: =M128 -> 0.945 | N129: =IF(pop=1,xx^p*EXP(cc*xx),IF(pop=2,xx^p*SIN(cc*xx),xx^p*COS(cc*xx))) -> -0.2648274377 | O129: =O128 -> 0.945 | P129: =IF(xx<=x0,IF(pop=1,xx^p*EXP(cc*xx),IF(pop=2,xx^p*SIN(cc*xx),xx^p*COS(cc*xx))),P127) -> -0.2648274377 | Q129: =IF(xx<=x0,IF(pop=1,xx^p*EXP(cc*xx)/cc,IF(pop=2,(-1)*xx^p*(COS(cc*xx))/cc,xx^p*SIN(cc*xx)/cc)),Q127) -> 0.4006395498 | R129: =IF(p=1,EXP(cc*xx)/cc^2-EXP(a*xx)/cc^2,IF(p=2,EXP(cc*xx)*(2*xx/cc^2-1/cc^3)-EXP(a*cc)*(2*a/cc^2-1/cc^3),EXP(cc*xx)*(-3*xx^2/cc^2+6*xx/cc^3-3/cc^4))-EXP(cc*a)*(-3*a^2/cc^2+6*a/cc^3-3/cc^4)) -> -0.7956003623 | S129: =IF(p=1,(SIN(cc*xx))/cc^2-SIN(a*cc)/cc^2,IF(p=2, 2*xx/cc^2*SIN(cc*xx)+2/cc^3*COS(cc*xx)- 2*a/cc^2*SIN(cc*a)+2/cc^3*COS(cc*a), 6*xx/cc^3*COS(cc*xx)+3/cc^4*(cc^2*xx^2-2)*SIN(cc*xx) - 6*a/cc^3*COS(cc*xx)+3/cc^4*(cc^2*a^2-2)*SIN(cc*a) )) -> 0.05746545389 | T129: =IF(p=1,COS(cc*xx)/cc^2-COS(cc*a)/cc^2, IF(p=2,(-2/cc^3*SIN(cc*xx)+2*xx/cc^2*COS(cc*xx)+2/cc^3*SIN(cc*a) -2*a/cc^2*COS(cc*a)), (-6*xx/cc^3*SIN(cc*xx)+(3*xx^2/cc^2-6/cc^4)*COS(cc*xx) +6*a/cc^3*SIN(cc*a)-(3*a^2/cc^2-6/cc^4)*COS(cc*a))) ) -> -0.3904494759 | U129: =IF(xx<=x0,(-1)*IF(pop=1,R129,IF(pop=2,S129,T129)),U127) -> 0.3904494759 | V129: =IF(xx<=x0,Q129-U129,V127) -> 0.01019007399
C130: 1.92 | D130: =IF(pop=1,x^p*EXP(cc*x),IF(pop=2,x^p*SIN(cc*x),x^p*COS(cc*x))) -> -5.420722494 | E130: -2.804876016 | F130: =IF(pop=1,x^p*EXP(cc*x)/cc,IF(pop=2,(-1)*x^p*(COS(cc*x))/cc,x^p*SIN(cc*x)/cc)) -> -2.27553654 | G130: =IF(p=1,EXP(cc*x)/cc^2-EXP(a*x)/cc^2,IF(p=2,EXP(cc*x)*(2*x/cc^2-1/cc^3)-EXP(a*cc)*(2*a/cc^2-1/cc^3),EXP(cc*x)*(-3*x^2/cc^2+6*x/cc^3-3/cc^4))-EXP(cc*a)*(-3*a^2/cc^2+6*a/cc^3-3/cc^4)) -> -70.172975 | H130: =IF(p=1,(SIN(cc*x))/cc^2-SIN(a*cc)/cc^2,IF(p=2, 2*x/cc^2*SIN(cc*x)+2/cc^3*COS(cc*x)- 2*a/cc^2*SIN(cc*a)+2/cc^3*COS(cc*a), 6*x/cc^3*COS(cc*x)+3/cc^4*(cc^2*x^2-2)*SIN(cc*x) - 6*a/cc^3*COS(cc*x)+3/cc^4*(cc^2*a^2-2)*SIN(cc*a) )) -> -2.639487208 | I130: =IF(p=1,COS(cc*x)/cc^2-COS(cc*a)/cc^2, IF(p=2,(-2/cc^3*SIN(cc*x)+2*x/cc^2*COS(cc*x)+2/cc^3*SIN(cc*a) -2*a/cc^2*COS(cc*a)), (-6*x/cc^3*SIN(cc*x)+(3*x^2/cc^2-6/cc^4)*COS(cc*x) +6*a/cc^3*SIN(cc*a)-(3*a^2/cc^2-6/cc^4)*COS(cc*a))) ) -> -0.5293513235 | J130: 0.5293513235 | K130: -2.804887864 | M130: =M128+dx -> 0.96 | N130: 0 | O130: =IF(xx<=x0,O128+dx,O128) -> 0.96 | P130: =N130 -> 0 | Q130: 0 | R130: 0 | S130: 0 | T130: 0 | U130: 0 | V130: 0
C131: =C130+dx -> 1.935 | D131: -5.406532801 | E131: =E130+(D130+D131)*dx/2 -> -2.88608043 | F131: -2.411458079 | G131: -73.85561998 | H131: -2.702690944 | I131: -0.4746460375 | J131: =IF(pop=1,G131,IF(pop=2,H131,I131))*(-1) -> 0.4746460375 | K131: =F131-J131 -> -2.886104116 | M131: =M130 -> 0.96 | N131: =IF(pop=1,xx^p*EXP(cc*xx),IF(pop=2,xx^p*SIN(cc*xx),xx^p*COS(cc*xx))) -> -0.3027121138 | O131: =O130 -> 0.96 | P131: =IF(xx<=x0,IF(pop=1,xx^p*EXP(cc*xx),IF(pop=2,xx^p*SIN(cc*xx),xx^p*COS(cc*xx))),P129) -> -0.3027121138 | Q131: =IF(xx<=x0,IF(pop=1,xx^p*EXP(cc*xx)/cc,IF(pop=2,(-1)*xx^p*(COS(cc*xx))/cc,xx^p*SIN(cc*xx)/cc)),Q129) -> 0.4156690889 | R131: =IF(p=1,EXP(cc*xx)/cc^2-EXP(a*xx)/cc^2,IF(p=2,EXP(cc*xx)*(2*xx/cc^2-1/cc^3)-EXP(a*cc)*(2*a/cc^2-1/cc^3),EXP(cc*xx)*(-3*xx^2/cc^2+6*xx/cc^3-3/cc^4))-EXP(cc*a)*(-3*a^2/cc^2+6*a/cc^3-3/cc^4)) -> -0.8949861091 | S131: =IF(p=1,(SIN(cc*xx))/cc^2-SIN(a*cc)/cc^2,IF(p=2, 2*xx/cc^2*SIN(cc*xx)+2/cc^3*COS(cc*xx)- 2*a/cc^2*SIN(cc*a)+2/cc^3*COS(cc*a), 6*xx/cc^3*COS(cc*xx)+3/cc^4*(cc^2*xx^2-2)*SIN(cc*xx) - 6*a/cc^3*COS(cc*xx)+3/cc^4*(cc^2*a^2-2)*SIN(cc*a) )) -> 0.05076814995 | T131: =IF(p=1,COS(cc*xx)/cc^2-COS(cc*a)/cc^2, IF(p=2,(-2/cc^3*SIN(cc*xx)+2*xx/cc^2*COS(cc*xx)+2/cc^3*SIN(cc*a) -2*a/cc^2*COS(cc*a)), (-6*xx/cc^3*SIN(cc*xx)+(3*xx^2/cc^2-6/cc^4)*COS(cc*xx) +6*a/cc^3*SIN(cc*a)-(3*a^2/cc^2-6/cc^4)*COS(cc*a))) ) -> -0.4097324607 | U131: =IF(xx<=x0,(-1)*IF(pop=1,R131,IF(pop=2,S131,T131)),U129) -> 0.4097324607 | V131: =IF(xx<=x0,Q131-U131,V129) -> 0.005936628156
C132: 1.95 | D132: -5.382697294 | E132: -2.966999656 | F132: -2.54985005 | G132: -77.71398693 | H132: -2.7651868 | I132: -0.4171855682 | J132: 0.4171855682 | K132: -2.967035618 | M132: =M130+dx -> 0.975 | N132: 0 | O132: =IF(xx<=x0,O130+dx,O130) -> 0.975 | P132: =N132 -> 0 | Q132: 0 | R132: 0 | S132: 0 | T132: 0 | U132: 0 | V132: 0
C133: 1.965 | D133: -5.348867677 | E133: -3.047486393 | F133: -2.69057819 | G133: -81.75587111 | H133: -2.826872749 | I133: -0.3569568736 | J133: 0.3569568736 | K133: -3.047535064 | M133: =M132 -> 0.975 | N133: =IF(pop=1,xx^p*EXP(cc*xx),IF(pop=2,xx^p*SIN(cc*xx),xx^p*COS(cc*xx))) -> -0.343105574 | O133: =O132 -> 0.975 | P133: =IF(xx<=x0,IF(pop=1,xx^p*EXP(cc*xx),IF(pop=2,xx^p*SIN(cc*xx),xx^p*COS(cc*xx))),P131) -> -0.343105574 | Q133: =IF(xx<=x0,IF(pop=1,xx^p*EXP(cc*xx)/cc,IF(pop=2,(-1)*xx^p*(COS(cc*xx))/cc,xx^p*SIN(cc*xx)/cc)),Q131) -> 0.4305075104 | R133: =IF(p=1,EXP(cc*xx)/cc^2-EXP(a*xx)/cc^2,IF(p=2,EXP(cc*xx)*(2*xx/cc^2-1/cc^3)-EXP(a*cc)*(2*a/cc^2-1/cc^3),EXP(cc*xx)*(-3*xx^2/cc^2+6*xx/cc^3-3/cc^4))-EXP(cc*a)*(-3*a^2/cc^2+6*a/cc^3-3/cc^4)) -> -1.001885727 | S133: =IF(p=1,(SIN(cc*xx))/cc^2-SIN(a*cc)/cc^2,IF(p=2, 2*xx/cc^2*SIN(cc*xx)+2/cc^3*COS(cc*xx)- 2*a/cc^2*SIN(cc*a)+2/cc^3*COS(cc*a), 6*xx/cc^3*COS(cc*xx)+3/cc^4*(cc^2*xx^2-2)*SIN(cc*xx) - 6*a/cc^3*COS(cc*xx)+3/cc^4*(cc^2*a^2-2)*SIN(cc*a) )) -> 0.04326462075 | T133: =IF(p=1,COS(cc*xx)/cc^2-COS(cc*a)/cc^2, IF(p=2,(-2/cc^3*SIN(cc*xx)+2*xx/cc^2*COS(cc*xx)+2/cc^3*SIN(cc*a) -2*a/cc^2*COS(cc*a)), (-6*xx/cc^3*SIN(cc*xx)+(3*xx^2/cc^2-6/cc^4)*COS(cc*xx) +6*a/cc^3*SIN(cc*a)-(3*a^2/cc^2-6/cc^4)*COS(cc*a))) ) -> -0.4294113444 | U133: =IF(xx<=x0,(-1)*IF(pop=1,R133,IF(pop=2,S133,T133)),U131) -> 0.4294113444 | V133: =IF(xx<=x0,Q133-U133,V131) -> 0.001096165982
C134: 1.98 | D134: -5.304700732 | E134: -3.127388156 | F134: -2.83349959 | G134: -85.98939507 | H134: -2.887645146 | I134: -0.2939503708 | J134: 0.2939503708 | K134: -3.127449961 | M134: =M132+dx -> 0.99 | N134: 0 | O134: =IF(xx<=x0,O132+dx,O132) -> 0.99 | P134: =N134 -> 0 | Q134: 0 | R134: 0 | S134: 0 | T134: 0 | U134: 0 | V134: 0
C135: 1.995 | D135: -5.249859066 | E135: -3.206547355 | F135: -2.978462683 | G135: -90.42302182 | H135: -2.947398839 | I135: -0.2281600276 | J135: 0.2281600276 | K135: -3.206622711 | M135: =M134 -> 0.99 | N135: =IF(pop=1,xx^p*EXP(cc*xx),IF(pop=2,xx^p*SIN(cc*xx),xx^p*COS(cc*xx))) -> -0.3860614734 | O135: =O134 -> 0.99 | P135: =IF(xx<=x0,IF(pop=1,xx^p*EXP(cc*xx),IF(pop=2,xx^p*SIN(cc*xx),xx^p*COS(cc*xx))),P133) -> -0.3860614734 | Q135: =IF(xx<=x0,IF(pop=1,xx^p*EXP(cc*xx)/cc,IF(pop=2,(-1)*xx^p*(COS(cc*xx))/cc,xx^p*SIN(cc*xx)/cc)),Q133) -> 0.4450945653 | R135: =IF(p=1,EXP(cc*xx)/cc^2-EXP(a*xx)/cc^2,IF(p=2,EXP(cc*xx)*(2*xx/cc^2-1/cc^3)-EXP(a*cc)*(2*a/cc^2-1/cc^3),EXP(cc*xx)*(-3*xx^2/cc^2+6*xx/cc^3-3/cc^4))-EXP(cc*a)*(-3*a^2/cc^2+6*a/cc^3-3/cc^4)) -> -1.116736943 | S135: =IF(p=1,(SIN(cc*xx))/cc^2-SIN(a*cc)/cc^2,IF(p=2, 2*xx/cc^2*SIN(cc*xx)+2/cc^3*COS(cc*xx)- 2*a/cc^2*SIN(cc*a)+2/cc^3*COS(cc*a), 6*xx/cc^3*COS(cc*xx)+3/cc^4*(cc^2*xx^2-2)*SIN(cc*xx) - 6*a/cc^3*COS(cc*xx)+3/cc^4*(cc^2*a^2-2)*SIN(cc*a) )) -> 0.03492140796 | T135: =IF(p=1,COS(cc*xx)/cc^2-COS(cc*a)/cc^2, IF(p=2,(-2/cc^3*SIN(cc*xx)+2*xx/cc^2*COS(cc*xx)+2/cc^3*SIN(cc*a) -2*a/cc^2*COS(cc*a)), (-6*xx/cc^3*SIN(cc*xx)+(3*xx^2/cc^2-6/cc^4)*COS(cc*xx) +6*a/cc^3*SIN(cc*a)-(3*a^2/cc^2-6/cc^4)*COS(cc*a))) ) -> -0.4494639173 | U135: =IF(xx<=x0,(-1)*IF(pop=1,R135,IF(pop=2,S135,T135)),U133) -> 0.4494639173 | V135: =IF(xx<=x0,Q135-U135,V133) -> -0.004369351991
C136: 2.01 | D136: -5.184011853 | E136: -3.284801387 | F136: -3.125307253 | G136: -95.06556855 | H136: -3.006027285 | I136: -0.1595834504 | J136: 0.1595834504 | K136: -3.284890704 | M136: =M134+dx -> 1.005 | N136: 0 | O136: =IF(xx<=x0,O134+dx,O134) -> 1.005 | P136: =N136 -> 0 | Q136: 0 | R136: 0 | S136: 0 | T136: 0 | U136: 0 | V136: 0
C137: 2.025 | D137: -5.106835593 | E137: -3.361982743 | F137: -3.273864451 | G137: -99.92622078 | H137: -3.063422668 | I137: -0.08822196882 | J137: 0.08822196882 | K137: -3.36208642 | M137: =M136 -> 1.005 | N137: =IF(pop=1,xx^p*EXP(cc*xx),IF(pop=2,xx^p*SIN(cc*xx),xx^p*COS(cc*xx))) -> -0.4316290794 | O137: =O136 -> 1.005 | P137: =IF(xx<=x0,IF(pop=1,xx^p*EXP(cc*xx),IF(pop=2,xx^p*SIN(cc*xx),xx^p*COS(cc*xx))),P135) -> -0.4316290794 | Q137: =IF(xx<=x0,IF(pop=1,xx^p*EXP(cc*xx)/cc,IF(pop=2,(-1)*xx^p*(COS(cc*xx))/cc,xx^p*SIN(cc*xx)/cc)),Q135) -> 0.4593674584 | R137: =IF(p=1,EXP(cc*xx)/cc^2-EXP(a*xx)/cc^2,IF(p=2,EXP(cc*xx)*(2*xx/cc^2-1/cc^3)-EXP(a*cc)*(2*a/cc^2-1/cc^3),EXP(cc*xx)*(-3*xx^2/cc^2+6*xx/cc^3-3/cc^4))-EXP(cc*a)*(-3*a^2/cc^2+6*a/cc^3-3/cc^4)) -> -1.23999938 | S137: =IF(p=1,(SIN(cc*xx))/cc^2-SIN(a*cc)/cc^2,IF(p=2, 2*xx/cc^2*SIN(cc*xx)+2/cc^3*COS(cc*xx)- 2*a/cc^2*SIN(cc*a)+2/cc^3*COS(cc*a), 6*xx/cc^3*COS(cc*xx)+3/cc^4*(cc^2*xx^2-2)*SIN(cc*xx) - 6*a/cc^3*COS(cc*xx)+3/cc^4*(cc^2*a^2-2)*SIN(cc*a) )) -> 0.02570540115 | T137: =IF(p=1,COS(cc*xx)/cc^2-COS(cc*a)/cc^2, IF(p=2,(-2/cc^3*SIN(cc*xx)+2*xx/cc^2*COS(cc*xx)+2/cc^3*SIN(cc*a) -2*a/cc^2*COS(cc*a)), (-6*xx/cc^3*SIN(cc*xx)+(3*xx^2/cc^2-6/cc^4)*COS(cc*xx) +6*a/cc^3*SIN(cc*a)-(3*a^2/cc^2-6/cc^4)*COS(cc*a))) ) -> -0.4698661959 | U137: =IF(xx<=x0,(-1)*IF(pop=1,R137,IF(pop=2,S137,T137)),U135) -> 0.4698661959 | V137: =IF(xx<=x0,Q137-U137,V135) -> -0.01049873754
C138: 2.04 | D138: -5.018014878 | E138: -3.437919121 | F138: -3.423956831 | G138: -105.0145472 | H138: -3.119476019 | I138: -0.01408071676 | J138: 0.01408071676 | K138: -3.438037548 | M138: =M136+dx -> 1.02 | N138: 0 | O138: =IF(xx<=x0,O136+dx,O136) -> 1.02 | P138: =N138 -> 0 | Q138: 0 | R138: 0 | S138: 0 | T138: 0 | U138: 0 | V138: 0
C139: 2.055 | D139: -4.917243152 | E139: -3.512433556 | F139: -3.575398401 | G139: -110.3405151 | H139: -3.174077351 | I139: 0.06283129097 | J139: -0.06283129097 | K139: -3.51256711 | M139: =M138 -> 1.02 | N139: =IF(pop=1,xx^p*EXP(cc*xx),IF(pop=2,xx^p*SIN(cc*xx),xx^p*COS(cc*xx))) -> -0.4798529607 | O139: =O138 -> 1.02 | P139: =IF(xx<=x0,IF(pop=1,xx^p*EXP(cc*xx),IF(pop=2,xx^p*SIN(cc*xx),xx^p*COS(cc*xx))),P137) -> -0.4798529607 | Q139: =IF(xx<=x0,IF(pop=1,xx^p*EXP(cc*xx)/cc,IF(pop=2,(-1)*xx^p*(COS(cc*xx))/cc,xx^p*SIN(cc*xx)/cc)),Q137) -> 0.4732609099 | R139: =IF(p=1,EXP(cc*xx)/cc^2-EXP(a*xx)/cc^2,IF(p=2,EXP(cc*xx)*(2*xx/cc^2-1/cc^3)-EXP(a*cc)*(2*a/cc^2-1/cc^3),EXP(cc*xx)*(-3*xx^2/cc^2+6*xx/cc^3-3/cc^4))-EXP(cc*a)*(-3*a^2/cc^2+6*a/cc^3-3/cc^4)) -> -1.372155546 | S139: =IF(p=1,(SIN(cc*xx))/cc^2-SIN(a*cc)/cc^2,IF(p=2, 2*xx/cc^2*SIN(cc*xx)+2/cc^3*COS(cc*xx)- 2*a/cc^2*SIN(cc*a)+2/cc^3*COS(cc*a), 6*xx/cc^3*COS(cc*xx)+3/cc^4*(cc^2*xx^2-2)*SIN(cc*xx) - 6*a/cc^3*COS(cc*xx)+3/cc^4*(cc^2*a^2-2)*SIN(cc*a) )) -> 0.01558391819 | T139: =IF(p=1,COS(cc*xx)/cc^2-COS(cc*a)/cc^2, IF(p=2,(-2/cc^3*SIN(cc*xx)+2*xx/cc^2*COS(cc*xx)+2/cc^3*SIN(cc*a) -2*a/cc^2*COS(cc*a)), (-6*xx/cc^3*SIN(cc*xx)+(3*xx^2/cc^2-6/cc^4)*COS(cc*xx) +6*a/cc^3*SIN(cc*a)-(3*a^2/cc^2-6/cc^4)*COS(cc*a))) ) -> -0.4905924165 | U139: =IF(xx<=x0,(-1)*IF(pop=1,R139,IF(pop=2,S139,T139)),U137) -> 0.4905924165 | V139: =IF(xx<=x0,Q139-U139,V137) -> -0.01733150658
C140: 2.07 | D140: -4.804223492 | E140: -3.585344556 | F140: -3.727994686 | G140: -115.9145059 | H140: -3.22711578 | I140: 0.1425010856 | J140: -0.1425010856 | K140: -3.585493601 | M140: =M138+dx -> 1.035 | N140: 0 | O140: =IF(xx<=x0,O138+dx,O138) -> 1.035 | P140: =N140 -> 0 | Q140: 0 | R140: 0 | S140: 0 | T140: 0 | U140: 0 | V140: 0
C141: 2.085 | D141: -4.678669376 | E141: -3.656466253 | F141: -3.881542816 | G141: -121.7473325 | H141: -3.278479666 | I141: 0.2249116757 | J141: -0.2249116757 | K141: -3.65663114 | M141: =M140 -> 1.035 | N141: =IF(pop=1,xx^p*EXP(cc*xx),IF(pop=2,xx^p*SIN(cc*xx),xx^p*COS(cc*xx))) -> -0.5307726767 | O141: =O140 -> 1.035 | P141: =IF(xx<=x0,IF(pop=1,xx^p*EXP(cc*xx),IF(pop=2,xx^p*SIN(cc*xx),xx^p*COS(cc*xx))),P139) -> -0.5307726767 | Q141: =IF(xx<=x0,IF(pop=1,xx^p*EXP(cc*xx)/cc,IF(pop=2,(-1)*xx^p*(COS(cc*xx))/cc,xx^p*SIN(cc*xx)/cc)),Q139) -> 0.4867072251 | R141: =IF(p=1,EXP(cc*xx)/cc^2-EXP(a*xx)/cc^2,IF(p=2,EXP(cc*xx)*(2*xx/cc^2-1/cc^3)-EXP(a*cc)*(2*a/cc^2-1/cc^3),EXP(cc*xx)*(-3*xx^2/cc^2+6*xx/cc^3-3/cc^4))-EXP(cc*a)*(-3*a^2/cc^2+6*a/cc^3-3/cc^4)) -> -1.513711873 | S141: =IF(p=1,(SIN(cc*xx))/cc^2-SIN(a*cc)/cc^2,IF(p=2, 2*xx/cc^2*SIN(cc*xx)+2/cc^3*COS(cc*xx)- 2*a/cc^2*SIN(cc*a)+2/cc^3*COS(cc*a), 6*xx/cc^3*COS(cc*xx)+3/cc^4*(cc^2*xx^2-2)*SIN(cc*xx) - 6*a/cc^3*COS(cc*xx)+3/cc^4*(cc^2*a^2-2)*SIN(cc*a) )) -> 0.004524786512 | T141: =IF(p=1,COS(cc*xx)/cc^2-COS(cc*a)/cc^2, IF(p=2,(-2/cc^3*SIN(cc*xx)+2*xx/cc^2*COS(cc*xx)+2/cc^3*SIN(cc*a) -2*a/cc^2*COS(cc*a)), (-6*xx/cc^3*SIN(cc*xx)+(3*xx^2/cc^2-6/cc^4)*COS(cc*xx) +6*a/cc^3*SIN(cc*a)-(3*a^2/cc^2-6/cc^4)*COS(cc*a))) ) -> -0.5116150315 | U141: =IF(xx<=x0,(-1)*IF(pop=1,R141,IF(pop=2,S141,T141)),U139) -> 0.5116150315 | V141: =IF(xx<=x0,Q141-U141,V139) -> -0.02490780642
C142: 2.1 | D142: -4.540305466 | E142: -3.725608564 | F142: -4.035831614 | G142: -127.8502556 | H142: -3.328056746 | I142: 0.310041983 | J142: -0.310041983 | K142: -3.725789631 | M142: =M140+dx -> 1.05 | N142: 0 | O142: =IF(xx<=x0,O140+dx,O140) -> 1.05 | P142: =N142 -> 0 | Q142: 0 | R142: 0 | S142: 0 | T142: 0 | U142: 0 | V142: 0
C143: 2.115 | D143: -4.388868379 | E143: -3.792577368 | F143: -4.190641719 | G143: -134.2350022 | H143: -3.37573428 | I143: 0.3978667826 | J143: -0.3978667826 | K143: -3.792774936 | M143: =M142 -> 1.05 | N143: =IF(pop=1,xx^p*EXP(cc*xx),IF(pop=2,xx^p*SIN(cc*xx),xx^p*COS(cc*xx))) -> -0.5844224718 | O143: =O142 -> 1.05 | P143: =IF(xx<=x0,IF(pop=1,xx^p*EXP(cc*xx),IF(pop=2,xx^p*SIN(cc*xx),xx^p*COS(cc*xx))),P141) -> -0.5844224718 | Q143: =IF(xx<=x0,IF(pop=1,xx^p*EXP(cc*xx)/cc,IF(pop=2,(-1)*xx^p*(COS(cc*xx))/cc,xx^p*SIN(cc*xx)/cc)),Q141) -> 0.4996363715 | R143: =IF(p=1,EXP(cc*xx)/cc^2-EXP(a*xx)/cc^2,IF(p=2,EXP(cc*xx)*(2*xx/cc^2-1/cc^3)-EXP(a*cc)*(2*a/cc^2-1/cc^3),EXP(cc*xx)*(-3*xx^2/cc^2+6*xx/cc^3-3/cc^4))-EXP(cc*a)*(-3*a^2/cc^2+6*a/cc^3-3/cc^4)) -> -1.665199799 | S143: =IF(p=1,(SIN(cc*xx))/cc^2-SIN(a*cc)/cc^2,IF(p=2, 2*xx/cc^2*SIN(cc*xx)+2/cc^3*COS(cc*xx)- 2*a/cc^2*SIN(cc*a)+2/cc^3*COS(cc*a), 6*xx/cc^3*COS(cc*xx)+3/cc^4*(cc^2*xx^2-2)*SIN(cc*xx) - 6*a/cc^3*COS(cc*xx)+3/cc^4*(cc^2*a^2-2)*SIN(cc*a) )) -> -0.007503574818 | T143: =IF(p=1,COS(cc*xx)/cc^2-COS(cc*a)/cc^2, IF(p=2,(-2/cc^3*SIN(cc*xx)+2*xx/cc^2*COS(cc*xx)+2/cc^3*SIN(cc*a) -2*a/cc^2*COS(cc*a)), (-6*xx/cc^3*SIN(cc*xx)+(3*xx^2/cc^2-6/cc^4)*COS(cc*xx) +6*a/cc^3*SIN(cc*a)-(3*a^2/cc^2-6/cc^4)*COS(cc*a))) ) -> -0.5329047098 | U143: =IF(xx<=x0,(-1)*IF(pop=1,R143,IF(pop=2,S143,T143)),U141) -> 0.5329047098 | V143: =IF(xx<=x0,Q143-U143,V141) -> -0.03326833822
C144: 2.13 | D144: -4.224107467 | E144: -3.857174687 | F144: -4.345745709 | G144: -140.9137838 | H144: -3.421399191 | I144: 0.4883566482 | J144: -0.4883566482 | K144: -3.857389061 | M144: =M142+dx -> 1.065 | N144: 0 | O144: =IF(xx<=x0,O142+dx,O142) -> 1.065 | P144: =N144 -> 0 | Q144: 0 | R144: 0 | S144: 0 | T144: 0 | U144: 0 | V144: 0
C145: 2.145 | D145: -4.04578559 | E145: -3.919198885 | F145: -4.500908254 | G145: -147.8993159 | H145: -3.464938216 | I145: 0.5814779014 | J145: -0.5814779014 | K145: -3.919430353 | M145: =M144 -> 1.065 | N145: =IF(pop=1,xx^p*EXP(cc*xx),IF(pop=2,xx^p*SIN(cc*xx),xx^p*COS(cc*xx))) -> -0.6408309713 | O145: =O144 -> 1.065 | P145: =IF(xx<=x0,IF(pop=1,xx^p*EXP(cc*xx),IF(pop=2,xx^p*SIN(cc*xx),xx^p*COS(cc*xx))),P143) -> -0.6408309713 | Q145: =IF(xx<=x0,IF(pop=1,xx^p*EXP(cc*xx)/cc,IF(pop=2,(-1)*xx^p*(COS(cc*xx))/cc,xx^p*SIN(cc*xx)/cc)),Q143) -> 0.5119760646 | R145: =IF(p=1,EXP(cc*xx)/cc^2-EXP(a*xx)/cc^2,IF(p=2,EXP(cc*xx)*(2*xx/cc^2-1/cc^3)-EXP(a*cc)*(2*a/cc^2-1/cc^3),EXP(cc*xx)*(-3*xx^2/cc^2+6*xx/cc^3-3/cc^4))-EXP(cc*a)*(-3*a^2/cc^2+6*a/cc^3-3/cc^4)) -> -1.827176893 | S145: =IF(p=1,(SIN(cc*xx))/cc^2-SIN(a*cc)/cc^2,IF(p=2, 2*xx/cc^2*SIN(cc*xx)+2/cc^3*COS(cc*xx)- 2*a/cc^2*SIN(cc*a)+2/cc^3*COS(cc*a), 6*xx/cc^3*COS(cc*xx)+3/cc^4*(cc^2*xx^2-2)*SIN(cc*xx) - 6*a/cc^3*COS(cc*xx)+3/cc^4*(cc^2*a^2-2)*SIN(cc*a) )) -> -0.02053207231 | T145: =IF(p=1,COS(cc*xx)/cc^2-COS(cc*a)/cc^2, IF(p=2,(-2/cc^3*SIN(cc*xx)+2*xx/cc^2*COS(cc*xx)+2/cc^3*SIN(cc*a) -2*a/cc^2*COS(cc*a)), (-6*xx/cc^3*SIN(cc*xx)+(3*xx^2/cc^2-6/cc^4)*COS(cc*xx) +6*a/cc^3*SIN(cc*a)-(3*a^2/cc^2-6/cc^4)*COS(cc*a))) ) -> -0.5544303396 | U145: =IF(xx<=x0,(-1)*IF(pop=1,R145,IF(pop=2,S145,T145)),U143) -> 0.5544303396 | V145: =IF(xx<=x0,Q145-U145,V143) -> -0.04245427508
C146: 2.16 | D146: -3.853679888 | E146: -3.978444876 | F146: -4.655886274 | G146: -155.2048381 | H146: -3.506238054 | I146: 0.6771925668 | J146: -0.6771925668 | K146: -3.978693707 | M146: =M144+dx -> 1.08 | N146: 0 | O146: =IF(xx<=x0,O144+dx,O144) -> 1.08 | P146: =N146 -> 0 | Q146: 0 | R146: 0 | S146: 0 | T146: 0 | U146: 0 | V146: 0
C147: 2.175 | D147: -3.647582545 | E147: -4.034704344 | F147: -4.810429121 | G147: -162.8441344 | H147: -3.545185521 | I147: 0.7754583322 | J147: -0.7754583322 | K147: -4.034970789 | M147: =M146 -> 1.08 | N147: =IF(pop=1,xx^p*EXP(cc*xx),IF(pop=2,xx^p*SIN(cc*xx),xx^p*COS(cc*xx))) -> -0.7000208829 | O147: =O146 -> 1.08 | P147: =IF(xx<=x0,IF(pop=1,xx^p*EXP(cc*xx),IF(pop=2,xx^p*SIN(cc*xx),xx^p*COS(cc*xx))),P145) -> -0.7000208829 | Q147: =IF(xx<=x0,IF(pop=1,xx^p*EXP(cc*xx)/cc,IF(pop=2,(-1)*xx^p*(COS(cc*xx))/cc,xx^p*SIN(cc*xx)/cc)),Q145) -> 0.5236518611 | R147: =IF(p=1,EXP(cc*xx)/cc^2-EXP(a*xx)/cc^2,IF(p=2,EXP(cc*xx)*(2*xx/cc^2-1/cc^3)-EXP(a*cc)*(2*a/cc^2-1/cc^3),EXP(cc*xx)*(-3*xx^2/cc^2+6*xx/cc^3-3/cc^4))-EXP(cc*a)*(-3*a^2/cc^2+6*a/cc^3-3/cc^4)) -> -2.000228031 | S147: =IF(p=1,(SIN(cc*xx))/cc^2-SIN(a*cc)/cc^2,IF(p=2, 2*xx/cc^2*SIN(cc*xx)+2/cc^3*COS(cc*xx)- 2*a/cc^2*SIN(cc*a)+2/cc^3*COS(cc*a), 6*xx/cc^3*COS(cc*xx)+3/cc^4*(cc^2*xx^2-2)*SIN(cc*xx) - 6*a/cc^3*COS(cc*xx)+3/cc^4*(cc^2*a^2-2)*SIN(cc*a) )) -> -0.03459085477 | T147: =IF(p=1,COS(cc*xx)/cc^2-COS(cc*a)/cc^2, IF(p=2,(-2/cc^3*SIN(cc*xx)+2*xx/cc^2*COS(cc*xx)+2/cc^3*SIN(cc*a) -2*a/cc^2*COS(cc*a)), (-6*xx/cc^3*SIN(cc*xx)+(3*xx^2/cc^2-6/cc^4)*COS(cc*xx) +6*a/cc^3*SIN(cc*a)-(3*a^2/cc^2-6/cc^4)*COS(cc*a))) ) -> -0.5761590365 | U147: =IF(xx<=x0,(-1)*IF(pop=1,R147,IF(pop=2,S147,T147)),U145) -> 0.5761590365 | V147: =IF(xx<=x0,Q147-U147,V145) -> -0.05250717545
C148: 2.19 | D148: -3.42730155 | E148: -4.087765975 | F148: -4.964278776 | G148: -170.8315554 | H148: -3.581667703 | I148: 0.8762285131 | J148: -0.8762285131 | K148: -4.088050263 | M148: =M146+dx -> 1.095 | N148: 0 | O148: =IF(xx<=x0,O146+dx,O146) -> 1.095 | P148: =N148 -> 0 | Q148: 0 | R148: 0 | S148: 0 | T148: 0 | U148: 0 | V148: 0
C149: 2.205 | D149: -3.19266145 | E149: -4.137415697 | F149: -5.117170061 | G149: -179.1820404 | H149: -3.615572119 | I149: 0.979452024 | J149: -0.979452024 | K149: -4.137718037 | M149: =M148 -> 1.095 | N149: =IF(pop=1,xx^p*EXP(cc*xx),IF(pop=2,xx^p*SIN(cc*xx),xx^p*COS(cc*xx))) -> -0.7620087027 | O149: =O148 -> 1.095 | P149: =IF(xx<=x0,IF(pop=1,xx^p*EXP(cc*xx),IF(pop=2,xx^p*SIN(cc*xx),xx^p*COS(cc*xx))),P147) -> -0.7620087027 | Q149: =IF(xx<=x0,IF(pop=1,xx^p*EXP(cc*xx)/cc,IF(pop=2,(-1)*xx^p*(COS(cc*xx))/cc,xx^p*SIN(cc*xx)/cc)),Q147) -> 0.534587261 | R149: =IF(p=1,EXP(cc*xx)/cc^2-EXP(a*xx)/cc^2,IF(p=2,EXP(cc*xx)*(2*xx/cc^2-1/cc^3)-EXP(a*cc)*(2*a/cc^2-1/cc^3),EXP(cc*xx)*(-3*xx^2/cc^2+6*xx/cc^3-3/cc^4))-EXP(cc*a)*(-3*a^2/cc^2+6*a/cc^3-3/cc^4)) -> -2.184966617 | S149: =IF(p=1,(SIN(cc*xx))/cc^2-SIN(a*cc)/cc^2,IF(p=2, 2*xx/cc^2*SIN(cc*xx)+2/cc^3*COS(cc*xx)- 2*a/cc^2*SIN(cc*a)+2/cc^3*COS(cc*a), 6*xx/cc^3*COS(cc*xx)+3/cc^4*(cc^2*xx^2-2)*SIN(cc*xx) - 6*a/cc^3*COS(cc*xx)+3/cc^4*(cc^2*a^2-2)*SIN(cc*a) )) -> -0.04970922962 | T149: =IF(p=1,COS(cc*xx)/cc^2-COS(cc*a)/cc^2, IF(p=2,(-2/cc^3*SIN(cc*xx)+2*xx/cc^2*COS(cc*xx)+2/cc^3*SIN(cc*a) -2*a/cc^2*COS(cc*a)), (-6*xx/cc^3*SIN(cc*xx)+(3*xx^2/cc^2-6/cc^4)*COS(cc*xx) +6*a/cc^3*SIN(cc*a)-(3*a^2/cc^2-6/cc^4)*COS(cc*a))) ) -> -0.5980561532 | U149: =IF(xx<=x0,(-1)*IF(pop=1,R149,IF(pop=2,S149,T149)),U147) -> 0.5980561532 | V149: =IF(xx<=x0,Q149-U149,V147) -> -0.06346889219
C150: 2.22 | D150: -2.943504095 | E150: -4.183436939 | F150: -5.268830871 | G150: -187.9111406 | H150: -3.646786876 | I150: 1.085073354 | J150: -1.085073354 | K150: -4.183757517 | M150: =M148+dx -> 1.11 | N150: 0 | O150: =IF(xx<=x0,O148+dx,O148) -> 1.11 | P150: =N150 -> 0 | Q150: 0 | R150: 0 | S150: 0 | T150: 0 | U150: 0 | V150: 0
C151: 2.235 | D151: -2.679689366 | E151: -4.22561089 | F151: -5.418982418 | G151: -197.0350436 | H151: -3.675200838 | I151: 1.193032549 | J151: -1.193032549 | K151: -4.22594987 | M151: =M150 -> 1.11 | N151: =IF(pop=1,xx^p*EXP(cc*xx),IF(pop=2,xx^p*SIN(cc*xx),xx^p*COS(cc*xx))) -> -0.826804427 | O151: =O150 -> 1.11 | P151: =IF(xx<=x0,IF(pop=1,xx^p*EXP(cc*xx),IF(pop=2,xx^p*SIN(cc*xx),xx^p*COS(cc*xx))),P149) -> -0.826804427 | Q151: =IF(xx<=x0,IF(pop=1,xx^p*EXP(cc*xx)/cc,IF(pop=2,(-1)*xx^p*(COS(cc*xx))/cc,xx^p*SIN(cc*xx)/cc)),Q149) -> 0.5447038167 | R151: =IF(p=1,EXP(cc*xx)/cc^2-EXP(a*xx)/cc^2,IF(p=2,EXP(cc*xx)*(2*xx/cc^2-1/cc^3)-EXP(a*cc)*(2*a/cc^2-1/cc^3),EXP(cc*xx)*(-3*xx^2/cc^2+6*xx/cc^3-3/cc^4))-EXP(cc*a)*(-3*a^2/cc^2+6*a/cc^3-3/cc^4)) -> -2.382035861 | S151: =IF(p=1,(SIN(cc*xx))/cc^2-SIN(a*cc)/cc^2,IF(p=2, 2*xx/cc^2*SIN(cc*xx)+2/cc^3*COS(cc*xx)- 2*a/cc^2*SIN(cc*a)+2/cc^3*COS(cc*a), 6*xx/cc^3*COS(cc*xx)+3/cc^4*(cc^2*xx^2-2)*SIN(cc*xx) - 6*a/cc^3*COS(cc*xx)+3/cc^4*(cc^2*a^2-2)*SIN(cc*a) )) -> -0.06591557899 | T151: =IF(p=1,COS(cc*xx)/cc^2-COS(cc*a)/cc^2, IF(p=2,(-2/cc^3*SIN(cc*xx)+2*xx/cc^2*COS(cc*xx)+2/cc^3*SIN(cc*a) -2*a/cc^2*COS(cc*a)), (-6*xx/cc^3*SIN(cc*xx)+(3*xx^2/cc^2-6/cc^4)*COS(cc*xx) +6*a/cc^3*SIN(cc*a)-(3*a^2/cc^2-6/cc^4)*COS(cc*a))) ) -> -0.6200852939 | U151: =IF(xx<=x0,(-1)*IF(pop=1,R151,IF(pop=2,S151,T151)),U149) -> 0.6200852939 | V151: =IF(xx<=x0,Q151-U151,V149) -> -0.07538147719
C152: 2.25 | D152: -2.401095903 | E152: -4.263716779 | F152: -5.567339498 | G152: -206.5705985 | H152: -3.700703783 | I152: 1.303265197 | J152: -1.303265197 | K152: -4.264074301 | M152: =M150+dx -> 1.125 | N152: 0 | O152: =IF(xx<=x0,O150+dx,O150) -> 1.125 | P152: =N152 -> 0 | Q152: 0 | R152: 0 | S152: 0 | T152: 0 | U152: 0 | V152: 0
C153: 2.265 | D153: -2.107621811 | E153: -4.297532162 | F153: -5.713610767 | G153: -216.5353413 | H153: -3.723186575 | I153: 1.415702427 | J153: -1.415702427 | K153: -4.29790834 | M153: =M152 -> 1.125 | N153: =IF(pop=1,xx^p*EXP(cc*xx),IF(pop=2,xx^p*SIN(cc*xx),xx^p*COS(cc*xx))) -> -0.8944112714 | O153: =O152 -> 1.125 | P153: =IF(xx<=x0,IF(pop=1,xx^p*EXP(cc*xx),IF(pop=2,xx^p*SIN(cc*xx),xx^p*COS(cc*xx))),P151) -> -0.8944112714 | Q153: =IF(xx<=x0,IF(pop=1,xx^p*EXP(cc*xx)/cc,IF(pop=2,(-1)*xx^p*(COS(cc*xx))/cc,xx^p*SIN(cc*xx)/cc)),Q151) -> 0.5539212505 | R153: =IF(p=1,EXP(cc*xx)/cc^2-EXP(a*xx)/cc^2,IF(p=2,EXP(cc*xx)*(2*xx/cc^2-1/cc^3)-EXP(a*cc)*(2*a/cc^2-1/cc^3),EXP(cc*xx)*(-3*xx^2/cc^2+6*xx/cc^3-3/cc^4))-EXP(cc*a)*(-3*a^2/cc^2+6*a/cc^3-3/cc^4)) -> -2.592110108 | S153: =IF(p=1,(SIN(cc*xx))/cc^2-SIN(a*cc)/cc^2,IF(p=2, 2*xx/cc^2*SIN(cc*xx)+2/cc^3*COS(cc*xx)- 2*a/cc^2*SIN(cc*a)+2/cc^3*COS(cc*a), 6*xx/cc^3*COS(cc*xx)+3/cc^4*(cc^2*xx^2-2)*SIN(cc*xx) - 6*a/cc^3*COS(cc*xx)+3/cc^4*(cc^2*a^2-2)*SIN(cc*a) )) -> -0.08323727565 | T153: =IF(p=1,COS(cc*xx)/cc^2-COS(cc*a)/cc^2, IF(p=2,(-2/cc^3*SIN(cc*xx)+2*xx/cc^2*COS(cc*xx)+2/cc^3*SIN(cc*a) -2*a/cc^2*COS(cc*a)), (-6*xx/cc^3*SIN(cc*xx)+(3*xx^2/cc^2-6/cc^4)*COS(cc*xx) +6*a/cc^3*SIN(cc*a)-(3*a^2/cc^2-6/cc^4)*COS(cc*a))) ) -> -0.6422083323 | U153: =IF(xx<=x0,(-1)*IF(pop=1,R153,IF(pop=2,S153,T153)),U151) -> 0.6422083323 | V153: =IF(xx<=x0,Q153-U153,V151) -> -0.08828708178
C154: 2.28 | D154: -1.799185356 | E154: -4.326833216 | F154: -5.857499039 | G154: -226.9475231 | H154: -3.742541328 | I154: 1.530270899 | J154: -1.530270899 | K154: -4.32722814 | M154: =M152+dx -> 1.14 | N154: 0 | O154: =IF(xx<=x0,O152+dx,O152) -> 1.14 | P154: =N154 -> 0 | Q154: 0 | R154: 0 | S154: 0 | T154: 0 | U154: 0 | V154: 0
C155: 2.295 | D155: -1.475725643 | E155: -4.351395048 | F155: -5.998701601 | G155: -237.8261373 | H155: -3.758661577 | I155: 1.64689282 | J155: -1.64689282 | K155: -4.351808781 | M155: =M154 -> 1.14 | N155: =IF(pop=1,xx^p*EXP(cc*xx),IF(pop=2,xx^p*SIN(cc*xx),xx^p*COS(cc*xx))) -> -0.9648253962 | O155: =O154 -> 1.14 | P155: =IF(xx<=x0,IF(pop=1,xx^p*EXP(cc*xx),IF(pop=2,xx^p*SIN(cc*xx),xx^p*COS(cc*xx))),P153) -> -0.9648253962 | Q155: =IF(xx<=x0,IF(pop=1,xx^p*EXP(cc*xx)/cc,IF(pop=2,(-1)*xx^p*(COS(cc*xx))/cc,xx^p*SIN(cc*xx)/cc)),Q153) -> 0.56215758 | R155: =IF(p=1,EXP(cc*xx)/cc^2-EXP(a*xx)/cc^2,IF(p=2,EXP(cc*xx)*(2*xx/cc^2-1/cc^3)-EXP(a*cc)*(2*a/cc^2-1/cc^3),EXP(cc*xx)*(-3*xx^2/cc^2+6*xx/cc^3-3/cc^4))-EXP(cc*a)*(-3*a^2/cc^2+6*a/cc^3-3/cc^4)) -> -2.815896222 | S155: =IF(p=1,(SIN(cc*xx))/cc^2-SIN(a*cc)/cc^2,IF(p=2, 2*xx/cc^2*SIN(cc*xx)+2/cc^3*COS(cc*xx)- 2*a/cc^2*SIN(cc*a)+2/cc^3*COS(cc*a), 6*xx/cc^3*COS(cc*xx)+3/cc^4*(cc^2*xx^2-2)*SIN(cc*xx) - 6*a/cc^3*COS(cc*xx)+3/cc^4*(cc^2*a^2-2)*SIN(cc*a) )) -> -0.1017005991 | T155: =IF(p=1,COS(cc*xx)/cc^2-COS(cc*a)/cc^2, IF(p=2,(-2/cc^3*SIN(cc*xx)+2*xx/cc^2*COS(cc*xx)+2/cc^3*SIN(cc*a) -2*a/cc^2*COS(cc*a)), (-6*xx/cc^3*SIN(cc*xx)+(3*xx^2/cc^2-6/cc^4)*COS(cc*xx) +6*a/cc^3*SIN(cc*a)-(3*a^2/cc^2-6/cc^4)*COS(cc*a))) ) -> -0.6643854329 | U155: =IF(xx<=x0,(-1)*IF(pop=1,R155,IF(pop=2,S155,T155)),U153) -> 0.6643854329 | V155: =IF(xx<=x0,Q155-U155,V153) -> -0.102227853
C156: 2.31 | D156: -1.137203275 | E156: -4.370992015 | F156: -6.136910538 | G156: -249.190949 | H156: -3.771442448 | I156: 1.765485946 | J156: -1.765485946 | K156: -4.371424592 | M156: =M154+dx -> 1.155 | N156: 0 | O156: =IF(xx<=x0,O154+dx,O154) -> 1.155 | P156: =N156 -> 0 | Q156: 0 | R156: 0 | S156: 0 | T156: 0 | U156: 0 | V156: 0
C157: 2.325 | D157: -0.7836010026 | E157: -4.385398047 | F157: -6.27181308 | G157: -261.0625257 | H157: -3.780780827 | I157: 1.885963604 | J157: -1.885963604 | K157: -4.385849476 | M157: =M156 -> 1.155 | N157: =IF(pop=1,xx^p*EXP(cc*xx),IF(pop=2,xx^p*SIN(cc*xx),xx^p*COS(cc*xx))) -> -1.038035641 | O157: =O156 -> 1.155 | P157: =IF(xx<=x0,IF(pop=1,xx^p*EXP(cc*xx),IF(pop=2,xx^p*SIN(cc*xx),xx^p*COS(cc*xx))),P155) -> -1.038035641 | Q157: =IF(xx<=x0,IF(pop=1,xx^p*EXP(cc*xx)/cc,IF(pop=2,(-1)*xx^p*(COS(cc*xx))/cc,xx^p*SIN(cc*xx)/cc)),Q155) -> 0.5693292505 | R157: =IF(p=1,EXP(cc*xx)/cc^2-EXP(a*xx)/cc^2,IF(p=2,EXP(cc*xx)*(2*xx/cc^2-1/cc^3)-EXP(a*cc)*(2*a/cc^2-1/cc^3),EXP(cc*xx)*(-3*xx^2/cc^2+6*xx/cc^3-3/cc^4))-EXP(cc*a)*(-3*a^2/cc^2+6*a/cc^3-3/cc^4)) -> -3.054135028 | S157: =IF(p=1,(SIN(cc*xx))/cc^2-SIN(a*cc)/cc^2,IF(p=2, 2*xx/cc^2*SIN(cc*xx)+2/cc^3*COS(cc*xx)- 2*a/cc^2*SIN(cc*a)+2/cc^3*COS(cc*a), 6*xx/cc^3*COS(cc*xx)+3/cc^4*(cc^2*xx^2-2)*SIN(cc*xx) - 6*a/cc^3*COS(cc*xx)+3/cc^4*(cc^2*a^2-2)*SIN(cc*a) )) -> -0.1213306516 | T157: =IF(p=1,COS(cc*xx)/cc^2-COS(cc*a)/cc^2, IF(p=2,(-2/cc^3*SIN(cc*xx)+2*xx/cc^2*COS(cc*xx)+2/cc^3*SIN(cc*a) -2*a/cc^2*COS(cc*a)), (-6*xx/cc^3*SIN(cc*xx)+(3*xx^2/cc^2-6/cc^4)*COS(cc*xx) +6*a/cc^3*SIN(cc*a)-(3*a^2/cc^2-6/cc^4)*COS(cc*a))) ) -> -0.6865750761 | U157: =IF(xx<=x0,(-1)*IF(pop=1,R157,IF(pop=2,S157,T157)),U155) -> 0.6865750761 | V157: =IF(xx<=x0,Q157-U157,V155) -> -0.1172458255
C158: 2.34 | D158: -0.4149243417 | E158: -4.394386987 | F158: -6.403091962 | G158: -273.4622683 | H158: -3.786575531 | I158: 2.008234716 | J158: -2.008234716 | K158: -4.394857246 | M158: =M156+dx -> 1.17 | N158: 0 | O158: =IF(xx<=x0,O156+dx,O156) -> 1.17 | P158: =N158 -> 0 | Q158: 0 | R158: 0 | S158: 0 | T158: 0 | U158: 0 | V158: 0
C159: 2.355 | D159: -0.03120217765 | E159: -4.397732936 | F159: -6.530425802 | G159: -286.4124439 | H159: -3.788727483 | I159: 2.132203827 | J159: -2.132203827 | K159: -4.398221975 | M159: =M158 -> 1.17 | N159: =IF(pop=1,xx^p*EXP(cc*xx),IF(pop=2,xx^p*SIN(cc*xx),xx^p*COS(cc*xx))) -> -1.114023266 | O159: =O158 -> 1.17 | P159: =IF(xx<=x0,IF(pop=1,xx^p*EXP(cc*xx),IF(pop=2,xx^p*SIN(cc*xx),xx^p*COS(cc*xx))),P157) -> -1.114023266 | Q159: =IF(xx<=x0,IF(pop=1,xx^p*EXP(cc*xx)/cc,IF(pop=2,(-1)*xx^p*(COS(cc*xx))/cc,xx^p*SIN(cc*xx)/cc)),Q157) -> 0.5753512763 | R159: =IF(p=1,EXP(cc*xx)/cc^2-EXP(a*xx)/cc^2,IF(p=2,EXP(cc*xx)*(2*xx/cc^2-1/cc^3)-EXP(a*cc)*(2*a/cc^2-1/cc^3),EXP(cc*xx)*(-3*xx^2/cc^2+6*xx/cc^3-3/cc^4))-EXP(cc*a)*(-3*a^2/cc^2+6*a/cc^3-3/cc^4)) -> -3.30760282 | S159: =IF(p=1,(SIN(cc*xx))/cc^2-SIN(a*cc)/cc^2,IF(p=2, 2*xx/cc^2*SIN(cc*xx)+2/cc^3*COS(cc*xx)- 2*a/cc^2*SIN(cc*a)+2/cc^3*COS(cc*a), 6*xx/cc^3*COS(cc*xx)+3/cc^4*(cc^2*xx^2-2)*SIN(cc*xx) - 6*a/cc^3*COS(cc*xx)+3/cc^4*(cc^2*a^2-2)*SIN(cc*a) )) -> -0.1421512749 | T159: =IF(p=1,COS(cc*xx)/cc^2-COS(cc*a)/cc^2, IF(p=2,(-2/cc^3*SIN(cc*xx)+2*xx/cc^2*COS(cc*xx)+2/cc^3*SIN(cc*a) -2*a/cc^2*COS(cc*a)), (-6*xx/cc^3*SIN(cc*xx)+(3*xx^2/cc^2-6/cc^4)*COS(cc*xx) +6*a/cc^3*SIN(cc*a)-(3*a^2/cc^2-6/cc^4)*COS(cc*a))) ) -> -0.7087340867 | U159: =IF(xx<=x0,(-1)*IF(pop=1,R159,IF(pop=2,S159,T159)),U157) -> 0.7087340867 | V159: =IF(xx<=x0,Q159-U159,V157) -> -0.1333828104
C160: 2.37 | D160: 0.3675126557 | E160: -4.395210608 | F160: -6.653489489 | G160: -299.9362199 | H160: -3.78713988 | I160: 2.257771145 | J160: -2.257771145 | K160: -4.395718344 | M160: =M158+dx -> 1.185 | N160: 0 | O160: =IF(xx<=x0,O158+dx,O158) -> 1.185 | P160: =N160 -> 0 | Q160: 0 | R160: 0 | S160: 0 | T160: 0 | U160: 0 | V160: 0
C161: 2.385 | D161: 0.7811428209 | E161: -4.386595692 | F161: -6.771954591 | G161: -314.0576989 | H161: -3.781718368 | I161: 2.384832577 | J161: -2.384832577 | K161: -4.387122014 | M161: =M160 -> 1.185 | N161: =IF(pop=1,xx^p*EXP(cc*xx),IF(pop=2,xx^p*SIN(cc*xx),xx^p*COS(cc*xx))) -> -1.192761708 | O161: =O160 -> 1.185 | P161: =IF(xx<=x0,IF(pop=1,xx^p*EXP(cc*xx),IF(pop=2,xx^p*SIN(cc*xx),xx^p*COS(cc*xx))),P159) -> -1.192761708 | Q161: =IF(xx<=x0,IF(pop=1,xx^p*EXP(cc*xx)/cc,IF(pop=2,(-1)*xx^p*(COS(cc*xx))/cc,xx^p*SIN(cc*xx)/cc)),Q159) -> 0.580137388 | R161: =IF(p=1,EXP(cc*xx)/cc^2-EXP(a*xx)/cc^2,IF(p=2,EXP(cc*xx)*(2*xx/cc^2-1/cc^3)-EXP(a*cc)*(2*a/cc^2-1/cc^3),EXP(cc*xx)*(-3*xx^2/cc^2+6*xx/cc^3-3/cc^4))-EXP(cc*a)*(-3*a^2/cc^2+6*a/cc^3-3/cc^4)) -> -3.577112921 | S161: =IF(p=1,(SIN(cc*xx))/cc^2-SIN(a*cc)/cc^2,IF(p=2, 2*xx/cc^2*SIN(cc*xx)+2/cc^3*COS(cc*xx)- 2*a/cc^2*SIN(cc*a)+2/cc^3*COS(cc*a), 6*xx/cc^3*COS(cc*xx)+3/cc^4*(cc^2*xx^2-2)*SIN(cc*xx) - 6*a/cc^3*COS(cc*xx)+3/cc^4*(cc^2*a^2-2)*SIN(cc*a) )) -> -0.1641849675 | T161: =IF(p=1,COS(cc*xx)/cc^2-COS(cc*a)/cc^2, IF(p=2,(-2/cc^3*SIN(cc*xx)+2*xx/cc^2*COS(cc*xx)+2/cc^3*SIN(cc*a) -2*a/cc^2*COS(cc*a)), (-6*xx/cc^3*SIN(cc*xx)+(3*xx^2/cc^2-6/cc^4)*COS(cc*xx) +6*a/cc^3*SIN(cc*a)-(3*a^2/cc^2-6/cc^4)*COS(cc*a))) ) -> -0.7308176669 | U161: =IF(xx<=x0,(-1)*IF(pop=1,R161,IF(pop=2,S161,T161)),U159) -> 0.7308176669 | V161: =IF(xx<=x0,Q161-U161,V159) -> -0.1506802789
C162: 2.4 | D162: 1.209585947 | E162: -4.371665226 | F162: -6.885489776 | G162: -328.8019554 | H162: -3.772371212 | I162: 2.513279786 | J162: -2.513279786 | K162: -4.372209991 | M162: =M160+dx -> 1.2 | N162: 0 | O162: =IF(xx<=x0,O160+dx,O160) -> 1.2 | P162: =N162 -> 0 | Q162: 0 | R162: 0 | S162: 0 | T162: 0 | U162: 0 | V162: 0
C163: =C162+dx -> 2.415 | D163: 1.652714127 | E163: =E162+(D162+D163)*dx/2 -> -4.350197975 | F163: -6.993761247 | G163: -344.1950739 | H163: -3.759009465 | I163: 2.643000241 | J163: =IF(pop=1,G163,IF(pop=2,H163,I163))*(-1) -> -2.643000241 | K163: -4.350761006 | M163: =M162 -> 1.2 | N163: =IF(pop=1,xx^p*EXP(cc*xx),IF(pop=2,xx^p*SIN(cc*xx),xx^p*COS(cc*xx))) -> -1.27421634 | O163: =O162 -> 1.2 | P163: =IF(xx<=x0,IF(pop=1,xx^p*EXP(cc*xx),IF(pop=2,xx^p*SIN(cc*xx),xx^p*COS(cc*xx))),P161) -> -1.27421634 | Q163: =IF(xx<=x0,IF(pop=1,xx^p*EXP(cc*xx)/cc,IF(pop=2,(-1)*xx^p*(COS(cc*xx))/cc,xx^p*SIN(cc*xx)/cc)),Q161) -> 0.583600188 | R163: =IF(p=1,EXP(cc*xx)/cc^2-EXP(a*xx)/cc^2,IF(p=2,EXP(cc*xx)*(2*xx/cc^2-1/cc^3)-EXP(a*cc)*(2*a/cc^2-1/cc^3),EXP(cc*xx)*(-3*xx^2/cc^2+6*xx/cc^3-3/cc^4))-EXP(cc*a)*(-3*a^2/cc^2+6*a/cc^3-3/cc^4)) -> -3.86351732 | S163: =IF(p=1,(SIN(cc*xx))/cc^2-SIN(a*cc)/cc^2,IF(p=2, 2*xx/cc^2*SIN(cc*xx)+2/cc^3*COS(cc*xx)- 2*a/cc^2*SIN(cc*a)+2/cc^3*COS(cc*a), 6*xx/cc^3*COS(cc*xx)+3/cc^4*(cc^2*xx^2-2)*SIN(cc*xx) - 6*a/cc^3*COS(cc*xx)+3/cc^4*(cc^2*a^2-2)*SIN(cc*a) )) -> -0.1874528017 | T163: =IF(p=1,COS(cc*xx)/cc^2-COS(cc*a)/cc^2, IF(p=2,(-2/cc^3*SIN(cc*xx)+2*xx/cc^2*COS(cc*xx)+2/cc^3*SIN(cc*a) -2*a/cc^2*COS(cc*a)), (-6*xx/cc^3*SIN(cc*xx)+(3*xx^2/cc^2-6/cc^4)*COS(cc*xx) +6*a/cc^3*SIN(cc*a)-(3*a^2/cc^2-6/cc^4)*COS(cc*a))) ) -> -0.752779432 | U163: =IF(xx<=x0,(-1)*IF(pop=1,R163,IF(pop=2,S163,T163)),U161) -> 0.752779432 | V163: =IF(xx<=x0,Q163-U163,V161) -> -0.169179244
C164: 2.43 | D164: 2.11037344 | E164: -4.321974819 | F164: -7.096433189 | G164: -360.2641878 | H164: -3.741547145 | I164: 2.773877282 | J164: -2.773877282 | K164: -4.322555907 | M164: =M162+dx -> 1.215 | N164: 0 | O164: =IF(xx<=x0,O162+dx,O162) -> 1.215 | P164: =N164 -> 0 | Q164: 0 | R164: 0 | S164: 0 | T164: 0 | U164: 0 | V164: 0
C165: 2.445 | D165: 2.582383511 | E165: -4.286779142 | F165: -7.193168235 | G165: -377.0375209 | H165: -3.719901396 | I165: 2.90579019 | J165: -2.90579019 | K165: -4.287378045 | M165: =M164 -> 1.215 | N165: =IF(pop=1,xx^p*EXP(cc*xx),IF(pop=2,xx^p*SIN(cc*xx),xx^p*COS(cc*xx))) -> -1.358344248 | O165: =O164 -> 1.215 | P165: =IF(xx<=x0,IF(pop=1,xx^p*EXP(cc*xx),IF(pop=2,xx^p*SIN(cc*xx),xx^p*COS(cc*xx))),P163) -> -1.358344248 | Q165: =IF(xx<=x0,IF(pop=1,xx^p*EXP(cc*xx)/cc,IF(pop=2,(-1)*xx^p*(COS(cc*xx))/cc,xx^p*SIN(cc*xx)/cc)),Q163) -> 0.5856513132 | R165: =IF(p=1,EXP(cc*xx)/cc^2-EXP(a*xx)/cc^2,IF(p=2,EXP(cc*xx)*(2*xx/cc^2-1/cc^3)-EXP(a*cc)*(2*a/cc^2-1/cc^3),EXP(cc*xx)*(-3*xx^2/cc^2+6*xx/cc^3-3/cc^4))-EXP(cc*a)*(-3*a^2/cc^2+6*a/cc^3-3/cc^4)) -> -4.167708369 | S165: =IF(p=1,(SIN(cc*xx))/cc^2-SIN(a*cc)/cc^2,IF(p=2, 2*xx/cc^2*SIN(cc*xx)+2/cc^3*COS(cc*xx)- 2*a/cc^2*SIN(cc*a)+2/cc^3*COS(cc*a), 6*xx/cc^3*COS(cc*xx)+3/cc^4*(cc^2*xx^2-2)*SIN(cc*xx) - 6*a/cc^3*COS(cc*xx)+3/cc^4*(cc^2*a^2-2)*SIN(cc*a) )) -> -0.2119743427 | T165: =IF(p=1,COS(cc*xx)/cc^2-COS(cc*a)/cc^2, IF(p=2,(-2/cc^3*SIN(cc*xx)+2*xx/cc^2*COS(cc*xx)+2/cc^3*SIN(cc*a) -2*a/cc^2*COS(cc*a)), (-6*xx/cc^3*SIN(cc*xx)+(3*xx^2/cc^2-6/cc^4)*COS(cc*xx) +6*a/cc^3*SIN(cc*a)-(3*a^2/cc^2-6/cc^4)*COS(cc*a))) ) -> -0.7745714502 | U165: =IF(xx<=x0,(-1)*IF(pop=1,R165,IF(pop=2,S165,T165)),U163) -> 0.7745714502 | V165: =IF(xx<=x0,Q165-U165,V163) -> -0.1889201369
C166: 2.46 | D166: 3.068537089 | E166: -4.244397237 | F166: -7.283627935 | G166: -394.5444291 | H166: -3.693992662 | I166: 3.038614256 | J166: -3.038614256 | K166: -4.245013679 | M166: =M164+dx -> 1.23 | N166: 0 | O166: =IF(xx<=x0,O164+dx,O164) -> 1.23 | P166: =N166 -> 0 | Q166: 0 | R166: 0 | S166: 0 | T166: 0 | U166: 0 | V166: 0
C167: 2.475 | D167: 3.568599667 | E167: -4.194618711 | F167: -7.367473253 | G167: -412.8154452 | H167: -3.66374485 | I167: 3.17222087 | J167: -3.17222087 | K167: -4.195252383 | M167: =M166 -> 1.23 | N167: =IF(pop=1,xx^p*EXP(cc*xx),IF(pop=2,xx^p*SIN(cc*xx),xx^p*COS(cc*xx))) -> -1.445094014 | O167: =O166 -> 1.23 | P167: =IF(xx<=x0,IF(pop=1,xx^p*EXP(cc*xx),IF(pop=2,xx^p*SIN(cc*xx),xx^p*COS(cc*xx))),P165) -> -1.445094014 | Q167: =IF(xx<=x0,IF(pop=1,xx^p*EXP(cc*xx)/cc,IF(pop=2,(-1)*xx^p*(COS(cc*xx))/cc,xx^p*SIN(cc*xx)/cc)),Q165) -> 0.5862016042 | R167: =IF(p=1,EXP(cc*xx)/cc^2-EXP(a*xx)/cc^2,IF(p=2,EXP(cc*xx)*(2*xx/cc^2-1/cc^3)-EXP(a*cc)*(2*a/cc^2-1/cc^3),EXP(cc*xx)*(-3*xx^2/cc^2+6*xx/cc^3-3/cc^4))-EXP(cc*a)*(-3*a^2/cc^2+6*a/cc^3-3/cc^4)) -> -4.490620552 | S167: =IF(p=1,(SIN(cc*xx))/cc^2-SIN(a*cc)/cc^2,IF(p=2, 2*xx/cc^2*SIN(cc*xx)+2/cc^3*COS(cc*xx)- 2*a/cc^2*SIN(cc*a)+2/cc^3*COS(cc*a), 6*xx/cc^3*COS(cc*xx)+3/cc^4*(cc^2*xx^2-2)*SIN(cc*xx) - 6*a/cc^3*COS(cc*xx)+3/cc^4*(cc^2*a^2-2)*SIN(cc*a) )) -> -0.2377675677 | T167: =IF(p=1,COS(cc*xx)/cc^2-COS(cc*a)/cc^2, IF(p=2,(-2/cc^3*SIN(cc*xx)+2*xx/cc^2*COS(cc*xx)+2/cc^3*SIN(cc*a) -2*a/cc^2*COS(cc*a)), (-6*xx/cc^3*SIN(cc*xx)+(3*xx^2/cc^2-6/cc^4)*COS(cc*xx) +6*a/cc^3*SIN(cc*a)-(3*a^2/cc^2-6/cc^4)*COS(cc*a))) ) -> -0.7961442863 | U167: =IF(xx<=x0,(-1)*IF(pop=1,R167,IF(pop=2,S167,T167)),U165) -> 0.7961442863 | V167: =IF(xx<=x0,Q167-U167,V165) -> -0.2099426821
C168: 2.49 | D168: 4.082309135 | E168: -4.137236895 | F168: -7.444365055 | G168: -431.8823241 | H168: -3.629085499 | I168: 3.306477605 | J168: -3.306477605 | K168: -4.13788745 | M168: =M166+dx -> 1.245 | N168: 0 | O168: =IF(xx<=x0,O166+dx,O166) -> 1.245 | P168: =N168 -> 0 | Q168: 0 | R168: 0 | S168: 0 | T168: 0 | U168: 0 | V168: 0
C169: 2.505 | D169: 4.609375455 | E169: -4.072049261 | F169: -7.513964632 | G169: -451.7780902 | H169: -3.589945937 | I169: 3.441248313 | J169: -3.441248313 | K169: -4.07271632 | M169: =M168 -> 1.245 | N169: =IF(pop=1,xx^p*EXP(cc*xx),IF(pop=2,xx^p*SIN(cc*xx),xx^p*COS(cc*xx))) -> -1.534405517 | O169: =O168 -> 1.245 | P169: =IF(xx<=x0,IF(pop=1,xx^p*EXP(cc*xx),IF(pop=2,xx^p*SIN(cc*xx),xx^p*COS(cc*xx))),P167) -> -1.534405517 | Q169: =IF(xx<=x0,IF(pop=1,xx^p*EXP(cc*xx)/cc,IF(pop=2,(-1)*xx^p*(COS(cc*xx))/cc,xx^p*SIN(cc*xx)/cc)),Q167) -> 0.5851612813 | R169: =IF(p=1,EXP(cc*xx)/cc^2-EXP(a*xx)/cc^2,IF(p=2,EXP(cc*xx)*(2*xx/cc^2-1/cc^3)-EXP(a*cc)*(2*a/cc^2-1/cc^3),EXP(cc*xx)*(-3*xx^2/cc^2+6*xx/cc^3-3/cc^4))-EXP(cc*a)*(-3*a^2/cc^2+6*a/cc^3-3/cc^4)) -> -4.833232334 | S169: =IF(p=1,(SIN(cc*xx))/cc^2-SIN(a*cc)/cc^2,IF(p=2, 2*xx/cc^2*SIN(cc*xx)+2/cc^3*COS(cc*xx)- 2*a/cc^2*SIN(cc*a)+2/cc^3*COS(cc*a), 6*xx/cc^3*COS(cc*xx)+3/cc^4*(cc^2*xx^2-2)*SIN(cc*xx) - 6*a/cc^3*COS(cc*xx)+3/cc^4*(cc^2*a^2-2)*SIN(cc*a) )) -> -0.2648487868 | T169: =IF(p=1,COS(cc*xx)/cc^2-COS(cc*a)/cc^2, IF(p=2,(-2/cc^3*SIN(cc*xx)+2*xx/cc^2*COS(cc*xx)+2/cc^3*SIN(cc*a) -2*a/cc^2*COS(cc*a)), (-6*xx/cc^3*SIN(cc*xx)+(3*xx^2/cc^2-6/cc^4)*COS(cc*xx) +6*a/cc^3*SIN(cc*a)-(3*a^2/cc^2-6/cc^4)*COS(cc*a))) ) -> -0.8174470488 | U169: =IF(xx<=x0,(-1)*IF(pop=1,R169,IF(pop=2,S169,T169)),U167) -> 0.8174470488 | V169: =IF(xx<=x0,Q169-U169,V167) -> -0.2322857675
C170: 2.52 | D170: 5.149480388 | E170: -3.998857842 | F170: -7.575934213 | G170: -472.537087 | H170: -3.546261449 | I170: 3.576393224 | J170: -3.576393224 | K170: -3.999540989 | M170: =M168+dx -> 1.26 | N170: 0 | O170: =IF(xx<=x0,O168+dx,O168) -> 1.26 | P170: =N170 -> 0 | Q170: 0 | R170: 0 | S170: 0 | T170: 0 | U170: 0 | V170: 0
C171: 2.535 | D171: 5.702277249 | E171: -3.91746966 | F171: -7.6299375 | G171: -494.1950278 | H171: -3.49797143 | I171: 3.711769057 | J171: -3.711769057 | K171: -3.918168443 | M171: =M170 -> 1.26 | N171: =IF(pop=1,xx^p*EXP(cc*xx),IF(pop=2,xx^p*SIN(cc*xx),xx^p*COS(cc*xx))) -> -1.626209744 | O171: =O170 -> 1.26 | P171: =IF(xx<=x0,IF(pop=1,xx^p*EXP(cc*xx),IF(pop=2,xx^p*SIN(cc*xx),xx^p*COS(cc*xx))),P169) -> -1.626209744 | Q171: =IF(xx<=x0,IF(pop=1,xx^p*EXP(cc*xx)/cc,IF(pop=2,(-1)*xx^p*(COS(cc*xx))/cc,xx^p*SIN(cc*xx)/cc)),Q169) -> 0.5824401277 | R171: =IF(p=1,EXP(cc*xx)/cc^2-EXP(a*xx)/cc^2,IF(p=2,EXP(cc*xx)*(2*xx/cc^2-1/cc^3)-EXP(a*cc)*(2*a/cc^2-1/cc^3),EXP(cc*xx)*(-3*xx^2/cc^2+6*xx/cc^3-3/cc^4))-EXP(cc*a)*(-3*a^2/cc^2+6*a/cc^3-3/cc^4)) -> -5.196568075 | S171: =IF(p=1,(SIN(cc*xx))/cc^2-SIN(a*cc)/cc^2,IF(p=2, 2*xx/cc^2*SIN(cc*xx)+2/cc^3*COS(cc*xx)- 2*a/cc^2*SIN(cc*a)+2/cc^3*COS(cc*a), 6*xx/cc^3*COS(cc*xx)+3/cc^4*(cc^2*xx^2-2)*SIN(cc*xx) - 6*a/cc^3*COS(cc*xx)+3/cc^4*(cc^2*a^2-2)*SIN(cc*a) )) -> -0.2932325642 | T171: =IF(p=1,COS(cc*xx)/cc^2-COS(cc*a)/cc^2, IF(p=2,(-2/cc^3*SIN(cc*xx)+2*xx/cc^2*COS(cc*xx)+2/cc^3*SIN(cc*a) -2*a/cc^2*COS(cc*a)), (-6*xx/cc^3*SIN(cc*xx)+(3*xx^2/cc^2-6/cc^4)*COS(cc*xx) +6*a/cc^3*SIN(cc*a)-(3*a^2/cc^2-6/cc^4)*COS(cc*a))) ) -> -0.8384274405 | U171: =IF(xx<=x0,(-1)*IF(pop=1,R171,IF(pop=2,S171,T171)),U169) -> 0.8384274405 | V171: =IF(xx<=x0,Q171-U171,V169) -> -0.2559873128
C172: 2.55 | D172: 6.267390694 | E172: -3.82769715 | F172: -7.675640214 | G172: -516.7890491 | H172: -3.44501954 | I172: 3.84722913 | J172: -3.84722913 | K172: -3.828411084 | M172: =M170+dx -> 1.275 | N172: 0 | O172: =IF(xx<=x0,O170+dx,O170) -> 1.275 | P172: =N172 -> 0 | Q172: 0 | R172: 0 | S172: 0 | T172: 0 | U172: 0 | V172: 0
C173: 2.565 | D173: 6.844416559 | E173: -3.729358596 | F173: -7.71271064 | G173: -540.3577651 | H173: -3.387353863 | I173: 3.982623485 | J173: -3.982623485 | K173: -3.730087156 | M173: =M172 -> 1.275 | N173: =IF(pop=1,xx^p*EXP(cc*xx),IF(pop=2,xx^p*SIN(cc*xx),xx^p*COS(cc*xx))) -> -1.720428617 | O173: =O172 -> 1.275 | P173: =IF(xx<=x0,IF(pop=1,xx^p*EXP(cc*xx),IF(pop=2,xx^p*SIN(cc*xx),xx^p*COS(cc*xx))),P171) -> -1.720428617 | Q173: =IF(xx<=x0,IF(pop=1,xx^p*EXP(cc*xx)/cc,IF(pop=2,(-1)*xx^p*(COS(cc*xx))/cc,xx^p*SIN(cc*xx)/cc)),Q171) -> 0.5779476781 | R173: =IF(p=1,EXP(cc*xx)/cc^2-EXP(a*xx)/cc^2,IF(p=2,EXP(cc*xx)*(2*xx/cc^2-1/cc^3)-EXP(a*cc)*(2*a/cc^2-1/cc^3),EXP(cc*xx)*(-3*xx^2/cc^2+6*xx/cc^3-3/cc^4))-EXP(cc*a)*(-3*a^2/cc^2+6*a/cc^3-3/cc^4)) -> -5.581700032 | S173: =IF(p=1,(SIN(cc*xx))/cc^2-SIN(a*cc)/cc^2,IF(p=2, 2*xx/cc^2*SIN(cc*xx)+2/cc^3*COS(cc*xx)- 2*a/cc^2*SIN(cc*a)+2/cc^3*COS(cc*a), 6*xx/cc^3*COS(cc*xx)+3/cc^4*(cc^2*xx^2-2)*SIN(cc*xx) - 6*a/cc^3*COS(cc*xx)+3/cc^4*(cc^2*a^2-2)*SIN(cc*a) )) -> -0.3229316423 | T173: =IF(p=1,COS(cc*xx)/cc^2-COS(cc*a)/cc^2, IF(p=2,(-2/cc^3*SIN(cc*xx)+2*xx/cc^2*COS(cc*xx)+2/cc^3*SIN(cc*a) -2*a/cc^2*COS(cc*a)), (-6*xx/cc^3*SIN(cc*xx)+(3*xx^2/cc^2-6/cc^4)*COS(cc*xx) +6*a/cc^3*SIN(cc*a)-(3*a^2/cc^2-6/cc^4)*COS(cc*a))) ) -> -0.8590318127 | U173: =IF(xx<=x0,(-1)*IF(pop=1,R173,IF(pop=2,S173,T173)),U171) -> 0.8590318127 | V173: =IF(xx<=x0,Q173-U173,V171) -> -0.2810841346
C174: 2.58 | D174: 7.43292173 | E174: -3.622278559 | F174: -7.740820192 | G174: -564.9413255 | H174: -3.32492705 | I174: 4.117799006 | J174: -4.117799006 | K174: -3.623021186 | M174: =M172+dx -> 1.29 | N174: 0 | O174: =IF(xx<=x0,O172+dx,O172) -> 1.29 | P174: =N174 -> 0 | Q174: 0 | R174: 0 | S174: 0 | T174: 0 | U174: 0 | V174: 0
C175: 2.595 | D175: 8.032444052 | E175: -3.506288315 | F175: -7.759643975 | G175: -590.5814741 | H175: -3.257696469 | I175: 4.252599562 | J175: -4.252599562 | K175: -3.507044413 | M175: =M174 -> 1.29 | N175: =IF(pop=1,xx^p*EXP(cc*xx),IF(pop=2,xx^p*SIN(cc*xx),xx^p*COS(cc*xx))) -> -1.816974832 | O175: =O174 -> 1.29 | P175: =IF(xx<=x0,IF(pop=1,xx^p*EXP(cc*xx),IF(pop=2,xx^p*SIN(cc*xx),xx^p*COS(cc*xx))),P173) -> -1.816974832 | Q175: =IF(xx<=x0,IF(pop=1,xx^p*EXP(cc*xx)/cc,IF(pop=2,(-1)*xx^p*(COS(cc*xx))/cc,xx^p*SIN(cc*xx)/cc)),Q173) -> 0.5715934141 | R175: =IF(p=1,EXP(cc*xx)/cc^2-EXP(a*xx)/cc^2,IF(p=2,EXP(cc*xx)*(2*xx/cc^2-1/cc^3)-EXP(a*cc)*(2*a/cc^2-1/cc^3),EXP(cc*xx)*(-3*xx^2/cc^2+6*xx/cc^3-3/cc^4))-EXP(cc*a)*(-3*a^2/cc^2+6*a/cc^3-3/cc^4)) -> -5.989750444 | S175: =IF(p=1,(SIN(cc*xx))/cc^2-SIN(a*cc)/cc^2,IF(p=2, 2*xx/cc^2*SIN(cc*xx)+2/cc^3*COS(cc*xx)- 2*a/cc^2*SIN(cc*a)+2/cc^3*COS(cc*a), 6*xx/cc^3*COS(cc*xx)+3/cc^4*(cc^2*xx^2-2)*SIN(cc*xx) - 6*a/cc^3*COS(cc*xx)+3/cc^4*(cc^2*a^2-2)*SIN(cc*a) )) -> -0.3539568655 | T175: =IF(p=1,COS(cc*xx)/cc^2-COS(cc*a)/cc^2, IF(p=2,(-2/cc^3*SIN(cc*xx)+2*xx/cc^2*COS(cc*xx)+2/cc^3*SIN(cc*a) -2*a/cc^2*COS(cc*a)), (-6*xx/cc^3*SIN(cc*xx)+(3*xx^2/cc^2-6/cc^4)*COS(cc*xx) +6*a/cc^3*SIN(cc*a)-(3*a^2/cc^2-6/cc^4)*COS(cc*a))) ) -> -0.8792052236 | U175: =IF(xx<=x0,(-1)*IF(pop=1,R175,IF(pop=2,S175,T175)),U173) -> 0.8792052236 | V175: =IF(xx<=x0,Q175-U175,V173) -> -0.3076118096
C176: 2.61 | D176: 8.642492286 | E176: -3.381226293 | F176: -7.768861365 | G176: -617.3216107 | H176: -3.185624345 | I176: 4.386866135 | J176: -4.386866135 | K176: -3.38199523 | M176: =M174+dx -> 1.305 | N176: 0 | O176: =IF(xx<=x0,O174+dx,O174) -> 1.305 | P176: =N176 -> 0 | Q176: 0 | R176: 0 | S176: 0 | T176: 0 | U176: 0 | V176: 0
C177: 2.625 | D177: 9.262546103 | E177: -3.246938505 | F177: -7.768156586 | G177: -645.2068545 | H177: -3.108677902 | I177: 4.520436974 | J177: -4.520436974 | K177: -3.247719612 | M177: =M176 -> 1.305 | N177: =IF(pop=1,xx^p*EXP(cc*xx),IF(pop=2,xx^p*SIN(cc*xx),xx^p*COS(cc*xx))) -> -1.915751713 | O177: =O176 -> 1.305 | P177: =IF(xx<=x0,IF(pop=1,xx^p*EXP(cc*xx),IF(pop=2,xx^p*SIN(cc*xx),xx^p*COS(cc*xx))),P175) -> -1.915751713 | Q177: =IF(xx<=x0,IF(pop=1,xx^p*EXP(cc*xx)/cc,IF(pop=2,(-1)*xx^p*(COS(cc*xx))/cc,xx^p*SIN(cc*xx)/cc)),Q175) -> 0.5632869649 | R177: =IF(p=1,EXP(cc*xx)/cc^2-EXP(a*xx)/cc^2,IF(p=2,EXP(cc*xx)*(2*xx/cc^2-1/cc^3)-EXP(a*cc)*(2*a/cc^2-1/cc^3),EXP(cc*xx)*(-3*xx^2/cc^2+6*xx/cc^3-3/cc^4))-EXP(cc*a)*(-3*a^2/cc^2+6*a/cc^3-3/cc^4)) -> -6.421893696 | S177: =IF(p=1,(SIN(cc*xx))/cc^2-SIN(a*cc)/cc^2,IF(p=2, 2*xx/cc^2*SIN(cc*xx)+2/cc^3*COS(cc*xx)- 2*a/cc^2*SIN(cc*a)+2/cc^3*COS(cc*a), 6*xx/cc^3*COS(cc*xx)+3/cc^4*(cc^2*xx^2-2)*SIN(cc*xx) - 6*a/cc^3*COS(cc*xx)+3/cc^4*(cc^2*a^2-2)*SIN(cc*a) )) -> -0.3863171074 | T177: =IF(p=1,COS(cc*xx)/cc^2-COS(cc*a)/cc^2, IF(p=2,(-2/cc^3*SIN(cc*xx)+2*xx/cc^2*COS(cc*xx)+2/cc^3*SIN(cc*a) -2*a/cc^2*COS(cc*a)), (-6*xx/cc^3*SIN(cc*xx)+(3*xx^2/cc^2-6/cc^4)*COS(cc*xx) +6*a/cc^3*SIN(cc*a)-(3*a^2/cc^2-6/cc^4)*COS(cc*a))) ) -> -0.8988914994 | U177: =IF(xx<=x0,(-1)*IF(pop=1,R177,IF(pop=2,S177,T177)),U175) -> 0.8988914994 | V177: =IF(xx<=x0,Q177-U177,V175) -> -0.3356045345
C178: 2.64 | D178: 9.892056125 | E178: -3.103278988 | F178: -7.757219297 | G178: -674.2841109 | H178: -3.026829494 | I178: 4.653147736 | J178: -4.653147736 | K178: -3.104071561 | M178: =M176+dx -> 1.32 | N178: 0 | O178: =IF(xx<=x0,O176+dx,O176) -> 1.32 | P178: =N178 -> 0 | Q178: 0 | R178: 0 | S178: 0 | T178: 0 | U178: 0 | V178: 0
C179: 2.655 | D179: 10.53044401 | E179: -2.950110237 | F179: -7.735745186 | G179: -704.6021395 | H179: -2.940056738 | I179: 4.784831652 | J179: -4.784831652 | K179: -2.950913534 | M179: =M178 -> 1.32 | N179: =IF(pop=1,xx^p*EXP(cc*xx),IF(pop=2,xx^p*SIN(cc*xx),xx^p*COS(cc*xx))) -> -2.01665309 | O179: =O178 -> 1.32 | P179: =IF(xx<=x0,IF(pop=1,xx^p*EXP(cc*xx),IF(pop=2,xx^p*SIN(cc*xx),xx^p*COS(cc*xx))),P177) -> -2.01665309 | Q179: =IF(xx<=x0,IF(pop=1,xx^p*EXP(cc*xx)/cc,IF(pop=2,(-1)*xx^p*(COS(cc*xx))/cc,xx^p*SIN(cc*xx)/cc)),Q177) -> 0.5529383141 | R179: =IF(p=1,EXP(cc*xx)/cc^2-EXP(a*xx)/cc^2,IF(p=2,EXP(cc*xx)*(2*xx/cc^2-1/cc^3)-EXP(a*cc)*(2*a/cc^2-1/cc^3),EXP(cc*xx)*(-3*xx^2/cc^2+6*xx/cc^3-3/cc^4))-EXP(cc*a)*(-3*a^2/cc^2+6*a/cc^3-3/cc^4)) -> -6.879358579 | S179: =IF(p=1,(SIN(cc*xx))/cc^2-SIN(a*cc)/cc^2,IF(p=2, 2*xx/cc^2*SIN(cc*xx)+2/cc^3*COS(cc*xx)- 2*a/cc^2*SIN(cc*a)+2/cc^3*COS(cc*a), 6*xx/cc^3*COS(cc*xx)+3/cc^4*(cc^2*xx^2-2)*SIN(cc*xx) - 6*a/cc^3*COS(cc*xx)+3/cc^4*(cc^2*a^2-2)*SIN(cc*a) )) -> -0.4200191988 | T179: =IF(p=1,COS(cc*xx)/cc^2-COS(cc*a)/cc^2, IF(p=2,(-2/cc^3*SIN(cc*xx)+2*xx/cc^2*COS(cc*xx)+2/cc^3*SIN(cc*a) -2*a/cc^2*COS(cc*a)), (-6*xx/cc^3*SIN(cc*xx)+(3*xx^2/cc^2-6/cc^4)*COS(cc*xx) +6*a/cc^3*SIN(cc*a)-(3*a^2/cc^2-6/cc^4)*COS(cc*a))) ) -> -0.9180332991 | U179: =IF(xx<=x0,(-1)*IF(pop=1,R179,IF(pop=2,S179,T179)),U177) -> 0.9180332991 | V179: =IF(xx<=x0,Q179-U179,V177) -> -0.365094985
C180: 2.67 | D180: 11.17710257 | E180: -2.787303638 | F180: -7.70343656 | G180: -736.2116261 | H180: -2.848342637 | I180: 4.915319678 | J180: -4.915319678 | K180: -2.788116882 | M180: =M178+dx -> 1.335 | N180: 0 | O180: =IF(xx<=x0,O178+dx,O178) -> 1.335 | P180: =N180 -> 0 | Q180: 0 | R180: 0 | S180: 0 | T180: 0 | U180: 0 | V180: 0
C181: 2.685 | D181: 11.83139595 | E181: -2.614739899 | F181: -7.660002949 | G181: -769.1652559 | H181: -2.751675705 | I181: 5.044440671 | J181: -5.044440671 | K181: -2.615562278 | M181: =M180 -> 1.335 | N181: =IF(pop=1,xx^p*EXP(cc*xx),IF(pop=2,xx^p*SIN(cc*xx),xx^p*COS(cc*xx))) -> -2.11956318 | O181: =O180 -> 1.335 | P181: =IF(xx<=x0,IF(pop=1,xx^p*EXP(cc*xx),IF(pop=2,xx^p*SIN(cc*xx),xx^p*COS(cc*xx))),P179) -> -2.11956318 | Q181: =IF(xx<=x0,IF(pop=1,xx^p*EXP(cc*xx)/cc,IF(pop=2,(-1)*xx^p*(COS(cc*xx))/cc,xx^p*SIN(cc*xx)/cc)),Q179) -> 0.5404580107 | R181: =IF(p=1,EXP(cc*xx)/cc^2-EXP(a*xx)/cc^2,IF(p=2,EXP(cc*xx)*(2*xx/cc^2-1/cc^3)-EXP(a*cc)*(2*a/cc^2-1/cc^3),EXP(cc*xx)*(-3*xx^2/cc^2+6*xx/cc^3-3/cc^4))-EXP(cc*a)*(-3*a^2/cc^2+6*a/cc^3-3/cc^4)) -> -7.36343064 | S181: =IF(p=1,(SIN(cc*xx))/cc^2-SIN(a*cc)/cc^2,IF(p=2, 2*xx/cc^2*SIN(cc*xx)+2/cc^3*COS(cc*xx)- 2*a/cc^2*SIN(cc*a)+2/cc^3*COS(cc*a), 6*xx/cc^3*COS(cc*xx)+3/cc^4*(cc^2*xx^2-2)*SIN(cc*xx) - 6*a/cc^3*COS(cc*xx)+3/cc^4*(cc^2*a^2-2)*SIN(cc*a) )) -> -0.4550678585 | T181: =IF(p=1,COS(cc*xx)/cc^2-COS(cc*a)/cc^2, IF(p=2,(-2/cc^3*SIN(cc*xx)+2*xx/cc^2*COS(cc*xx)+2/cc^3*SIN(cc*a) -2*a/cc^2*COS(cc*a)), (-6*xx/cc^3*SIN(cc*xx)+(3*xx^2/cc^2-6/cc^4)*COS(cc*xx) +6*a/cc^3*SIN(cc*a)-(3*a^2/cc^2-6/cc^4)*COS(cc*a))) ) -> -0.9365721831 | U181: =IF(xx<=x0,(-1)*IF(pop=1,R181,IF(pop=2,S181,T181)),U179) -> 0.9365721831 | V181: =IF(xx<=x0,Q181-U181,V179) -> -0.3961141724
C182: 2.7 | D182: 12.49265988 | E182: -2.43230948 | F182: -7.605161704 | G182: -803.5177908 | H182: -2.650050079 | I182: 5.172021558 | J182: -5.172021558 | K182: -2.433140146 | M182: =M180+dx -> 1.35 | N182: 0 | O182: =IF(xx<=x0,O180+dx,O180) -> 1.35 | P182: =N182 -> 0 | Q182: 0 | R182: 0 | S182: 0 | T182: 0 | U182: 0 | V182: 0
C183: 2.715 | D183: 13.16020186 | E183: -2.239913017 | F183: -7.538638599 | G183: -839.3261487 | H183: -2.543465631 | I183: 5.297887512 | J183: -5.297887512 | K183: -2.240751087 | M183: =M182 -> 1.35 | N183: =IF(pop=1,xx^p*EXP(cc*xx),IF(pop=2,xx^p*SIN(cc*xx),xx^p*COS(cc*xx))) -> -2.224356496 | O183: =O182 -> 1.35 | P183: =IF(xx<=x0,IF(pop=1,xx^p*EXP(cc*xx),IF(pop=2,xx^p*SIN(cc*xx),xx^p*COS(cc*xx))),P181) -> -2.224356496 | Q183: =IF(xx<=x0,IF(pop=1,xx^p*EXP(cc*xx)/cc,IF(pop=2,(-1)*xx^p*(COS(cc*xx))/cc,xx^p*SIN(cc*xx)/cc)),Q181) -> 0.5257573864 | R183: =IF(p=1,EXP(cc*xx)/cc^2-EXP(a*xx)/cc^2,IF(p=2,EXP(cc*xx)*(2*xx/cc^2-1/cc^3)-EXP(a*cc)*(2*a/cc^2-1/cc^3),EXP(cc*xx)*(-3*xx^2/cc^2+6*xx/cc^3-3/cc^4))-EXP(cc*a)*(-3*a^2/cc^2+6*a/cc^3-3/cc^4)) -> -7.875454628 | S183: =IF(p=1,(SIN(cc*xx))/cc^2-SIN(a*cc)/cc^2,IF(p=2, 2*xx/cc^2*SIN(cc*xx)+2/cc^3*COS(cc*xx)- 2*a/cc^2*SIN(cc*a)+2/cc^3*COS(cc*a), 6*xx/cc^3*COS(cc*xx)+3/cc^4*(cc^2*xx^2-2)*SIN(cc*xx) - 6*a/cc^3*COS(cc*xx)+3/cc^4*(cc^2*a^2-2)*SIN(cc*a) )) -> -0.4914656251 | T183: =IF(p=1,COS(cc*xx)/cc^2-COS(cc*a)/cc^2, IF(p=2,(-2/cc^3*SIN(cc*xx)+2*xx/cc^2*COS(cc*xx)+2/cc^3*SIN(cc*a) -2*a/cc^2*COS(cc*a)), (-6*xx/cc^3*SIN(cc*xx)+(3*xx^2/cc^2-6/cc^4)*COS(cc*xx) +6*a/cc^3*SIN(cc*a)-(3*a^2/cc^2-6/cc^4)*COS(cc*a))) ) -> -0.9544486846 | U183: =IF(xx<=x0,(-1)*IF(pop=1,R183,IF(pop=2,S183,T183)),U181) -> 0.9544486846 | V183: =IF(xx<=x0,Q183-U183,V181) -> -0.4286912982
C184: 2.73 | D184: 13.83330157 | E184: -2.037461741 | F184: -7.460168436 | G184: -876.6494862 | H184: -2.431928074 | I184: 5.421862139 | J184: -5.421862139 | K184: -2.038306297 | M184: =M182+dx -> 1.365 | N184: 0 | O184: =IF(xx<=x0,O182+dx,O182) -> 1.365 | P184: =N184 -> 0 | Q184: 0 | R184: 0 | S184: 0 | T184: 0 | U184: 0 | V184: 0
C185: 2.745 | D185: 14.51121116 | E185: -1.824877896 | F185: -7.369495647 | G185: -915.5492842 | H185: -2.31544906 | I185: 5.543767661 | J185: -5.543767661 | K185: -1.825727986 | M185: =M184 -> 1.365 | N185: =IF(pop=1,xx^p*EXP(cc*xx),IF(pop=2,xx^p*SIN(cc*xx),xx^p*COS(cc*xx))) -> -2.330897773 | O185: =O184 -> 1.365 | P185: =IF(xx<=x0,IF(pop=1,xx^p*EXP(cc*xx),IF(pop=2,xx^p*SIN(cc*xx),xx^p*COS(cc*xx))),P183) -> -2.330897773 | Q185: =IF(xx<=x0,IF(pop=1,xx^p*EXP(cc*xx)/cc,IF(pop=2,(-1)*xx^p*(COS(cc*xx))/cc,xx^p*SIN(cc*xx)/cc)),Q183) -> 0.5087487763 | R185: =IF(p=1,EXP(cc*xx)/cc^2-EXP(a*xx)/cc^2,IF(p=2,EXP(cc*xx)*(2*xx/cc^2-1/cc^3)-EXP(a*cc)*(2*a/cc^2-1/cc^3),EXP(cc*xx)*(-3*xx^2/cc^2+6*xx/cc^3-3/cc^4))-EXP(cc*a)*(-3*a^2/cc^2+6*a/cc^3-3/cc^4)) -> -8.416837043 | S185: =IF(p=1,(SIN(cc*xx))/cc^2-SIN(a*cc)/cc^2,IF(p=2, 2*xx/cc^2*SIN(cc*xx)+2/cc^3*COS(cc*xx)- 2*a/cc^2*SIN(cc*a)+2/cc^3*COS(cc*a), 6*xx/cc^3*COS(cc*xx)+3/cc^4*(cc^2*xx^2-2)*SIN(cc*xx) - 6*a/cc^3*COS(cc*xx)+3/cc^4*(cc^2*a^2-2)*SIN(cc*a) )) -> -0.5292127925 | T185: =IF(p=1,COS(cc*xx)/cc^2-COS(cc*a)/cc^2, IF(p=2,(-2/cc^3*SIN(cc*xx)+2*xx/cc^2*COS(cc*xx)+2/cc^3*SIN(cc*a) -2*a/cc^2*COS(cc*a)), (-6*xx/cc^3*SIN(cc*xx)+(3*xx^2/cc^2-6/cc^4)*COS(cc*xx) +6*a/cc^3*SIN(cc*a)-(3*a^2/cc^2-6/cc^4)*COS(cc*a))) ) -> -0.9716023849 | U185: =IF(xx<=x0,(-1)*IF(pop=1,R185,IF(pop=2,S185,T185)),U183) -> 0.9716023849 | V185: =IF(xx<=x0,Q185-U185,V183) -> -0.4628536087
C186: 2.76 | D186: 15.19315568 | E186: -1.602095145 | F186: -7.266374896 | G186: -956.089437 | H186: -2.194046277 | I186: 5.663425113 | J186: -5.663425113 | K186: -1.602949783 | M186: =M184+dx -> 1.38 | N186: 0 | O186: =IF(xx<=x0,O184+dx,O184) -> 1.38 | P186: =N186 -> 0 | Q186: 0 | R186: 0 | S186: 0 | T186: 0 | U186: 0 | V186: 0
C187: 2.775 | D187: 15.87833355 | E187: -1.369058975 | F187: -7.150571682 | G187: -998.336344 | H187: -2.06774353 | I187: 5.780654537 | J187: -5.780654537 | K187: -1.369917144 | M187: =M186 -> 1.38 | N187: =IF(pop=1,xx^p*EXP(cc*xx),IF(pop=2,xx^p*SIN(cc*xx),xx^p*COS(cc*xx))) -> -2.439041904 | O187: =O186 -> 1.38 | P187: =IF(xx<=x0,IF(pop=1,xx^p*EXP(cc*xx),IF(pop=2,xx^p*SIN(cc*xx),xx^p*COS(cc*xx))),P185) -> -2.439041904 | Q187: =IF(xx<=x0,IF(pop=1,xx^p*EXP(cc*xx)/cc,IF(pop=2,(-1)*xx^p*(COS(cc*xx))/cc,xx^p*SIN(cc*xx)/cc)),Q185) -> 0.4893457442 | R187: =IF(p=1,EXP(cc*xx)/cc^2-EXP(a*xx)/cc^2,IF(p=2,EXP(cc*xx)*(2*xx/cc^2-1/cc^3)-EXP(a*cc)*(2*a/cc^2-1/cc^3),EXP(cc*xx)*(-3*xx^2/cc^2+6*xx/cc^3-3/cc^4))-EXP(cc*a)*(-3*a^2/cc^2+6*a/cc^3-3/cc^4)) -> -8.989048784 | S187: =IF(p=1,(SIN(cc*xx))/cc^2-SIN(a*cc)/cc^2,IF(p=2, 2*xx/cc^2*SIN(cc*xx)+2/cc^3*COS(cc*xx)- 2*a/cc^2*SIN(cc*a)+2/cc^3*COS(cc*a), 6*xx/cc^3*COS(cc*xx)+3/cc^4*(cc^2*xx^2-2)*SIN(cc*xx) - 6*a/cc^3*COS(cc*xx)+3/cc^4*(cc^2*a^2-2)*SIN(cc*a) )) -> -0.5683073468 | T187: =IF(p=1,COS(cc*xx)/cc^2-COS(cc*a)/cc^2, IF(p=2,(-2/cc^3*SIN(cc*xx)+2*xx/cc^2*COS(cc*xx)+2/cc^3*SIN(cc*a) -2*a/cc^2*COS(cc*a)), (-6*xx/cc^3*SIN(cc*xx)+(3*xx^2/cc^2-6/cc^4)*COS(cc*xx) +6*a/cc^3*SIN(cc*a)-(3*a^2/cc^2-6/cc^4)*COS(cc*a))) ) -> -0.9879719915 | U187: =IF(xx<=x0,(-1)*IF(pop=1,R187,IF(pop=2,S187,T187)),U185) -> 0.9879719915 | V187: =IF(xx<=x0,Q187-U187,V185) -> -0.4986262473
C188: 2.79 | D188: 16.56591705 | E188: -1.125727096 | F188: -7.02186293 | G188: -1042.359006 | H188: -1.936570832 | I188: 5.895275185 | J188: -5.895275185 | K188: -1.126587744 | M188: =M186+dx -> 1.395 | N188: 0 | O188: =IF(xx<=x0,O186+dx,O186) -> 1.395 | P188: =N188 -> 0 | Q188: 0 | R188: 0 | S188: 0 | T188: 0 | U188: 0 | V188: 0
C189: 2.805 | D189: 17.25505288 | E189: -0.8720698215 | F189: -6.880037591 | G189: -1088.229124 | H189: -1.800564469 | I189: 6.007105723 | J189: -6.007105723 | K189: -0.8729318671 | M189: =M188 -> 1.395 | N189: =IF(pop=1,xx^p*EXP(cc*xx),IF(pop=2,xx^p*SIN(cc*xx),xx^p*COS(cc*xx))) -> -2.548633902 | O189: =O188 -> 1.395 | P189: =IF(xx<=x0,IF(pop=1,xx^p*EXP(cc*xx),IF(pop=2,xx^p*SIN(cc*xx),xx^p*COS(cc*xx))),P187) -> -2.548633902 | Q189: =IF(xx<=x0,IF(pop=1,xx^p*EXP(cc*xx)/cc,IF(pop=2,(-1)*xx^p*(COS(cc*xx))/cc,xx^p*SIN(cc*xx)/cc)),Q187) -> 0.4674633122 | R189: =IF(p=1,EXP(cc*xx)/cc^2-EXP(a*xx)/cc^2,IF(p=2,EXP(cc*xx)*(2*xx/cc^2-1/cc^3)-EXP(a*cc)*(2*a/cc^2-1/cc^3),EXP(cc*xx)*(-3*xx^2/cc^2+6*xx/cc^3-3/cc^4))-EXP(cc*a)*(-3*a^2/cc^2+6*a/cc^3-3/cc^4)) -> -9.593627915 | S189: =IF(p=1,(SIN(cc*xx))/cc^2-SIN(a*cc)/cc^2,IF(p=2, 2*xx/cc^2*SIN(cc*xx)+2/cc^3*COS(cc*xx)- 2*a/cc^2*SIN(cc*a)+2/cc^3*COS(cc*a), 6*xx/cc^3*COS(cc*xx)+3/cc^4*(cc^2*xx^2-2)*SIN(cc*xx) - 6*a/cc^3*COS(cc*xx)+3/cc^4*(cc^2*a^2-2)*SIN(cc*a) )) -> -0.6087449066 | T189: =IF(p=1,COS(cc*xx)/cc^2-COS(cc*a)/cc^2, IF(p=2,(-2/cc^3*SIN(cc*xx)+2*xx/cc^2*COS(cc*xx)+2/cc^3*SIN(cc*a) -2*a/cc^2*COS(cc*a)), (-6*xx/cc^3*SIN(cc*xx)+(3*xx^2/cc^2-6/cc^4)*COS(cc*xx) +6*a/cc^3*SIN(cc*a)-(3*a^2/cc^2-6/cc^4)*COS(cc*a))) ) -> -1.003495419 | U189: =IF(xx<=x0,(-1)*IF(pop=1,R189,IF(pop=2,S189,T189)),U187) -> 1.003495419 | V189: =IF(xx<=x0,Q189-U189,V187) -> -0.5360321068
C190: 2.82 | D190: 17.94486276 | E190: -0.6080704542 | F190: -6.724897227 | G190: -1136.021202 | H190: -1.659767077 | I190: 6.115964443 | J190: -6.115964443 | K190: -0.6089327837 | M190: =M188+dx -> 1.41 | N190: 0 | O190: =IF(xx<=x0,O188+dx,O188) -> 1.41 | P190: =N190 -> 0 | Q190: 0 | R190: 0 | S190: 0 | T190: 0 | U190: 0 | V190: 0
C191: 2.835 | D191: 18.63444408 | E191: -0.3337256529 | F191: -6.556256597 | G191: -1185.812654 | H191: -1.514227697 | I191: 6.221669474 | J191: -6.221669474 | K191: -0.3345871231 | M191: =M190 -> 1.41 | N191: =IF(pop=1,xx^p*EXP(cc*xx),IF(pop=2,xx^p*SIN(cc*xx),xx^p*COS(cc*xx))) -> -2.659508882 | O191: =O190 -> 1.41 | P191: =IF(xx<=x0,IF(pop=1,xx^p*EXP(cc*xx),IF(pop=2,xx^p*SIN(cc*xx),xx^p*COS(cc*xx))),P189) -> -2.659508882 | Q191: =IF(xx<=x0,IF(pop=1,xx^p*EXP(cc*xx)/cc,IF(pop=2,(-1)*xx^p*(COS(cc*xx))/cc,xx^p*SIN(cc*xx)/cc)),Q189) -> 0.4430181935 | R191: =IF(p=1,EXP(cc*xx)/cc^2-EXP(a*xx)/cc^2,IF(p=2,EXP(cc*xx)*(2*xx/cc^2-1/cc^3)-EXP(a*cc)*(2*a/cc^2-1/cc^3),EXP(cc*xx)*(-3*xx^2/cc^2+6*xx/cc^3-3/cc^4))-EXP(cc*a)*(-3*a^2/cc^2+6*a/cc^3-3/cc^4)) -> -10.23218253 | S191: =IF(p=1,(SIN(cc*xx))/cc^2-SIN(a*cc)/cc^2,IF(p=2, 2*xx/cc^2*SIN(cc*xx)+2/cc^3*COS(cc*xx)- 2*a/cc^2*SIN(cc*a)+2/cc^3*COS(cc*a), 6*xx/cc^3*COS(cc*xx)+3/cc^4*(cc^2*xx^2-2)*SIN(cc*xx) - 6*a/cc^3*COS(cc*xx)+3/cc^4*(cc^2*a^2-2)*SIN(cc*a) )) -> -0.650518665 | T191: =IF(p=1,COS(cc*xx)/cc^2-COS(cc*a)/cc^2, IF(p=2,(-2/cc^3*SIN(cc*xx)+2*xx/cc^2*COS(cc*xx)+2/cc^3*SIN(cc*a) -2*a/cc^2*COS(cc*a)), (-6*xx/cc^3*SIN(cc*xx)+(3*xx^2/cc^2-6/cc^4)*COS(cc*xx) +6*a/cc^3*SIN(cc*a)-(3*a^2/cc^2-6/cc^4)*COS(cc*a))) ) -> -1.018109874 | U191: =IF(xx<=x0,(-1)*IF(pop=1,R191,IF(pop=2,S191,T191)),U189) -> 1.018109874 | V191: =IF(xx<=x0,Q191-U191,V189) -> -0.5750916809
C192: 2.85 | D192: 19.3228706 | E192: -0.04904579282 | F192: -6.373944231 | G192: -1237.683916 | H192: -1.364001834 | I192: 6.324038999 | J192: -6.324038999 | K192: -0.04990523151 | M192: =M190+dx -> 1.425 | N192: 0 | O192: =IF(xx<=x0,O190+dx,O190) -> 1.425 | P192: =N192 -> 0 | Q192: 0 | R192: 0 | S192: 0 | T192: 0 | U192: 0 | V192: 0
C193: 2.865 | D193: 20.00919319 | E193: 0.2459446856 | F193: -6.177802999 | G193: -1291.718558 | H193: -1.209151501 | I193: 6.422891478 | J193: -6.422891478 | K193: 0.2450884788 | M193: =M192 -> 1.425 | N193: =IF(pop=1,xx^p*EXP(cc*xx),IF(pop=2,xx^p*SIN(cc*xx),xx^p*COS(cc*xx))) -> -2.771492061 | O193: =O192 -> 1.425 | P193: =IF(xx<=x0,IF(pop=1,xx^p*EXP(cc*xx),IF(pop=2,xx^p*SIN(cc*xx),xx^p*COS(cc*xx))),P191) -> -2.771492061 | Q193: =IF(xx<=x0,IF(pop=1,xx^p*EXP(cc*xx)/cc,IF(pop=2,(-1)*xx^p*(COS(cc*xx))/cc,xx^p*SIN(cc*xx)/cc)),Q191) -> 0.4159290277 | R193: =IF(p=1,EXP(cc*xx)/cc^2-EXP(a*xx)/cc^2,IF(p=2,EXP(cc*xx)*(2*xx/cc^2-1/cc^3)-EXP(a*cc)*(2*a/cc^2-1/cc^3),EXP(cc*xx)*(-3*xx^2/cc^2+6*xx/cc^3-3/cc^4))-EXP(cc*a)*(-3*a^2/cc^2+6*a/cc^3-3/cc^4)) -> -10.90639375 | S193: =IF(p=1,(SIN(cc*xx))/cc^2-SIN(a*cc)/cc^2,IF(p=2, 2*xx/cc^2*SIN(cc*xx)+2/cc^3*COS(cc*xx)- 2*a/cc^2*SIN(cc*a)+2/cc^3*COS(cc*a), 6*xx/cc^3*COS(cc*xx)+3/cc^4*(cc^2*xx^2-2)*SIN(cc*xx) - 6*a/cc^3*COS(cc*xx)+3/cc^4*(cc^2*a^2-2)*SIN(cc*a) )) -> -0.6936193357 | T193: =IF(p=1,COS(cc*xx)/cc^2-COS(cc*a)/cc^2, IF(p=2,(-2/cc^3*SIN(cc*xx)+2*xx/cc^2*COS(cc*xx)+2/cc^3*SIN(cc*a) -2*a/cc^2*COS(cc*a)), (-6*xx/cc^3*SIN(cc*xx)+(3*xx^2/cc^2-6/cc^4)*COS(cc*xx) +6*a/cc^3*SIN(cc*a)-(3*a^2/cc^2-6/cc^4)*COS(cc*a))) ) -> -1.031751944 | U193: =IF(xx<=x0,(-1)*IF(pop=1,R193,IF(pop=2,S193,T193)),U191) -> 1.031751944 | V193: =IF(xx<=x0,Q193-U193,V191) -> -0.6158229159
C194: 2.88 | D194: =IF(pop=1,x^p*EXP(cc*x),IF(pop=2,x^p*SIN(cc*x),x^p*COS(cc*x))) -> 20.69244067 | E194: 0.5512069395 | F194: =IF(pop=1,x^p*EXP(cc*x)/cc,IF(pop=2,(-1)*x^p*(COS(cc*x))/cc,x^p*SIN(cc*x)/cc)) -> -5.967690675 | G194: =IF(p=1,EXP(cc*x)/cc^2-EXP(a*x)/cc^2,IF(p=2,EXP(cc*x)*(2*x/cc^2-1/cc^3)-EXP(a*cc)*(2*a/cc^2-1/cc^3),EXP(cc*x)*(-3*x^2/cc^2+6*x/cc^3-3/cc^4))-EXP(cc*a)*(-3*a^2/cc^2+6*a/cc^3-3/cc^4)) -> -1348.003406 | H194: =IF(p=1,(SIN(cc*x))/cc^2-SIN(a*cc)/cc^2,IF(p=2, 2*x/cc^2*SIN(cc*x)+2/cc^3*COS(cc*x)- 2*a/cc^2*SIN(cc*a)+2/cc^3*COS(cc*a), 6*x/cc^3*COS(cc*x)+3/cc^4*(cc^2*x^2-2)*SIN(cc*x) - 6*a/cc^3*COS(cc*x)+3/cc^4*(cc^2*a^2-2)*SIN(cc*a) )) -> -1.049745262 | I194: =IF(p=1,COS(cc*x)/cc^2-COS(cc*a)/cc^2, IF(p=2,(-2/cc^3*SIN(cc*x)+2*x/cc^2*COS(cc*x)+2/cc^3*SIN(cc*a) -2*a/cc^2*COS(cc*a)), (-6*x/cc^3*SIN(cc*x)+(3*x^2/cc^2-6/cc^4)*COS(cc*x) +6*a/cc^3*SIN(cc*a)-(3*a^2/cc^2-6/cc^4)*COS(cc*a))) ) -> 6.518045867 | J194: -6.518045867 | K194: 0.5503551922 | M194: =M192+dx -> 1.44 | N194: 0 | O194: =IF(xx<=x0,O192+dx,O192) -> 1.44 | P194: =N194 -> 0 | Q194: 0 | R194: 0 | S194: 0 | T194: 0 | U194: 0 | V194: 0
C195: =C194+dx -> 2.895 | D195: 21.37162058 | E195: =E194+(D194+D195)*dx/2 -> 0.8666873989 | F195: -5.743480484 | G195: -1406.628662 | H195: -0.8858582641 | I195: 6.609321849 | J195: =IF(pop=1,G195,IF(pop=2,H195,I195))*(-1) -> -6.609321849 | K195: =F195-J195 -> 0.8658413644 | M195: =M194 -> 1.44 | N195: =IF(pop=1,xx^p*EXP(cc*xx),IF(pop=2,xx^p*SIN(cc*xx),xx^p*COS(cc*xx))) -> -2.884398771 | O195: =O194 -> 1.44 | P195: =IF(xx<=x0,IF(pop=1,xx^p*EXP(cc*xx),IF(pop=2,xx^p*SIN(cc*xx),xx^p*COS(cc*xx))),P193) -> -2.884398771 | Q195: =IF(xx<=x0,IF(pop=1,xx^p*EXP(cc*xx)/cc,IF(pop=2,(-1)*xx^p*(COS(cc*xx))/cc,xx^p*SIN(cc*xx)/cc)),Q193) -> 0.3861166201 | R195: =IF(p=1,EXP(cc*xx)/cc^2-EXP(a*xx)/cc^2,IF(p=2,EXP(cc*xx)*(2*xx/cc^2-1/cc^3)-EXP(a*cc)*(2*a/cc^2-1/cc^3),EXP(cc*xx)*(-3*xx^2/cc^2+6*xx/cc^3-3/cc^4))-EXP(cc*a)*(-3*a^2/cc^2+6*a/cc^3-3/cc^4)) -> -11.61801884 | S195: =IF(p=1,(SIN(cc*xx))/cc^2-SIN(a*cc)/cc^2,IF(p=2, 2*xx/cc^2*SIN(cc*xx)+2/cc^3*COS(cc*xx)- 2*a/cc^2*SIN(cc*a)+2/cc^3*COS(cc*a), 6*xx/cc^3*COS(cc*xx)+3/cc^4*(cc^2*xx^2-2)*SIN(cc*xx) - 6*a/cc^3*COS(cc*xx)+3/cc^4*(cc^2*a^2-2)*SIN(cc*a) )) -> -0.7380351009 | T195: =IF(p=1,COS(cc*xx)/cc^2-COS(cc*a)/cc^2, IF(p=2,(-2/cc^3*SIN(cc*xx)+2*xx/cc^2*COS(cc*xx)+2/cc^3*SIN(cc*a) -2*a/cc^2*COS(cc*a)), (-6*xx/cc^3*SIN(cc*xx)+(3*xx^2/cc^2-6/cc^4)*COS(cc*xx) +6*a/cc^3*SIN(cc*a)-(3*a^2/cc^2-6/cc^4)*COS(cc*a))) ) -> -1.044357682 | U195: =IF(xx<=x0,(-1)*IF(pop=1,R195,IF(pop=2,S195,T195)),U193) -> 1.044357682 | V195: =IF(xx<=x0,Q195-U195,V193) -> -0.658241062
C196: 2.91 | D196: 22.04572014 | E196: 1.192317454 | F196: -5.505061647 | G196: -1467.688039 | H196: -0.7175722607 | I196: 6.696540058 | J196: -6.696540058 | K196: 1.191478411 | M196: =M194+dx -> 1.455 | N196: 0 | O196: =IF(xx<=x0,O194+dx,O194) -> 1.455 | P196: =N196 -> 0 | Q196: 0 | R196: 0 | S196: 0 | T196: 0 | U196: 0 | V196: 0
C197: 2.925 | D197: 22.71370717 | E197: 1.528013159 | F197: -5.252339906 | G197: -1531.278884 | H197: -0.5449756311 | I197: 6.779522315 | J197: -6.779522315 | K197: 1.527182409 | M197: =M196 -> 1.455 | N197: =IF(pop=1,xx^p*EXP(cc*xx),IF(pop=2,xx^p*SIN(cc*xx),xx^p*COS(cc*xx))) -> -2.998034509 | O197: =O196 -> 1.455 | P197: =IF(xx<=x0,IF(pop=1,xx^p*EXP(cc*xx),IF(pop=2,xx^p*SIN(cc*xx),xx^p*COS(cc*xx))),P195) -> -2.998034509 | Q197: =IF(xx<=x0,IF(pop=1,xx^p*EXP(cc*xx)/cc,IF(pop=2,(-1)*xx^p*(COS(cc*xx))/cc,xx^p*SIN(cc*xx)/cc)),Q195) -> 0.3535041825 | R197: =IF(p=1,EXP(cc*xx)/cc^2-EXP(a*xx)/cc^2,IF(p=2,EXP(cc*xx)*(2*xx/cc^2-1/cc^3)-EXP(a*cc)*(2*a/cc^2-1/cc^3),EXP(cc*xx)*(-3*xx^2/cc^2+6*xx/cc^3-3/cc^4))-EXP(cc*a)*(-3*a^2/cc^2+6*a/cc^3-3/cc^4)) -> -12.36889441 | S197: =IF(p=1,(SIN(cc*xx))/cc^2-SIN(a*cc)/cc^2,IF(p=2, 2*xx/cc^2*SIN(cc*xx)+2/cc^3*COS(cc*xx)- 2*a/cc^2*SIN(cc*a)+2/cc^3*COS(cc*a), 6*xx/cc^3*COS(cc*xx)+3/cc^4*(cc^2*xx^2-2)*SIN(cc*xx) - 6*a/cc^3*COS(cc*xx)+3/cc^4*(cc^2*a^2-2)*SIN(cc*a) )) -> -0.7837515636 | T197: =IF(p=1,COS(cc*xx)/cc^2-COS(cc*a)/cc^2, IF(p=2,(-2/cc^3*SIN(cc*xx)+2*xx/cc^2*COS(cc*xx)+2/cc^3*SIN(cc*a) -2*a/cc^2*COS(cc*a)), (-6*xx/cc^3*SIN(cc*xx)+(3*xx^2/cc^2-6/cc^4)*COS(cc*xx) +6*a/cc^3*SIN(cc*a)-(3*a^2/cc^2-6/cc^4)*COS(cc*a))) ) -> -1.055862708 | U197: =IF(xx<=x0,(-1)*IF(pop=1,R197,IF(pop=2,S197,T197)),U195) -> 1.055862708 | V197: =IF(xx<=x0,Q197-U197,V195) -> -0.7023585258
C198: 2.94 | D198: 23.37453106 | E198: 1.873674946 | F198: -4.985238042 | G198: -1597.502326 | H198: -0.3681633894 | I198: 6.858091856 | J198: -6.858091856 | K198: 1.872853813 | M198: =M196+dx -> 1.47 | N198: 0 | O198: =IF(xx<=x0,O196+dx,O196) -> 1.47 | P198: =N198 -> 0 | Q198: 0 | R198: 0 | S198: 0 | T198: 0 | U198: 0 | V198: 0
C199: 2.955 | D199: 24.02712382 | E199: 2.229187357 | F199: -4.703696384 | G199: -1666.463412 | H199: -0.1872371856 | I199: 6.932073572 | J199: -6.932073572 | K199: 2.228377188 | M199: =M198 -> 1.47 | N199: =IF(pop=1,xx^p*EXP(cc*xx),IF(pop=2,xx^p*SIN(cc*xx),xx^p*COS(cc*xx))) -> -3.11219499 | O199: =O198 -> 1.47 | P199: =IF(xx<=x0,IF(pop=1,xx^p*EXP(cc*xx),IF(pop=2,xx^p*SIN(cc*xx),xx^p*COS(cc*xx))),P197) -> -3.11219499 | Q199: =IF(xx<=x0,IF(pop=1,xx^p*EXP(cc*xx)/cc,IF(pop=2,(-1)*xx^p*(COS(cc*xx))/cc,xx^p*SIN(cc*xx)/cc)),Q197) -> 0.3180175759 | R199: =IF(p=1,EXP(cc*xx)/cc^2-EXP(a*xx)/cc^2,IF(p=2,EXP(cc*xx)*(2*xx/cc^2-1/cc^3)-EXP(a*cc)*(2*a/cc^2-1/cc^3),EXP(cc*xx)*(-3*xx^2/cc^2+6*xx/cc^3-3/cc^4))-EXP(cc*a)*(-3*a^2/cc^2+6*a/cc^3-3/cc^4)) -> -13.16093985 | S199: =IF(p=1,(SIN(cc*xx))/cc^2-SIN(a*cc)/cc^2,IF(p=2, 2*xx/cc^2*SIN(cc*xx)+2/cc^3*COS(cc*xx)- 2*a/cc^2*SIN(cc*a)+2/cc^3*COS(cc*a), 6*xx/cc^3*COS(cc*xx)+3/cc^4*(cc^2*xx^2-2)*SIN(cc*xx) - 6*a/cc^3*COS(cc*xx)+3/cc^4*(cc^2*a^2-2)*SIN(cc*a) )) -> -0.830751702 | T199: =IF(p=1,COS(cc*xx)/cc^2-COS(cc*a)/cc^2, IF(p=2,(-2/cc^3*SIN(cc*xx)+2*xx/cc^2*COS(cc*xx)+2/cc^3*SIN(cc*a) -2*a/cc^2*COS(cc*a)), (-6*xx/cc^3*SIN(cc*xx)+(3*xx^2/cc^2-6/cc^4)*COS(cc*xx) +6*a/cc^3*SIN(cc*a)-(3*a^2/cc^2-6/cc^4)*COS(cc*a))) ) -> -1.066202299 | U199: =IF(xx<=x0,(-1)*IF(pop=1,R199,IF(pop=2,S199,T199)),U197) -> 1.066202299 | V199: =IF(xx<=x0,Q199-U199,V197) -> -0.7481847226
C200: 2.97 | D200: 24.67040116 | E200: 2.594418795 | F200: -4.407673289 | G200: -1738.271259 | H200: -0.00230529991 | I200: 7.001294243 | J200: -7.001294243 | K200: 2.593620953 | M200: =M198+dx -> 1.485 | N200: 0 | O200: =IF(xx<=x0,O198+dx,O198) -> 1.485 | P200: =N200 -> 0 | Q200: 0 | R200: 0 | S200: 0 | T200: 0 | U200: 0 | V200: 0
... 201 more rows

Sheet Sheet3
